Organisation Name,Effective Date,Purch Date,Service Area,Expense Area,Beneficiary,Net amount,      Tax,     Gross,G/L Acct Long Text,MCC Description,
Buckinghamshire Council ,31.07.2023,31.07.2023,Deputy Chief Executive,AH&R- DCE Dir,PAYPAL,-160,0,-160,Miscellaneous (Other)  Expenses,Variety stores,
Buckinghamshire Council ,31.07.2023,31.07.2023,Children's Services,Education & Childrens Services - CS Dir,LYNKPAY* 001 TAXIS,149.35,0,149.35,Sec 20/31: Transport,,
Buckinghamshire Council ,31.07.2023,31.07.2023,"Planning, Growth & Sustainability",Housing & Homelessness & Regulatory PGS,AMZNMKTPLACE,29.97,0,29.97,Homelessness,Miscellaneous retail,
Buckinghamshire Council ,31.07.2023,31.07.2023,"Planning, Growth & Sustainability",Housing & Homelessness & Regulatory PGS,LAND REGISTRY ECOM CCC,3,0,3,Homelessness,Government services,
Buckinghamshire Council ,31.07.2023,31.07.2023,Deputy Chief Executive,Communities - DCE,AO RETAIL LIMITED,282.5,56.5,339,Other Personal Needs,Household appliance stores,
Buckinghamshire Council ,31.07.2023,31.07.2023,Deputy Chief Executive,Communities - DCE,AO RETAIL LIMITED,510.83,102.17,613,Other Personal Needs,Household appliance stores,
Buckinghamshire Council ,31.07.2023,31.07.2023,Deputy Chief Executive,Communities - DCE,WWW.ARGOS.CO.UK,124.1,24.82,148.92,Other Personal Needs,Department stores,
Buckinghamshire Council ,31.07.2023,31.07.2023,Deputy Chief Executive,Communities - DCE,WWW.ARGOS.CO.UK,0.03,0,0.03,Other Personal Needs,Department stores,
Buckinghamshire Council ,31.07.2023,31.07.2023,Deputy Chief Executive,Communities - DCE,WWW.ARGOS.CO.UK,274.1,54.82,328.92,Other Personal Needs,Department stores,
Buckinghamshire Council ,31.07.2023,31.07.2023,Deputy Chief Executive,Communities - DCE,WWW.ARGOS.CO.UK,0.03,0,0.03,Other Personal Needs,Department stores,
Buckinghamshire Council ,31.07.2023,31.07.2023,Deputy Chief Executive,Communities - DCE,AO RETAIL LIMITED,124.16,24.84,149,Other Personal Needs,Household appliance stores,
Buckinghamshire Council ,31.07.2023,31.07.2023,Deputy Chief Executive,Communities - DCE,WWW.ARGOS.CO.UK,125.95,0,125.95,Other Personal Needs,Department stores,
Buckinghamshire Council ,31.07.2023,31.07.2023,Deputy Chief Executive,Communities - DCE,AMZNMKTPLACE,124.15,24.83,148.98,Other Personal Needs,Miscellaneous retail,
Buckinghamshire Council ,31.07.2023,31.07.2023,Deputy Chief Executive,Communities - DCE,AMZNMKTPLACE,0.02,0,0.02,Other Personal Needs,Miscellaneous retail,
Buckinghamshire Council ,31.07.2023,31.07.2023,Deputy Chief Executive,Communities - DCE,WWW.ARGOS.CO.UK,-125.95,0,-125.95,Other Personal Needs,Department stores,
Buckinghamshire Council ,31.07.2023,31.07.2023,Children's Services,Education & Childrens Services - CS Dir,AMZ*DECONOVO-HOME,-96,0,-96,Leaving Care - Grants for Care Leavers,Miscellaneous retail,
Buckinghamshire Council ,31.07.2023,31.07.2023,Children's Services,Education & Childrens Services - CS Dir,FACEBK *HPT36PKF92,27.73,0,27.73,Advertising,Advertising services,
Buckinghamshire Council ,31.07.2023,31.07.2023,Children's Services,Education & Childrens Services - CS Dir,TESCO STORES 2041,185.51,0,185.51,Awaiting Coding,Grocery stores,
Buckinghamshire Council ,31.07.2023,31.07.2023,Communities,Culture & Leisure - Communities Dir,SUMUP  *RB CLEANING,82,0,82,General Repairs & Maintenance,"Laundry, cleaning & garment services",
Buckinghamshire Council ,31.07.2023,31.07.2023,"Planning, Growth & Sustainability",Housing & Homelessness & Regulatory PGS,EB *ENVIRONMENTAL HEAL,80,0,80,Course Fees & Post Entry Training,Misc business services,
Buckinghamshire Council ,31.07.2023,31.07.2023,Resources,AH&R - Res Dir,WWW.REGISTRY-TRUST.ORG,8,0,8,Professional Services (non curriculum) - External,Professional services,
Buckinghamshire Council ,31.07.2023,31.07.2023,Resources,AH&R - Res Dir,WWW.REGISTRY-TRUST.ORG,16,0,16,Professional Services (non curriculum) - External,Professional services,
Buckinghamshire Council ,31.07.2023,31.07.2023,Children's Services,Education & Childrens Services - CS Dir,SAINSBURYS SUPERMA,119.94,0,119.94,YOS - Direct Work,Grocery stores,
Buckinghamshire Council ,31.07.2023,31.07.2023,Communities,Housing & Homelessness & Regulatory Comm,AMZNMktplace,28.44,0,28.44,Awaiting Coding,Miscellaneous retail,
Buckinghamshire Council ,31.07.2023,31.07.2023,Adults and Health,Health & Wellbeing - Adults & Health Dir,SAINSBURYS S/MKTS,30.35,0,30.35,General Provisions (Food),Grocery stores,
Buckinghamshire Council ,31.07.2023,31.07.2023,Children's Services,Education & Childrens Services - CS Dir,INTELLISOFTWARE LTD,126,0,126,Computer Consumables,"Computers, peripherals & software",
Buckinghamshire Council ,31.07.2023,31.07.2023,"Planning, Growth & Sustainability",AH&R - PGS Dir,BOOKER LTD - 38534944,80.05,16.01,96.06,Vending Machines Supplies,Grocery stores,
Buckinghamshire Council ,31.07.2023,31.07.2023,"Planning, Growth & Sustainability",AH&R - PGS Dir,BOOKER LTD - 38534944,130.25,26.05,156.3,Vending Machines Supplies,Grocery stores,
Buckinghamshire Council ,31.07.2023,31.07.2023,"Planning, Growth & Sustainability",AH&R - PGS Dir,BOOKER LTD - 38534944,0.02,0,0.02,Vending Machines Supplies,Grocery stores,
Buckinghamshire Council ,31.07.2023,31.07.2023,Children's Services,Education & Childrens Services - CS Dir,AMZ*EXEQIANMING-UK,-42.72,0,-42.72,Educational Equipment,Miscellaneous retail,
Buckinghamshire Council ,31.07.2023,31.07.2023,Children's Services,Education & Childrens Services - CS Dir,AMZ*RUIKEJI DIRECT,-43.97,0,-43.97,Educational Equipment,Miscellaneous retail,
Buckinghamshire Council ,31.07.2023,31.07.2023,Children's Services,Education & Childrens Services - CS Dir,AMZ*HOLLY CUPCAKES LIM,-8.49,0,-8.49,Educational Equipment,Miscellaneous retail,
Buckinghamshire Council ,31.07.2023,31.07.2023,Communities,Culture & Leisure - Communities Dir,EB *REFUND TO BUYER,48,0,48,Events Expenditure,Misc business services,
Buckinghamshire Council ,31.07.2023,31.07.2023,Communities,Transport - Communities Dir,TIMPSON LTD,38.95,0,38.95,Materials,Miscellaneous retail,
Buckinghamshire Council ,31.07.2023,31.07.2023,Children's Services,artnerships - Children's Services,LOUNGERS,61.55,0,61.55,Subsistence,"Bars, taverns, pubs & nightclubs",
Buckinghamshire Council ,31.07.2023,31.07.2023,Children's Services,Education & Childrens Services - CS Dir,SP FOR YOUR LITTLE O,204.98,0,204.98,Equipment (including storage),Misc. clothing & accessory shops,
Buckinghamshire Council ,31.07.2023,31.07.2023,Children's Services,Education & Childrens Services - CS Dir,WWW.ARGOS.CO.UK,219.95,0,219.95,Equipment (including storage),Department stores,
Buckinghamshire Council ,31.07.2023,31.07.2023,Children's Services,Education & Childrens Services - CS Dir,IMPRESSIONS CARDS AND G,1.99,0,1.99,Awaiting Coding,"Gift, card & novelty shops",
Buckinghamshire Council ,31.07.2023,31.07.2023,Children's Services,Education & Childrens Services - CS Dir,POST OFFICE COUNTER,0.75,0,0.75,General Postage,Postal services,
Buckinghamshire Council ,31.07.2023,31.07.2023,Communities,Culture & Leisure - Communities Dir,PANDORA JEWELLERY UK LIMI,100,0,100,Administrative Equipment & Tools,Jewellers,
Buckinghamshire Council ,31.07.2023,31.07.2023,Deputy Chief Executive,Leader - DCE,FACEBK B7Q3VTTPN2,618.36,0,618.36,Advertising,Advertising services,
Buckinghamshire Council ,31.07.2023,31.07.2023,Children's Services,Education & Childrens Services - CS Dir,AMZNMktplace,9.19,0,9.19,Awaiting Coding,Miscellaneous retail,
Buckinghamshire Council ,31.07.2023,31.07.2023,Adults and Health,Health & Wellbeing - Adults & Health Dir,ASDA SUPERSTORE,8.8,0,8.8,General Provisions (Food),Grocery stores,
Buckinghamshire Council ,31.07.2023,31.07.2023,Adults and Health,Health & Wellbeing - Adults & Health Dir,ASDA SUPERSTORE,7.85,0,7.85,General Provisions (Food),Grocery stores,
Buckinghamshire Council ,31.07.2023,31.07.2023,Children's Services,Education & Childrens Services - CS Dir,WILKO.COM,40,0,40,Leaving Care - Grants for Care Leavers,Misc. general merchandise,
Buckinghamshire Council ,31.07.2023,31.07.2023,Children's Services,Education & Childrens Services - CS Dir,WWW.ARGOS.CO.UK,521.95,0,521.95,Leaving Care - Grants for Care Leavers,Department stores,
Buckinghamshire Council ,31.07.2023,31.07.2023,Children's Services,Education & Childrens Services - CS Dir,BT.COM CONSUMER BP,40.99,0,40.99,Leaving Care  - Financial Assistance,Phone services,
Buckinghamshire Council ,31.07.2023,31.07.2023,Children's Services,Education & Childrens Services - CS Dir,AMZNMKTPLACE,244.49,0,244.49,Leaving Care - Grants for Care Leavers,Miscellaneous retail,
Buckinghamshire Council ,31.07.2023,31.07.2023,Children's Services,Education & Childrens Services - CS Dir,AMAZON.CO.UK,100,0,100,Leaving Care - Grants for Care Leavers,Direct sales companies,
Buckinghamshire Council ,31.07.2023,31.07.2023,Children's Services,Education & Childrens Services - CS Dir,BT.COM CONSUMER BP,40.99,0,40.99,Leaving Care  - Financial Assistance,Phone services,
Buckinghamshire Council ,31.07.2023,31.07.2023,Children's Services,Education & Childrens Services - CS Dir,AMZNMKTPLACE,76.99,0,76.99,Leaving Care - Grants for Care Leavers,Miscellaneous retail,
Buckinghamshire Council ,31.07.2023,31.07.2023,Children's Services,Education & Childrens Services - CS Dir,WWW.ARGOS.CO.UK,-60,0,-60,Leaving Care - Grants for Care Leavers,Department stores,
Buckinghamshire Council ,31.07.2023,31.07.2023,Adults and Health,Health & Wellbeing - Adults & Health Dir,TESCO STORES 5135,210.12,0,210.12,General Provisions (Food),Grocery stores,
Buckinghamshire Council ,31.07.2023,31.07.2023,Deputy Chief Executive,AH&R- DCE Dir,PAYPAL,768.33,153.67,922,Miscellaneous (Other)  Expenses,Electronics shops,
Buckinghamshire Council ,31.07.2023,31.07.2023,Deputy Chief Executive,AH&R- DCE Dir,WWW.ARGOS.CO.UK,220.5,44.1,264.6,Miscellaneous (Other)  Expenses,Department stores,
Buckinghamshire Council ,31.07.2023,31.07.2023,Deputy Chief Executive,AH&R- DCE Dir,WWW.ARGOS.CO.UK,0.1,0,0.1,Miscellaneous (Other)  Expenses,Department stores,
Buckinghamshire Council ,31.07.2023,31.07.2023,Resources,AH&R - Res Dir,FACEBK 6FVLZPTG82,29.99,0,29.99,Permanent Recruitment Costs,Advertising services,
Buckinghamshire Council ,31.07.2023,31.07.2023,Communities,Culture & Leisure - Communities Dir,Amazon.co.uk,37.79,0,37.79,Stationery & Office Supplies,Direct sales companies,
Buckinghamshire Council ,31.07.2023,31.07.2023,"Planning, Growth & Sustainability",Housing & Homelessness & Regulatory PGS,IKEA LTD SHOP ONLINE,696,0,696,Furniture,Furniture & home furnishing,
Buckinghamshire Council ,31.07.2023,31.07.2023,Adults and Health,Health & Wellbeing - Adults & Health Dir,TESCO STORES 5135,90.21,0,90.21,Awaiting Coding,Grocery stores,
Buckinghamshire Council ,31.07.2023,31.07.2023,Adults and Health,Health & Wellbeing - Adults & Health Dir,TESCO GIFT CARD,30,0,30,Other Short Term Support,Grocery stores,
Buckinghamshire Council ,31.07.2023,31.07.2023,Adults and Health,Health & Wellbeing - Adults & Health Dir,BKG*HOTEL AT BOOKING.C,393.3,0,393.3,Other Short Term Support,Travel agencies,
Buckinghamshire Council ,31.07.2023,31.07.2023,Adults and Health,Health & Wellbeing - Adults & Health Dir,BKG*HOTEL AT BOOKING.C,381.9,0,381.9,Other Short Term Support,Travel agencies,
Buckinghamshire Council ,31.07.2023,31.07.2023,Adults and Health,Health & Wellbeing - Adults & Health Dir,BKG*HOTEL AT BOOKING.C,-393.3,0,-393.3,Other Short Term Support,Travel agencies,
Buckinghamshire Council ,31.07.2023,31.07.2023,Children's Services,Education & Childrens Services - CS Dir,VESTA VODAFONE TOPUP,15,0,15,Sec 20/31: Financial Assistance One Off,Phone services,
Buckinghamshire Council ,31.07.2023,31.07.2023,Children's Services,Education & Childrens Services - CS Dir,BUCKINGHAM HOTELS,"1,575.00",315,"1,890.00",Sec 17: Accommodation,"Hotels, motels & resorts",
Buckinghamshire Council ,31.07.2023,31.07.2023,Children's Services,Education & Childrens Services - CS Dir,BUCKINGHAM HOTELS,900,180,"1,080.00",Sec 17: Accommodation,"Hotels, motels & resorts",
Buckinghamshire Council ,31.07.2023,31.07.2023,Children's Services,Education & Childrens Services - CS Dir,BUCKINGHAM HOTELS,"1,575.00",315,"1,890.00",Sec 17: Accommodation,"Hotels, motels & resorts",
Buckinghamshire Council ,31.07.2023,31.07.2023,Children's Services,Education & Childrens Services - CS Dir,COSTA COFFEE BEDGROVE,6.35,0,6.35,Subsistence,Fast food restaurants,
Buckinghamshire Council ,31.07.2023,31.07.2023,Deputy Chief Executive,AH&R- DCE Dir,PAYPAL,187.95,0,187.95,Miscellaneous (Other)  Expenses,Variety stores,
Buckinghamshire Council ,31.07.2023,31.07.2023,Deputy Chief Executive,AH&R- DCE Dir,PAYPAL,133.2,0,133.2,Miscellaneous (Other)  Expenses,Variety stores,
Buckinghamshire Council ,31.07.2023,30.07.2023,Children's Services,Education & Childrens Services - CS Dir,AMZNMKTPLACE,35.19,0,35.19,Other Equipment and Materials,Miscellaneous retail,
Buckinghamshire Council ,31.07.2023,30.07.2023,Communities,Climate Change & Environment - Community,AMZNMKTPLACE,164.74,0,164.74,Bartec,Miscellaneous retail,
Buckinghamshire Council ,31.07.2023,30.07.2023,Communities,Culture & Leisure - Communities Dir,PEWABIC POTTERY,0.81,0,0.81,Awaiting Coding,Schools,
Buckinghamshire Council ,31.07.2023,30.07.2023,Communities,Culture & Leisure - Communities Dir,VANDEMARK JEWELERS,0.81,0,0.81,Awaiting Coding,Jewellers,
Buckinghamshire Council ,31.07.2023,30.07.2023,Communities,artnerships - Communities,AMZNMktplace,14.85,0,14.85,Awaiting Coding,Miscellaneous retail,
Buckinghamshire Council ,31.07.2023,30.07.2023,Adults and Health,Communities - Adults & Health,AMZNMKTPLACE,209.7,0,209.7,Project Work and Project Management Costs,Miscellaneous retail,
Buckinghamshire Council ,31.07.2023,30.07.2023,Communities,ommunities - Trust Accounts,WWW.NISBETS.COM,649.15,0,649.15,Stationery & Office Supplies,Catalogue sales,
Buckinghamshire Council ,31.07.2023,30.07.2023,Children's Services,Education & Childrens Services - CS Dir,AMZNMktplace,34.48,0,34.48,Awaiting Coding,Miscellaneous retail,
Buckinghamshire Council ,31.07.2023,30.07.2023,Children's Services,Education & Childrens Services - CS Dir,AMZNMktplace,6.96,0,6.96,Awaiting Coding,Miscellaneous retail,
Buckinghamshire Council ,31.07.2023,30.07.2023,Adults and Health,Health & Wellbeing - Adults & Health Dir,AMZNMktplace,92.14,0,92.14,Awaiting Coding,Miscellaneous retail,
Buckinghamshire Council ,31.07.2023,30.07.2023,Communities,Culture & Leisure - Communities Dir,WHITE LINEN,1.05,0,1.05,Awaiting Coding,Household appliance stores,
Buckinghamshire Council ,31.07.2023,30.07.2023,Communities,Culture & Leisure - Communities Dir,PSD FRAUD TEMP. CREDIT,-0.81,0,-0.81,Awaiting Coding,Schools,
Buckinghamshire Council ,31.07.2023,30.07.2023,Communities,Culture & Leisure - Communities Dir,PSD FRAUD TEMP. CREDIT,-0.81,0,-0.81,Awaiting Coding,Jewellers,
Buckinghamshire Council ,31.07.2023,30.07.2023,Communities,Culture & Leisure - Communities Dir,PSD FRAUD TEMP. CREDIT,-1.05,0,-1.05,Awaiting Coding,Household appliance stores,
Buckinghamshire Council ,31.07.2023,29.07.2023,Deputy Chief Executive,AH&R- DCE Dir,PAYPAL,-150,0,-150,Miscellaneous (Other)  Expenses,Variety stores,
Buckinghamshire Council ,31.07.2023,29.07.2023,Communities,Climate Change & Environment - Community,TESCO STORES 2994,250,0,250,Other Employees Expenses,Grocery stores,
Buckinghamshire Council ,31.07.2023,29.07.2023,Communities,Culture & Leisure - Communities Dir,AMZNMKTPLACE,15.2,3.04,18.24,"Workshop - Materials,Tools & Equipment",Miscellaneous retail,
Buckinghamshire Council ,31.07.2023,29.07.2023,Communities,Culture & Leisure - Communities Dir,AMZNMKTPLACE,0.01,0,0.01,"Workshop - Materials,Tools & Equipment",Miscellaneous retail,
Buckinghamshire Council ,31.07.2023,29.07.2023,Communities,Transport - Communities Dir,PARKING-RCHRD ST,1.1,0,1.1,Repair and Maintenance of Equipment,Car parking & garages,
Buckinghamshire Council ,31.07.2023,29.07.2023,Adults and Health,Health & Wellbeing - Adults & Health Dir,BKG*HOTEL AT BOOKING.C,281.2,0,281.2,Other Short Term Support,Travel agencies,
Buckinghamshire Council ,31.07.2023,29.07.2023,Children's Services,Education & Childrens Services - CS Dir,AMZ,-206.07,0,-206.07,IT Equipment Purchase,Direct sales companies,
Buckinghamshire Council ,31.07.2023,29.07.2023,Communities,artnerships - Communities,Amazon.co.uk,9.29,0,9.29,Stationery & Office Supplies,Direct sales companies,
Buckinghamshire Council ,31.07.2023,29.07.2023,Resources,AH&R - Res Dir,LINKEDIN ADS 9278743974,101.17,0,101.17,Permanent Recruitment Costs,Advertising services,
Buckinghamshire Council ,31.07.2023,29.07.2023,Communities,Culture & Leisure - Communities Dir,TOOLSTATION UK,112.25,22.45,134.7,"Workshop - Materials,Tools & Equipment",Hardware stores,
Buckinghamshire Council ,31.07.2023,28.07.2023,Children's Services,Education & Childrens Services - CS Dir,AMZNMKTPLACE,102.63,0,102.63,Educational Equipment,Miscellaneous retail,
Buckinghamshire Council ,31.07.2023,28.07.2023,Children's Services,Education & Childrens Services - CS Dir,AMZNMKTPLACE,49.98,0,49.98,Leaving Care - Grants for Care Leavers,Miscellaneous retail,
Buckinghamshire Council ,31.07.2023,28.07.2023,"Planning, Growth & Sustainability",Housing & Homelessness & Regulatory PGS,HPI INSTANT INK UK,9.99,0,9.99,Furniture,Electronics shops,
Buckinghamshire Council ,31.07.2023,28.07.2023,Children's Services,Education & Childrens Services - CS Dir,AMZNMKTPLACE,24.57,0,24.57,Sec 20/31: Financial Assistance,Miscellaneous retail,
Buckinghamshire Council ,31.07.2023,28.07.2023,Deputy Chief Executive,AH&R- DCE Dir,PAYPAL,469.15,93.83,562.98,Miscellaneous (Other)  Expenses,Electronics shops,
Buckinghamshire Council ,31.07.2023,28.07.2023,Deputy Chief Executive,AH&R- DCE Dir,PAYPAL,0.02,0,0.02,Miscellaneous (Other)  Expenses,Electronics shops,
Buckinghamshire Council ,31.07.2023,28.07.2023,Deputy Chief Executive,AH&R- DCE Dir,PAYPAL,103.29,20.66,123.95,Miscellaneous (Other)  Expenses,Variety stores,
Buckinghamshire Council ,31.07.2023,28.07.2023,Deputy Chief Executive,AH&R- DCE Dir,PAYPAL,7.5,1.5,9,Miscellaneous (Other)  Expenses,Variety stores,
Buckinghamshire Council ,31.07.2023,28.07.2023,Deputy Chief Executive,AH&R- DCE Dir,PAYPAL,110.75,22.15,132.9,Miscellaneous (Other)  Expenses,Variety stores,
Buckinghamshire Council ,31.07.2023,28.07.2023,Deputy Chief Executive,AH&R- DCE Dir,PAYPAL,0.05,0,0.05,Miscellaneous (Other)  Expenses,Variety stores,
Buckinghamshire Council ,31.07.2023,28.07.2023,Communities,Culture & Leisure - Communities Dir,Langley Park Cafe,24.25,0,24.25,Subsistence,Restaurants,
Buckinghamshire Council ,31.07.2023,28.07.2023,Children's Services,Education & Childrens Services - CS Dir,SUMUP  *CABS4U,60,0,60,Sec 20/31: Supp for Contact,Taxicabs & limousines,
Buckinghamshire Council ,31.07.2023,28.07.2023,Deputy Chief Executive,Communities - DCE,WWW.ARGOS.CO.UK,268.95,0,268.95,Awaiting Coding,Department stores,
Buckinghamshire Council ,31.07.2023,28.07.2023,Deputy Chief Executive,Communities - DCE,PAYPAL,203.95,0,203.95,Awaiting Coding,Variety stores,
Buckinghamshire Council ,31.07.2023,28.07.2023,Deputy Chief Executive,Communities - DCE,AO RETAIL LIMITED,274,0,274,Awaiting Coding,Household appliance stores,
Buckinghamshire Council ,31.07.2023,28.07.2023,Deputy Chief Executive,Communities - DCE,AO RETAIL LIMITED,912,0,912,Awaiting Coding,Household appliance stores,
Buckinghamshire Council ,31.07.2023,28.07.2023,Deputy Chief Executive,Communities - DCE,WWW.ARGOS.CO.UK,52.95,0,52.95,Awaiting Coding,Department stores,
Buckinghamshire Council ,31.07.2023,28.07.2023,Deputy Chief Executive,Communities - DCE,PAYPAL,59,0,59,Awaiting Coding,Variety stores,
Buckinghamshire Council ,31.07.2023,28.07.2023,Deputy Chief Executive,Communities - DCE,AO RETAIL LIMITED,339,0,339,Awaiting Coding,Household appliance stores,
Buckinghamshire Council ,31.07.2023,28.07.2023,Deputy Chief Executive,Communities - DCE,WWW.ARGOS.CO.UK,52.07,0,52.07,Awaiting Coding,Department stores,
Buckinghamshire Council ,31.07.2023,28.07.2023,Deputy Chief Executive,Communities - DCE,AO RETAIL LIMITED,598,0,598,Awaiting Coding,Household appliance stores,
Buckinghamshire Council ,31.07.2023,28.07.2023,"Planning, Growth & Sustainability",Climate Change & Environment - PGS,RINGGO PARKING,2.75,0,2.75,Staff Travelling Expenses,Car parking & garages,
Buckinghamshire Council ,31.07.2023,28.07.2023,Communities,Transport - Communities Dir,DRI*,679.99,0,679.99,Software Support,Computer software stores,
Buckinghamshire Council ,31.07.2023,28.07.2023,Children's Services,Education & Childrens Services - CS Dir,TRAVELODGE GB0000,38.23,7.65,45.88,Sec 20/31: Supp for Contact,Travelodge,
Buckinghamshire Council ,31.07.2023,28.07.2023,Children's Services,Education & Childrens Services - CS Dir,TRAINLINE.COM,247.89,0,247.89,Sec 20/31: Supp for Contact,Passenger railways,
Buckinghamshire Council ,31.07.2023,28.07.2023,Deputy Chief Executive,Leader - DCE,COUNTYCOUNCILSNETWORK,840,0,840,"Courses, Conference and Seminar Fees",Membership organisations,
Buckinghamshire Council ,31.07.2023,28.07.2023,Communities,Transport - Communities Dir,PARKING-HXH P&R,1.3,0,1.3,Repair and Maintenance of Equipment,Car parking & garages,
Buckinghamshire Council ,31.07.2023,28.07.2023,Communities,Transport - Communities Dir,PARKING-HXH P&R,1.3,0,1.3,Repair and Maintenance of Equipment,Car parking & garages,
Buckinghamshire Council ,31.07.2023,28.07.2023,Communities,Transport - Communities Dir,PARKING-HXH P&R,1.3,0,1.3,Repair and Maintenance of Equipment,Car parking & garages,
Buckinghamshire Council ,31.07.2023,28.07.2023,Resources,AH&R - Res Dir,GMO GLOBALSIGN LIM,478.8,0,478.8,Computer Support Services,Computer network information services,
Buckinghamshire Council ,31.07.2023,28.07.2023,Resources,AH&R - Res Dir,RINGGO PARKING,0.8,0,0.8,Staff Travelling Expenses,Car parking & garages,
Buckinghamshire Council ,31.07.2023,28.07.2023,Deputy Chief Executive,AH&R- DCE Dir,AMAZON.CO.UK,109.9,0,109.9,Other Personal Needs,Direct sales companies,
Buckinghamshire Council ,31.07.2023,28.07.2023,Deputy Chief Executive,AH&R- DCE Dir,AMZNMKTPLACE,76.22,0,76.22,Other Personal Needs,Miscellaneous retail,
Buckinghamshire Council ,31.07.2023,28.07.2023,Children's Services,Education & Childrens Services - CS Dir,SAINSBURYS SMKTS,25,0,25,Educational Equipment,Grocery stores,
Buckinghamshire Council ,31.07.2023,28.07.2023,Children's Services,Education & Childrens Services - CS Dir,SAINSBURYS SMKTS,39,0,39,Educational Equipment,Grocery stores,
Buckinghamshire Council ,31.07.2023,28.07.2023,Children's Services,Education & Childrens Services - CS Dir,SAINSBURYS SMKTS,42,0,42,Educational Equipment,Grocery stores,
Buckinghamshire Council ,31.07.2023,28.07.2023,Resources,AH&R - Res Dir,ABRATAX - MTD,12,0,12,Computer Consumables,Computer software stores,
Buckinghamshire Council ,31.07.2023,28.07.2023,Children's Services,Education & Childrens Services - CS Dir,MARKS&SPENCER PLC SACA,22,0,22,Miscellaneous (Other)  Expenses,Grocery stores,
Buckinghamshire Council ,31.07.2023,28.07.2023,Children's Services,Education & Childrens Services - CS Dir,GEN REGISTER OFFICE,38,0,38,Sec 20/31: Specialist Services,Government services,
Buckinghamshire Council ,31.07.2023,28.07.2023,Communities,Climate Change & Environment - Community,AMZNMKTPLACE,115,0,115,Bartec,Miscellaneous retail,
Buckinghamshire Council ,31.07.2023,28.07.2023,Communities,Climate Change & Environment - Community,AMZNMKTPLACE,460,0,460,Bartec,Miscellaneous retail,
Buckinghamshire Council ,31.07.2023,28.07.2023,Communities,Climate Change & Environment - Community,AMZNMKTPLACE,575,0,575,Bartec,Miscellaneous retail,
Buckinghamshire Council ,31.07.2023,28.07.2023,Communities,Culture & Leisure - Communities Dir,SPORTIVE-BILL.COM,0.81,0,0.81,Stationery & Office Supplies,Continuous subscriptions,
Buckinghamshire Council ,31.07.2023,28.07.2023,Children's Services,Education & Childrens Services - CS Dir,WWW.ANYVAN.COM,96,0,96,Sec 20/31: Transport,"Haulage, removals & delivery",
Buckinghamshire Council ,31.07.2023,28.07.2023,Children's Services,Education & Childrens Services - CS Dir,AMZNMKTPLACE,29.09,0,29.09,Leaving Care - Grants for Care Leavers,Miscellaneous retail,
Buckinghamshire Council ,31.07.2023,28.07.2023,Children's Services,Education & Childrens Services - CS Dir,WWW.ARGOS.CO.UK,54,0,54,Leaving Care - Grants for Care Leavers,Department stores,
Buckinghamshire Council ,31.07.2023,28.07.2023,Resources,AH&R - Res Dir,PAYPAL,7.2,0,7.2,Computer Support Services,Computer network information services,
Buckinghamshire Council ,31.07.2023,28.07.2023,Children's Services,Education & Childrens Services - CS Dir,ASDA SUPERSTORE,16,0,16,Other Equipment and Materials,Grocery stores,
Buckinghamshire Council ,31.07.2023,28.07.2023,Children's Services,Education & Childrens Services - CS Dir,CAMP BEAUMONT DAY CARE,106,0,106,Equipment (including storage),Schools,
Buckinghamshire Council ,31.07.2023,28.07.2023,Children's Services,Education & Childrens Services - CS Dir,CURRYS ONLINE,139.99,0,139.99,Equipment (including storage),Electronics shops,
Buckinghamshire Council ,31.07.2023,28.07.2023,Children's Services,Education & Childrens Services - CS Dir,AMZNMktplace,16.79,0,16.79,Awaiting Coding,Miscellaneous retail,
Buckinghamshire Council ,31.07.2023,28.07.2023,Communities,ommunities - Trust Accounts,WEXHAM MOWER SVCS,27,0,27,Seeds & Plants,Lawn & garden supply/nursery,
Buckinghamshire Council ,31.07.2023,28.07.2023,Children's Services,Education & Childrens Services - CS Dir,B&Q LTD,36,0,36,General Repairs & Maintenance,Timber & building supplies,
Buckinghamshire Council ,31.07.2023,28.07.2023,Deputy Chief Executive,AH&R- DCE Dir,PAYPAL,176.84,35.36,212.2,Miscellaneous (Other)  Expenses,Variety stores,
Buckinghamshire Council ,31.07.2023,28.07.2023,Deputy Chief Executive,AH&R- DCE Dir,PAYPAL,"1,187.95",0,"1,187.95",Miscellaneous (Other)  Expenses,Variety stores,
Buckinghamshire Council ,31.07.2023,28.07.2023,Deputy Chief Executive,AH&R- DCE Dir,PAYPAL,521.62,0,521.62,Miscellaneous (Other)  Expenses,Variety stores,
Buckinghamshire Council ,31.07.2023,28.07.2023,Deputy Chief Executive,AH&R- DCE Dir,PAYPAL,254.16,50.84,305,Miscellaneous (Other)  Expenses,Variety stores,
Buckinghamshire Council ,31.07.2023,28.07.2023,Deputy Chief Executive,AH&R- DCE Dir,PAYPAL,927.95,0,927.95,Miscellaneous (Other)  Expenses,Variety stores,
Buckinghamshire Council ,31.07.2023,28.07.2023,Children's Services,Education & Childrens Services - CS Dir,ALDI 110 775,129.48,0,129.48,Leaving Care  - Financial Assistance,Grocery stores,
Buckinghamshire Council ,31.07.2023,28.07.2023,Children's Services,Education & Childrens Services - CS Dir,TESCO STORES 2038,7,0,7,Leaving Care  - Financial Assistance,Grocery stores,
Buckinghamshire Council ,31.07.2023,28.07.2023,Adults and Health,Health & Wellbeing - Adults & Health Dir,NEALES TAXIS LTD,960,0,960,Staff Travelling Expenses,Taxicabs & limousines,
Buckinghamshire Council ,31.07.2023,28.07.2023,Children's Services,Education & Childrens Services - CS Dir,TRAVELODGE GB0000,415.09,0,415.09,Sec 17: Financial Assistance,Travelodge,
Buckinghamshire Council ,31.07.2023,28.07.2023,Adults and Health,Health & Wellbeing - Adults & Health Dir,WM MORRISONS STORE,15.2,0,15.2,Awaiting Coding,Grocery stores,
Buckinghamshire Council ,31.07.2023,28.07.2023,Communities,Culture & Leisure - Communities Dir,PSD FRAUD TEMP. CREDIT,-0.81,0,-0.81,Stationery & Office Supplies,Continuous subscriptions,
Buckinghamshire Council ,31.07.2023,27.07.2023,Children's Services,Education & Childrens Services - CS Dir,AMZNMKTPLACE,4.58,0,4.58,Consumable Supplies,Miscellaneous retail,
Buckinghamshire Council ,31.07.2023,27.07.2023,Children's Services,Education & Childrens Services - CS Dir,AMZNMKTPLACE,10.88,0,10.88,Support for Foster Carers,Miscellaneous retail,
Buckinghamshire Council ,31.07.2023,27.07.2023,Children's Services,Education & Childrens Services - CS Dir,AMZNMKTPLACE,275.45,0,275.45,Activities & General Recreation,Miscellaneous retail,
Buckinghamshire Council ,31.07.2023,27.07.2023,Deputy Chief Executive,AH&R- DCE Dir,PAYPAL,-141.7,0,-141.7,Miscellaneous (Other)  Expenses,Variety stores,
Buckinghamshire Council ,31.07.2023,27.07.2023,"Planning, Growth & Sustainability",Housing & Homelessness & Regulatory PGS,TRUSTFOLIO TOP UP,60,0,60,Land Registry Fees,Misc business services,
Buckinghamshire Council ,31.07.2023,27.07.2023,Deputy Chief Executive,Communities - DCE,AO RETAIL LIMITED,759.99,152.01,912,Other Personal Needs,Household appliance stores,
Buckinghamshire Council ,31.07.2023,27.07.2023,Deputy Chief Executive,Communities - DCE,WWW.ARGOS.CO.UK,169.96,33.99,203.95,Other Personal Needs,Department stores,
Buckinghamshire Council ,31.07.2023,27.07.2023,Deputy Chief Executive,Communities - DCE,AO RETAIL LIMITED,718.32,143.68,862,Other Personal Needs,Household appliance stores,
Buckinghamshire Council ,31.07.2023,27.07.2023,Deputy Chief Executive,Communities - DCE,ONE YMCA,30,0,30,Other Personal Needs,Misc business services,
Buckinghamshire Council ,31.07.2023,27.07.2023,Deputy Chief Executive,Communities - DCE,G GRACE & SON,54.76,2.74,57.5,Other Personal Needs,Hardware stores,
Buckinghamshire Council ,31.07.2023,27.07.2023,Adults and Health,Health & Wellbeing - Adults & Health Dir,TRAVELODGE GB0000,741.93,0,741.93,Other Short Term Support,Travelodge,
Buckinghamshire Council ,31.07.2023,27.07.2023,"Planning, Growth & Sustainability",AH&R - PGS Dir,LOCK & KEY CENTRE,18,0,18,Awaiting Coding,Misc business services,
Buckinghamshire Council ,31.07.2023,27.07.2023,"Planning, Growth & Sustainability",AH&R - PGS Dir,ARGOS  AYLESBURY GATEHOU,54.98,0,54.98,Awaiting Coding,Discount stores,
Buckinghamshire Council ,31.07.2023,27.07.2023,Resources,AH&R - Res Dir,GEN REGISTER OFFICE,14,0,14,Miscellaneous (Other)  Expenses,Government services,
Buckinghamshire Council ,31.07.2023,27.07.2023,Adults and Health,Health & Wellbeing - Adults & Health Dir,VOUCHER EXPRESS,100,0,100,Awaiting Coding,Misc business services,
Buckinghamshire Council ,31.07.2023,27.07.2023,"Planning, Growth & Sustainability",AH&R - PGS Dir,SCREWFIX DIR LTD,14.03,0,14.03,General Repairs & Maintenance,Timber & building supplies,
Buckinghamshire Council ,31.07.2023,27.07.2023,"Planning, Growth & Sustainability",AH&R - PGS Dir,LOCK & KEY CENTRE,12,0,12,Awaiting Coding,Misc business services,
Buckinghamshire Council ,31.07.2023,27.07.2023,Children's Services,Education & Childrens Services - CS Dir,WWW.ARGOS.CO.UK,240,0,240,Consumable Supplies,Department stores,
Buckinghamshire Council ,31.07.2023,27.07.2023,Communities,Culture & Leisure - Communities Dir,LANGLEY PARK CAFE,19.37,3.88,23.25,Events Expenditure,Restaurants,
Buckinghamshire Council ,31.07.2023,27.07.2023,Children's Services,Education & Childrens Services - CS Dir,HARTWELL RIDING STABLE,360,0,360,Miscellaneous (Other)  Expenses,Schools,
Buckinghamshire Council ,31.07.2023,27.07.2023,Children's Services,Education & Childrens Services - CS Dir,SUMUP  *CABS4U,160,0,160,Sec 20/31: Supp for Contact,Taxicabs & limousines,
Buckinghamshire Council ,31.07.2023,27.07.2023,Children's Services,Education & Childrens Services - CS Dir,WM MORRISONS STORE,22.47,0,22.47,General Provisions (Food),Grocery stores,
Buckinghamshire Council ,31.07.2023,27.07.2023,"Planning, Growth & Sustainability",Partnership Climate Change & Envir - PGS,RICHMOND HILL HOTEL,530,0,530,"Courses, Conference and Seminar Fees","Hotels, motels & resorts",
Buckinghamshire Council ,31.07.2023,27.07.2023,Adults and Health,Health & Wellbeing - Adults & Health Dir,TRAVELODGE GB0000,78.99,0,78.99,Other Short Term Support,Travelodge,
Buckinghamshire Council ,31.07.2023,27.07.2023,Children's Services,Education & Childrens Services - CS Dir,NEALES TAXIS LTD,500,0,500,Sec 20/31: Transport,Taxicabs & limousines,
Buckinghamshire Council ,31.07.2023,27.07.2023,Children's Services,Education & Childrens Services - CS Dir,NEALES TAXIS LTD,500,0,500,Sec 20/31: Transport,Taxicabs & limousines,
Buckinghamshire Council ,31.07.2023,27.07.2023,Children's Services,Education & Childrens Services - CS Dir,NEALES TAXIS LTD,500,0,500,Sec 20/31: Transport,Taxicabs & limousines,
Buckinghamshire Council ,31.07.2023,27.07.2023,Children's Services,Education & Childrens Services - CS Dir,NEALES TAXIS LTD,304,0,304,Sec 20/31: Transport,Taxicabs & limousines,
Buckinghamshire Council ,31.07.2023,27.07.2023,Children's Services,Education & Childrens Services - CS Dir,NEALES TAXIS LTD,500,0,500,Sec 17: Financial Assistance,Taxicabs & limousines,
Buckinghamshire Council ,31.07.2023,27.07.2023,Children's Services,Education & Childrens Services - CS Dir,BLANCOS,80,0,80,Support for Foster Carers,Restaurants,
Buckinghamshire Council ,31.07.2023,27.07.2023,Children's Services,Education & Childrens Services - CS Dir,WWW.ARGOS.CO.UK,143.95,0,143.95,Awaiting Coding,Department stores,
Buckinghamshire Council ,31.07.2023,27.07.2023,Children's Services,Education & Childrens Services - CS Dir,WWW.ARGOS.CO.UK,173.95,0,173.95,Awaiting Coding,Department stores,
Buckinghamshire Council ,31.07.2023,27.07.2023,Children's Services,Education & Childrens Services - CS Dir,WWW.ARGOS.CO.UK,-143.95,0,-143.95,Awaiting Coding,Department stores,
Buckinghamshire Council ,31.07.2023,27.07.2023,Children's Services,Education & Childrens Services - CS Dir,AMZNMKTPLACE,499,0,499,Leaving Care - Grants for Care Leavers,Miscellaneous retail,
Buckinghamshire Council ,31.07.2023,27.07.2023,Children's Services,Education & Childrens Services - CS Dir,TRAINLINE.COM,49.49,0,49.49,Leaving Care  - Financial Assistance,Passenger railways,
Buckinghamshire Council ,31.07.2023,27.07.2023,Resources,AH&R - Res Dir,LINKEDIN ADS 9271252274,94.12,0,94.12,Permanent Recruitment Costs,Advertising services,
Buckinghamshire Council ,31.07.2023,27.07.2023,Children's Services,Education & Childrens Services - CS Dir,TEST METER GROUP LTD.,67.74,0,67.74,Health & Safety Supplies & Services,Misc commercial machines equipment,
Buckinghamshire Council ,31.07.2023,27.07.2023,Children's Services,Education & Childrens Services - CS Dir,FAST KEY SERVICES LIMITED,25.76,0,25.76,Health & Safety Supplies & Services,Misc business services,
Buckinghamshire Council ,31.07.2023,27.07.2023,Children's Services,Education & Childrens Services - CS Dir,WWW.CROMARTIEHOBBYCRAF,140.86,0,140.86,Educational Equipment,Art & craft shops,
Buckinghamshire Council ,31.07.2023,27.07.2023,"Planning, Growth & Sustainability",AH&R - PGS Dir,ZETTLE_*DJANGO S SPECI,8.64,0,8.64,Subsistence,Restaurants,
Buckinghamshire Council ,31.07.2023,27.07.2023,Children's Services,Education & Childrens Services - CS Dir,AMAZON PRIME,8.99,0,8.99,Stationery & Office Supplies,Continuous subscriptions,
Buckinghamshire Council ,31.07.2023,27.07.2023,"Planning, Growth & Sustainability",Housing & Homelessness & Regulatory PGS,FEE2PAYONLINE,2.5,0,2.5,General Postage,Postal services,
Buckinghamshire Council ,31.07.2023,27.07.2023,Communities,Climate Change & Environment - Community,WWW.HIGHFIELDQUALIFICA,102.8,0,102.8,Awaiting Coding,Vocational & trade schools,
Buckinghamshire Council ,31.07.2023,27.07.2023,"Planning, Growth & Sustainability",Housing & Homelessness & Regulatory PGS,BT BUSINESS BILL,510.24,0,510.24,Telephones,Phone services,
Buckinghamshire Council ,31.07.2023,27.07.2023,"Planning, Growth & Sustainability",Leader - PGS,BCUC,111,0,111,Awaiting Coding,Colleges & universities,
Buckinghamshire Council ,31.07.2023,27.07.2023,Children's Services,Education & Childrens Services - CS Dir,TRAINLINE,179.04,0,179.04,Sec 20/31: Transport,Passenger railways,
Buckinghamshire Council ,31.07.2023,27.07.2023,Communities,Climate Change & Environment - Community,DVSA,205,0,205,DVLA Enquiries,Government services,
Buckinghamshire Council ,31.07.2023,27.07.2023,Children's Services,Education & Childrens Services - CS Dir,WWW.ARGOS.CO.UK,68,0,68,Leaving Care  - Financial Assistance,Department stores,
Buckinghamshire Council ,31.07.2023,27.07.2023,Children's Services,Education & Childrens Services - CS Dir,TRAVELODGE GB0000,155.02,0,155.02,Sec 17: Financial Assistance,Travelodge,
Buckinghamshire Council ,31.07.2023,27.07.2023,Adults and Health,Health & Wellbeing - Adults & Health Dir,WWW.NEUROBOX.CO.UK,"1,003.00",200.6,"1,203.60",Other Employees Expenses,Consultants & public relation services,
Buckinghamshire Council ,31.07.2023,27.07.2023,Deputy Chief Executive,AH&R- DCE Dir,PAYPAL,226.7,45.34,272.04,Miscellaneous (Other)  Expenses,Variety stores,
Buckinghamshire Council ,31.07.2023,27.07.2023,Deputy Chief Executive,AH&R- DCE Dir,PAYPAL,0.02,0,0.02,Miscellaneous (Other)  Expenses,Variety stores,
Buckinghamshire Council ,31.07.2023,27.07.2023,Deputy Chief Executive,AH&R- DCE Dir,PAYPAL,477.5,95.5,573,Miscellaneous (Other)  Expenses,Electronics shops,
Buckinghamshire Council ,31.07.2023,27.07.2023,Deputy Chief Executive,AH&R- DCE Dir,PAYPAL,62.1,12.42,74.52,Miscellaneous (Other)  Expenses,Variety stores,
Buckinghamshire Council ,31.07.2023,27.07.2023,Deputy Chief Executive,Communities - DCE,PAYPAL,398.95,0,398.95,Awaiting Coding,Variety stores,
Buckinghamshire Council ,31.07.2023,27.07.2023,Deputy Chief Executive,Communities - DCE,PAYPAL,85,0,85,Awaiting Coding,Variety stores,
Buckinghamshire Council ,31.07.2023,27.07.2023,Communities,Culture & Leisure - Communities Dir,TVLICENSING.CO.UK,159,0,159,Professional Services (non curriculum) - External,Consultants & public relation services,
Buckinghamshire Council ,31.07.2023,27.07.2023,Children's Services,Education & Childrens Services - CS Dir,TRAINLINE,153,0,153,Staff Travelling Expenses,Passenger railways,
Buckinghamshire Council ,31.07.2023,27.07.2023,Children's Services,Education & Childrens Services - CS Dir,JUST EAT,20.67,0,20.67,Subsistence,Fast food restaurants,
Buckinghamshire Council ,31.07.2023,27.07.2023,Deputy Chief Executive,AH&R- DCE Dir,PAYPAL,"1,119.98",0,"1,119.98",Miscellaneous (Other)  Expenses,Variety stores,
Buckinghamshire Council ,31.07.2023,27.07.2023,Deputy Chief Executive,AH&R- DCE Dir,PAYPAL,917.95,0,917.95,Miscellaneous (Other)  Expenses,Variety stores,
Buckinghamshire Council ,31.07.2023,27.07.2023,Children's Services,Education & Childrens Services - CS Dir,TRAINLINE,55.1,0,55.1,Sec 20/31: Supp for Contact,Passenger railways,
Buckinghamshire Council ,31.07.2023,26.07.2023,Communities,Transport - Communities Dir,APPLE.COM/UK,40.83,8.17,49,IT Equipment Purchase,Electronics shops,
Buckinghamshire Council ,31.07.2023,26.07.2023,"Planning, Growth & Sustainability",Climate Change & Environment - PGS,AMAZON.CO.UK,51.32,0,51.32,Stationery & Office Supplies,Direct sales companies,
Buckinghamshire Council ,31.07.2023,26.07.2023,Children's Services,Education & Childrens Services - CS Dir,AMZNMKTPLACE,11.36,0,11.36,Consumable Supplies,Miscellaneous retail,
Buckinghamshire Council ,31.07.2023,26.07.2023,Adults and Health,Health & Wellbeing - Adults & Health Dir,RIVERTIMEBOATTRUST,240,0,240,Awaiting Coding,Charitable organisations,
Buckinghamshire Council ,31.07.2023,26.07.2023,"Planning, Growth & Sustainability",Housing & Homelessness & Regulatory PGS,TRAVELODGE GB0000,128.5,0,128.5,"Courses, Conference and Seminar Fees",Travelodge,
Buckinghamshire Council ,31.07.2023,26.07.2023,Children's Services,Education & Childrens Services - CS Dir,OVO ENERGY LTD,"1,162.79",0,"1,162.79",Sec 17: Financial Assistance,Utilities,
Buckinghamshire Council ,31.07.2023,26.07.2023,Children's Services,Education & Childrens Services - CS Dir,JUNGLE RUMBLE (BRIGHTON),10.5,0,10.5,"Exp of School, Club & College Activities",Public golf courses,
Buckinghamshire Council ,31.07.2023,26.07.2023,Children's Services,Education & Childrens Services - CS Dir,LA MUCCA NERA,14,0,14,"Exp of School, Club & College Activities",Restaurants,
Buckinghamshire Council ,31.07.2023,26.07.2023,Children's Services,Education & Childrens Services - CS Dir,PIZZA EXPRESS BRIGHTON,183.17,0,183.17,"Exp of School, Club & College Activities",Restaurants,
Buckinghamshire Council ,31.07.2023,26.07.2023,Children's Services,Education & Childrens Services - CS Dir,JUNGLE RUMBLE (BRIGHTON),1.5,0,1.5,"Exp of School, Club & College Activities",Public golf courses,
Buckinghamshire Council ,31.07.2023,26.07.2023,Children's Services,Education & Childrens Services - CS Dir,TESCO STORES 2038,23.72,0,23.72,"Exp of School, Club & College Activities",Grocery stores,
Buckinghamshire Council ,31.07.2023,26.07.2023,Children's Services,Education & Childrens Services - CS Dir,SLAMBURGER* SLAMBURGER,32.3,0,32.3,"Exp of School, Club & College Activities",Misc Food stores,
Buckinghamshire Council ,31.07.2023,26.07.2023,Deputy Chief Executive,Communities - DCE,AO RETAIL LIMITED,220,44,264,Other Personal Needs,Household appliance stores,
Buckinghamshire Council ,31.07.2023,26.07.2023,Deputy Chief Executive,Communities - DCE,AO RETAIL LIMITED,220,44,264,Other Personal Needs,Household appliance stores,
Buckinghamshire Council ,31.07.2023,26.07.2023,Deputy Chief Executive,Communities - DCE,PAYPAL,-95.48,0,-95.48,Other Personal Needs,Variety stores,
Buckinghamshire Council ,31.07.2023,26.07.2023,"Planning, Growth & Sustainability",Climate Change & Environment - PGS,RINGGO PARKING,4.25,0,4.25,Staff Travelling Expenses,Car parking & garages,
Buckinghamshire Council ,31.07.2023,26.07.2023,"Planning, Growth & Sustainability",Housing & Homelessness & Regulatory PGS,BUCKINGHAMSHIRE COUNCIL,11,0,11,Burial Costs,Government services,
Buckinghamshire Council ,31.07.2023,26.07.2023,Communities,Housing & Homelessness & Regulatory Comm,VIKING OFFICE UK LIMIT,190.94,0,190.94,Stationery & Office Supplies,Stationery & office supplies,
Buckinghamshire Council ,31.07.2023,26.07.2023,Communities,Housing & Homelessness & Regulatory Comm,MOBILE FUN LTD,11.34,0,11.34,Miscellaneous (Other)  Expenses,Phone equipment & sales,
Buckinghamshire Council ,31.07.2023,26.07.2023,Resources,AH&R - Res Dir,WWW.SUFFOLK.GOV.UK,11,0,11,Miscellaneous (Other)  Expenses,Government services,
Buckinghamshire Council ,31.07.2023,26.07.2023,Children's Services,Education & Childrens Services - CS Dir,SPORTSDIRECT.COM,57.99,0,57.99,YOS - Direct Work,Sports & riding apparel shops,
Buckinghamshire Council ,31.07.2023,26.07.2023,Children's Services,Education & Childrens Services - CS Dir,SPORTSDIRECT 210,25.79,0,25.79,YOS - Direct Work,Sporting goods shops,
Buckinghamshire Council ,31.07.2023,26.07.2023,Children's Services,Education & Childrens Services - CS Dir,B&M 426 - HS AYLESBURY,19.14,0,19.14,Miscellaneous (Other)  Expenses,Misc. general merchandise,
Buckinghamshire Council ,31.07.2023,26.07.2023,Communities,Transport - Communities Dir,PARKING-CENTRAL,0.6,0,0.6,Repair and Maintenance of Equipment,Car parking & garages,
Buckinghamshire Council ,31.07.2023,26.07.2023,Communities,Culture & Leisure - Communities Dir,AMZNMKTPLACE,9.9,1.98,11.88,Administrative Equipment & Tools,Miscellaneous retail,
Buckinghamshire Council ,31.07.2023,26.07.2023,Communities,Culture & Leisure - Communities Dir,AMZNMKTPLACE,0.02,0,0.02,Administrative Equipment & Tools,Miscellaneous retail,
Buckinghamshire Council ,31.07.2023,26.07.2023,"Planning, Growth & Sustainability",AH&R - PGS Dir,PAYPAL,208.55,0,208.55,General Repairs & Maintenance,Landscape & horticultural services,
Buckinghamshire Council ,31.07.2023,26.07.2023,,,SUMUP  *CHARLIE HAIR,10,0,10,Awaiting Coding,Hairdresser and beauty shops,
Buckinghamshire Council ,31.07.2023,26.07.2023,Children's Services,Education & Childrens Services - CS Dir,AMZNMKTPLACE,26.53,0,26.53,Consumable Supplies,Miscellaneous retail,
Buckinghamshire Council ,31.07.2023,26.07.2023,Communities,Culture & Leisure - Communities Dir,TESCO STORES 2564,4.7,0,4.7,Events Expenditure,Grocery stores,
Buckinghamshire Council ,31.07.2023,26.07.2023,Deputy Chief Executive,AH&R- DCE Dir,AMAZON.CO.UK,24.98,0,24.98,IT Equipment Maintenance,Direct sales companies,
Buckinghamshire Council ,31.07.2023,26.07.2023,Children's Services,Education & Childrens Services - CS Dir,THE ELM TREE INN,166,0,166,Sec 20/31: Financial Assistance,"Hotels, motels & resorts",
Buckinghamshire Council ,31.07.2023,26.07.2023,Children's Services,Education & Childrens Services - CS Dir,EUROFLORIST UK LTD,22.98,0,22.98,Seeds & Plants,Florists,
Buckinghamshire Council ,31.07.2023,26.07.2023,Children's Services,Education & Childrens Services - CS Dir,TRAVELODGE GB0000,881.1,0,881.1,Sec 17: Accommodation,Travelodge,
Buckinghamshire Council ,31.07.2023,26.07.2023,Children's Services,Education & Childrens Services - CS Dir,TRAVELODGE GB0000,905.17,0,905.17,Sec 17: Accommodation,Travelodge,
Buckinghamshire Council ,31.07.2023,26.07.2023,Children's Services,Education & Childrens Services - CS Dir,GEN REGISTER OFFICE,38,0,38,Sec 20/31: Financial Assistance,Government services,
Buckinghamshire Council ,31.07.2023,26.07.2023,Resources,AH&R - Res Dir,WP ENGINE,28.94,0,28.94,Computer Support Services,Computer network information services,
Buckinghamshire Council ,31.07.2023,26.07.2023,Children's Services,Education & Childrens Services - CS Dir,BRIGHTON MARINE PALACE,6,0,6,Awaiting Coding,Tourist attractions and exhibitions,
Buckinghamshire Council ,31.07.2023,26.07.2023,Children's Services,Education & Childrens Services - CS Dir,BRIGHTON MARINE PALACE,5.25,0,5.25,Awaiting Coding,Tourist attractions and exhibitions,
Buckinghamshire Council ,31.07.2023,26.07.2023,Children's Services,Education & Childrens Services - CS Dir,Jungle Rumble (Brighton),15.5,0,15.5,Awaiting Coding,Public golf courses,
Buckinghamshire Council ,31.07.2023,26.07.2023,Children's Services,Education & Childrens Services - CS Dir,Jungle Rumble (Brighton),4.5,0,4.5,Awaiting Coding,Public golf courses,
Buckinghamshire Council ,31.07.2023,26.07.2023,Children's Services,Education & Childrens Services - CS Dir,Jungle Rumble (Brighton),5.5,0,5.5,Awaiting Coding,Public golf courses,
Buckinghamshire Council ,31.07.2023,26.07.2023,Children's Services,Education & Childrens Services - CS Dir,WELCOME BREAK-COBHAM,4.2,0,4.2,General Provisions (Food),Misc Food stores,
Buckinghamshire Council ,31.07.2023,26.07.2023,Children's Services,Education & Childrens Services - CS Dir,WWW.THERANGE.CO.UK,189.83,0,189.83,General Repairs & Maintenance,Misc. home furnishing,
Buckinghamshire Council ,31.07.2023,26.07.2023,Communities,Culture & Leisure - Communities Dir,EBAY O*06-10339-21679,15.99,0,15.99,Miscellaneous (Other)  Expenses,Department stores,
Buckinghamshire Council ,31.07.2023,26.07.2023,"Planning, Growth & Sustainability",AH&R - PGS Dir,AMAZON.CO.UK,22.98,0,22.98,Printing & Stationery,Direct sales companies,
Buckinghamshire Council ,31.07.2023,26.07.2023,Children's Services,Education & Childrens Services - CS Dir,AMZNMKTPLACE,66.22,0,66.22,Leaving Care - Grants for Care Leavers,Miscellaneous retail,
Buckinghamshire Council ,31.07.2023,26.07.2023,Children's Services,Education & Childrens Services - CS Dir,AMZNMKTPLACE,59.99,0,59.99,Leaving Care - Grants for Care Leavers,Miscellaneous retail,
Buckinghamshire Council ,31.07.2023,26.07.2023,Children's Services,Education & Childrens Services - CS Dir,WWW.ASOS.COM,54.4,0,54.4,Leaving Care  - Financial Assistance,Men & womens clothing shops,
Buckinghamshire Council ,31.07.2023,26.07.2023,Children's Services,Education & Childrens Services - CS Dir,AMAZON.CO.UK,69.99,0,69.99,Leaving Care - Grants for Care Leavers,Direct sales companies,
Buckinghamshire Council ,31.07.2023,26.07.2023,Communities,ommunities - Trust Accounts,BOOKER LIMITED ECOM,987.82,0,987.82,Awaiting Coding,Grocery stores,
Buckinghamshire Council ,31.07.2023,26.07.2023,Children's Services,Education & Childrens Services - CS Dir,GAR*GUE*HOLIDAYINNKENI,642.36,0,642.36,Staff Travelling Expenses,Travel agencies,
Buckinghamshire Council ,31.07.2023,26.07.2023,Children's Services,Education & Childrens Services - CS Dir,Cupp,5.2,0,5.2,Subsistence,Fast food restaurants,
Buckinghamshire Council ,31.07.2023,26.07.2023,Children's Services,Education & Childrens Services - CS Dir,HOTEL CHOCOLAT RETAIL,8.9,0,8.9,General Provisions (Food),Sweets & confectionary,
Buckinghamshire Council ,31.07.2023,26.07.2023,Children's Services,Education & Childrens Services - CS Dir,SUMUP  *GELATO GUSTO LTD,11.2,0,11.2,Subsistence,Restaurants,
Buckinghamshire Council ,31.07.2023,26.07.2023,Deputy Chief Executive,Communities - DCE,WM MORRISONS STORE,17.94,0,17.94,General Provisions (Food),Grocery stores,
Buckinghamshire Council ,31.07.2023,26.07.2023,Deputy Chief Executive,Communities - DCE,MARKS&SPENCER PLC SF,7.5,0,7.5,General Provisions (Food),Grocery stores,
Buckinghamshire Council ,31.07.2023,26.07.2023,Children's Services,Education & Childrens Services - CS Dir,TRAVELODGE GB0000,151.96,0,151.96,"Courses, Conference and Seminar Fees",Travelodge,
Buckinghamshire Council ,31.07.2023,26.07.2023,Communities,Climate Change & Environment - Community,JAYAR CAR PARTS,51.82,0,51.82,Repair & Maint of Vehicles & Plant,Automotive parts & accessories,
Buckinghamshire Council ,31.07.2023,26.07.2023,Communities,Transport - Communities Dir,SHELL 40-42 WOODSIDE ROAD,5.09,0,5.09,Petrol,Service stations,
Buckinghamshire Council ,31.07.2023,26.07.2023,Adults and Health,Health & Wellbeing - Adults & Health Dir,ISTOCK.COM,648,0,648,Miscellaneous (Other)  Expenses,"Commercial photo, art & graphic",
Buckinghamshire Council ,31.07.2023,26.07.2023,Adults and Health,Health & Wellbeing - Adults & Health Dir,AMZNMktplace,27.05,0,27.05,Awaiting Coding,Miscellaneous retail,
Buckinghamshire Council ,31.07.2023,26.07.2023,Resources,AH&R - Res Dir,NEALES TAXIS LTD,100,20,120,Sec 17: Transport,Taxicabs & limousines,
Buckinghamshire Council ,31.07.2023,26.07.2023,"Planning, Growth & Sustainability",Leader - PGS,IONOS CLOUD LTD,16.82,0,16.82,Computer Support Services,Computer network information services,
Buckinghamshire Council ,31.07.2023,26.07.2023,Deputy Chief Executive,AH&R- DCE Dir,PAYPAL,504.8,100.96,605.76,Miscellaneous (Other)  Expenses,Variety stores,
Buckinghamshire Council ,31.07.2023,26.07.2023,Deputy Chief Executive,AH&R- DCE Dir,PAYPAL,0.08,0,0.08,Miscellaneous (Other)  Expenses,Variety stores,
Buckinghamshire Council ,31.07.2023,26.07.2023,Deputy Chief Executive,AH&R- DCE Dir,PAYPAL,15,3,18,Miscellaneous (Other)  Expenses,Variety stores,
Buckinghamshire Council ,31.07.2023,26.07.2023,Deputy Chief Executive,AH&R- DCE Dir,PAYPAL,46.62,9.33,55.95,Miscellaneous (Other)  Expenses,Variety stores,
Buckinghamshire Council ,31.07.2023,26.07.2023,Deputy Chief Executive,AH&R- DCE Dir,PAYPAL,927.45,185.49,"1,112.94",Miscellaneous (Other)  Expenses,Variety stores,
Buckinghamshire Council ,31.07.2023,26.07.2023,Deputy Chief Executive,AH&R- DCE Dir,PAYPAL,0.05,0,0.05,Miscellaneous (Other)  Expenses,Variety stores,
Buckinghamshire Council ,31.07.2023,25.07.2023,Adults and Health,Health & Wellbeing - Adults & Health Dir,AMZNMKTPLACE,27.48,5.5,32.98,Stationery & Office Supplies,Miscellaneous retail,
Buckinghamshire Council ,31.07.2023,25.07.2023,Children's Services,Education & Childrens Services - CS Dir,AMAZON.CO.UK,7.99,0,7.99,Stationery & Office Supplies,Direct sales companies,
Buckinghamshire Council ,31.07.2023,25.07.2023,Children's Services,Education & Childrens Services - CS Dir,AMZNMKTPLACE,4.99,0,4.99,Other Equipment and Materials,Miscellaneous retail,
Buckinghamshire Council ,31.07.2023,25.07.2023,Children's Services,Education & Childrens Services - CS Dir,AMZNMKTPLACE,46.79,0,46.79,Activities & General Recreation,Miscellaneous retail,
Buckinghamshire Council ,31.07.2023,25.07.2023,Children's Services,Education & Childrens Services - CS Dir,AMZNMKTPLACE,28.48,0,28.48,Leaving Care - Grants for Care Leavers,Miscellaneous retail,
Buckinghamshire Council ,31.07.2023,25.07.2023,"Planning, Growth & Sustainability",Housing & Homelessness & Regulatory PGS,EPC THE HAWKHILLS,"2,214.00",0,"2,214.00",Course Fees & Post Entry Training,Colleges & universities,
Buckinghamshire Council ,31.07.2023,25.07.2023,Children's Services,Education & Childrens Services - CS Dir,A1 TAXI SERVICE,42,0,42,Sec 20/31: Transport,Taxicabs & limousines,
Buckinghamshire Council ,31.07.2023,25.07.2023,Children's Services,Education & Childrens Services - CS Dir,SAINSBURY S S/MKTS,5.75,0,5.75,"Exp of School, Club & College Activities",Grocery stores,
Buckinghamshire Council ,31.07.2023,25.07.2023,Children's Services,Education & Childrens Services - CS Dir,SAINSBURY S S/MKTS,50,0,50,"Exp of School, Club & College Activities",Grocery stores,
Buckinghamshire Council ,31.07.2023,25.07.2023,Children's Services,Education & Childrens Services - CS Dir,A1 TAXI SERVICE,40,8,48,Sec 17: Transport,Taxicabs & limousines,
Buckinghamshire Council ,31.07.2023,25.07.2023,Deputy Chief Executive,Communities - DCE,AO RETAIL LIMITED,435.83,87.17,523,Other Personal Needs,Household appliance stores,
Buckinghamshire Council ,31.07.2023,25.07.2023,Deputy Chief Executive,Communities - DCE,AO RETAIL LIMITED,764.16,152.84,917,Other Personal Needs,Household appliance stores,
Buckinghamshire Council ,31.07.2023,25.07.2023,Deputy Chief Executive,Communities - DCE,WWW.ARGOS.CO.UK,378.29,75.66,453.95,Other Personal Needs,Department stores,
Buckinghamshire Council ,31.07.2023,25.07.2023,Deputy Chief Executive,Communities - DCE,AO RETAIL LIMITED,349.16,69.84,419,Other Personal Needs,Household appliance stores,
Buckinghamshire Council ,31.07.2023,25.07.2023,Deputy Chief Executive,Communities - DCE,WWW.ARGOS.CO.UK,224.1,44.82,268.92,Other Personal Needs,Department stores,
Buckinghamshire Council ,31.07.2023,25.07.2023,Deputy Chief Executive,Communities - DCE,WWW.ARGOS.CO.UK,0.03,0,0.03,Other Personal Needs,Department stores,
Buckinghamshire Council ,31.07.2023,25.07.2023,Deputy Chief Executive,Communities - DCE,WWW.ARGOS.CO.UK,549.1,109.82,658.92,Other Personal Needs,Department stores,
Buckinghamshire Council ,31.07.2023,25.07.2023,Deputy Chief Executive,Communities - DCE,WWW.ARGOS.CO.UK,0.03,0,0.03,Other Personal Needs,Department stores,
Buckinghamshire Council ,31.07.2023,25.07.2023,Deputy Chief Executive,Communities - DCE,AO RETAIL LIMITED,199.16,39.84,239,Other Personal Needs,Household appliance stores,
Buckinghamshire Council ,31.07.2023,25.07.2023,Deputy Chief Executive,Communities - DCE,WWW.ARGOS.CO.UK,224.1,44.82,268.92,Other Personal Needs,Department stores,
Buckinghamshire Council ,31.07.2023,25.07.2023,Deputy Chief Executive,Communities - DCE,WWW.ARGOS.CO.UK,0.03,0,0.03,Other Personal Needs,Department stores,
Buckinghamshire Council ,31.07.2023,25.07.2023,Deputy Chief Executive,Communities - DCE,WWW.ARGOS.CO.UK,102.45,20.49,122.94,Other Personal Needs,Department stores,
Buckinghamshire Council ,31.07.2023,25.07.2023,Deputy Chief Executive,Communities - DCE,WWW.ARGOS.CO.UK,0.01,0,0.01,Other Personal Needs,Department stores,
Buckinghamshire Council ,31.07.2023,25.07.2023,Deputy Chief Executive,Communities - DCE,AO RETAIL LIMITED,801.66,160.34,962,Other Personal Needs,Household appliance stores,
Buckinghamshire Council ,31.07.2023,25.07.2023,Deputy Chief Executive,Communities - DCE,AO RETAIL LIMITED,701.66,140.34,842,Other Personal Needs,Household appliance stores,
Buckinghamshire Council ,31.07.2023,25.07.2023,Deputy Chief Executive,Communities - DCE,AO RETAIL LIMITED,730.8,146.16,876.96,Other Personal Needs,Household appliance stores,
Buckinghamshire Council ,31.07.2023,25.07.2023,Deputy Chief Executive,Communities - DCE,AO RETAIL LIMITED,0.04,0,0.04,Other Personal Needs,Household appliance stores,
Buckinghamshire Council ,31.07.2023,25.07.2023,Deputy Chief Executive,Communities - DCE,WWW.ARGOS.CO.UK,153.29,30.66,183.95,Other Personal Needs,Department stores,
Buckinghamshire Council ,31.07.2023,25.07.2023,"Planning, Growth & Sustainability",Climate Change & Environment - PGS,TOGATHER.COM,201.59,0,201.59,Printing & Stationery,Misc. personal services,
Buckinghamshire Council ,31.07.2023,25.07.2023,"Planning, Growth & Sustainability",Climate Change & Environment - PGS,RINGGO PARKING,1.75,0,1.75,Staff Travelling Expenses,Car parking & garages,
Buckinghamshire Council ,31.07.2023,25.07.2023,Deputy Chief Executive,Leader - DCE,GREGGS PLC,5,0,5,General Provisions (Food),Restaurants,
Buckinghamshire Council ,31.07.2023,25.07.2023,"Planning, Growth & Sustainability",AH&R - PGS Dir,BES LTD,90.64,0,90.64,General Repairs & Maintenance,Plumbing & heating equipment & supplies,
Buckinghamshire Council ,31.07.2023,25.07.2023,"Planning, Growth & Sustainability",Housing & Homelessness & Regulatory PGS,LAND REGISTRY ECOM CCC,3,0,3,Homelessness,Government services,
Buckinghamshire Council ,31.07.2023,25.07.2023,"Planning, Growth & Sustainability",Housing & Homelessness & Regulatory PGS,LAND REGISTRY ECOM CCC,3,0,3,Homelessness,Government services,
Buckinghamshire Council ,31.07.2023,25.07.2023,"Planning, Growth & Sustainability",Housing & Homelessness & Regulatory PGS,LAND REGISTRY ECOM CCC,3,0,3,Homelessness,Government services,
Buckinghamshire Council ,31.07.2023,25.07.2023,Communities,Transport - Communities Dir,AMZNMKTPLACE,56.26,0,56.26,Vehicle Hire,Miscellaneous retail,
Buckinghamshire Council ,31.07.2023,25.07.2023,Communities,Transport - Communities Dir,SP 4BESTROAD,56,0,56,Vehicle Hire,Automotive parts & accessories,
Buckinghamshire Council ,31.07.2023,25.07.2023,Communities,Culture & Leisure - Communities Dir,SAINSBURYS S/MKTS,8.67,0,8.67,Events Expenditure,Grocery stores,
Buckinghamshire Council ,31.07.2023,25.07.2023,Communities,artnerships - Communities,AMAZON.CO.UK,100,0,100,Equipment,Direct sales companies,
Buckinghamshire Council ,31.07.2023,25.07.2023,Children's Services,Education & Childrens Services - CS Dir,BT.COM CONSUMER BP,29.73,0,29.73,Accomodation Costs,Phone services,
Buckinghamshire Council ,31.07.2023,25.07.2023,"Planning, Growth & Sustainability",AH&R - PGS Dir,SAINSBURYS - AYLESBURY,4,0,4,Other Equipment and Materials,Car washes,
Buckinghamshire Council ,31.07.2023,25.07.2023,Children's Services,Education & Childrens Services - CS Dir,AELP.ORG.UK,69,13.8,82.8,"Courses, Conference and Seminar Fees",Schools,
Buckinghamshire Council ,31.07.2023,25.07.2023,Children's Services,Education & Childrens Services - CS Dir,A1 TAXILINE,18,0,18,Staff Travelling Expenses,Taxicabs & limousines,
Buckinghamshire Council ,31.07.2023,25.07.2023,Children's Services,Education & Childrens Services - CS Dir,ARGOS CHESHAM,50,0,50,Consumable Supplies,Discount stores,
Buckinghamshire Council ,31.07.2023,25.07.2023,Communities,Culture & Leisure - Communities Dir,AMZNMKTPLACE,17.47,3.5,20.97,Events Expenditure,Miscellaneous retail,
Buckinghamshire Council ,31.07.2023,25.07.2023,Deputy Chief Executive,Communities - DCE,AMZNMKTPLACE,5.99,0,5.99,Administrative Equipment & Tools,Miscellaneous retail,
Buckinghamshire Council ,31.07.2023,25.07.2023,Communities,Culture & Leisure - Communities Dir,FACEBK D4SFZP7JB2,40,0,40,Advertising,Advertising services,
Buckinghamshire Council ,31.07.2023,25.07.2023,Children's Services,Education & Childrens Services - CS Dir,BUCKINGHAMSHIRE CNCL,11,0,11,Sec 20/31: Specialist Services,Government services,
Buckinghamshire Council ,31.07.2023,25.07.2023,Children's Services,Education & Childrens Services - CS Dir,B&M 426 - HS AYLESBURY,14.99,0,14.99,Other Equipment and Materials,Misc. general merchandise,
Buckinghamshire Council ,31.07.2023,25.07.2023,Children's Services,Education & Childrens Services - CS Dir,CARD FACTORY,6.96,0,6.96,Other Equipment and Materials,"Gift, card & novelty shops",
Buckinghamshire Council ,31.07.2023,25.07.2023,Children's Services,Education & Childrens Services - CS Dir,AMAZON.CO.UK,23,0,23,Stationery & Office Supplies,Direct sales companies,
Buckinghamshire Council ,31.07.2023,25.07.2023,Adults and Health,Health & Wellbeing - Adults & Health Dir,TRAVELODGE GB0000,220.98,0,220.98,Other Short Term Support,Travelodge,
Buckinghamshire Council ,31.07.2023,25.07.2023,Children's Services,Education & Childrens Services - CS Dir,REZUMEUKLTD,172.75,0,172.75,Professional Services (non curriculum) - External,Consultants & public relation services,
Buckinghamshire Council ,31.07.2023,25.07.2023,Children's Services,Education & Childrens Services - CS Dir,ASDA  STORES 4396,10.25,0,10.25,General Provisions (Food),Grocery stores,
Buckinghamshire Council ,31.07.2023,25.07.2023,Children's Services,Education & Childrens Services - CS Dir,COSTA COFFEE BEDGROVE,4,0,4,Subsistence,Fast food restaurants,
Buckinghamshire Council ,31.07.2023,25.07.2023,Resources,AH&R - Res Dir,C2E860700432Z UKVI,"3,199.00",0,"3,199.00",Professional Services (non curriculum) - External,Government services,
Buckinghamshire Council ,31.07.2023,25.07.2023,Communities,artnerships - Communities,AMZNMktplace,68,0,68,Awaiting Coding,Miscellaneous retail,
Buckinghamshire Council ,31.07.2023,25.07.2023,Children's Services,Education & Childrens Services - CS Dir,TESCO STORES 2038,353.51,0,353.51,Activities & General Recreation,Grocery stores,
Buckinghamshire Council ,31.07.2023,25.07.2023,Children's Services,Education & Childrens Services - CS Dir,WWW.ARGOS.CO.UK,41.88,0,41.88,Leaving Care - Grants for Care Leavers,Department stores,
Buckinghamshire Council ,31.07.2023,25.07.2023,Children's Services,Education & Childrens Services - CS Dir,REES FOUNDATION,60,0,60,Sec 20/31: Specialist Services,Charitable organisations,
Buckinghamshire Council ,31.07.2023,25.07.2023,Children's Services,Education & Childrens Services - CS Dir,AMZNMKTPLACE,34.49,0,34.49,Leaving Care - Grants for Care Leavers,Miscellaneous retail,
Buckinghamshire Council ,31.07.2023,25.07.2023,Children's Services,Education & Childrens Services - CS Dir,AMZNMKTPLACE,9.5,0,9.5,Leaving Care - Grants for Care Leavers,Miscellaneous retail,
Buckinghamshire Council ,31.07.2023,25.07.2023,Children's Services,Education & Childrens Services - CS Dir,AMZNMKTPLACE,11.85,0,11.85,Leaving Care - Grants for Care Leavers,Miscellaneous retail,
Buckinghamshire Council ,31.07.2023,25.07.2023,Children's Services,Education & Childrens Services - CS Dir,CURRYS ONLINE,588,0,588,Leaving Care - Grants for Care Leavers,Electronics shops,
Buckinghamshire Council ,31.07.2023,25.07.2023,Children's Services,Education & Childrens Services - CS Dir,WWW.BLOOMANDWILD.COM,52,0,52,Equipment (including storage),Florists,
Buckinghamshire Council ,31.07.2023,25.07.2023,Communities,ommunities - Trust Accounts,SAINSBURY'S S/MKT,10,0,10,Awaiting Coding,Grocery stores,
Buckinghamshire Council ,31.07.2023,25.07.2023,Children's Services,Education & Childrens Services - CS Dir,HAVEN,48,0,48,Activities & General Recreation,Sport & recreational camps,
Buckinghamshire Council ,31.07.2023,25.07.2023,"Planning, Growth & Sustainability",Housing & Homelessness & Regulatory PGS,MARKS&SPENCER PLC SF,3.35,0,3.35,Other General Office Expenses,Grocery stores,
Buckinghamshire Council ,31.07.2023,25.07.2023,Deputy Chief Executive,Communities - DCE,SAINSBURY S S/MKTS,14.5,0,14.5,General Provisions (Food),Grocery stores,
Buckinghamshire Council ,31.07.2023,25.07.2023,Communities,Climate Change & Environment - Community,CH MORGAN,10.06,0,10.06,Repair & Maint of Vehicles & Plant,"Architectural, engineering & surveying",
Buckinghamshire Council ,31.07.2023,25.07.2023,Communities,Transport - Communities Dir,CHARGEMASTER LIMITED,4.42,0,4.42,Awaiting Coding,,
Buckinghamshire Council ,31.07.2023,25.07.2023,Communities,ommunities - Trading Accounts,SMART PARKING LTD,60,0,60,Vehicle Repair Recharge,Car parking & garages,
Buckinghamshire Council ,31.07.2023,25.07.2023,Deputy Chief Executive,AH&R- DCE Dir,PAYPAL,199.95,39.99,239.94,Miscellaneous (Other)  Expenses,Variety stores,
Buckinghamshire Council ,31.07.2023,25.07.2023,Deputy Chief Executive,AH&R- DCE Dir,PAYPAL,0.05,0,0.05,Miscellaneous (Other)  Expenses,Variety stores,
Buckinghamshire Council ,31.07.2023,25.07.2023,Deputy Chief Executive,AH&R- DCE Dir,PAYPAL,190.79,38.16,228.95,Miscellaneous (Other)  Expenses,Variety stores,
Buckinghamshire Council ,31.07.2023,24.07.2023,Children's Services,Education & Childrens Services - CS Dir,DISPUTE REFUND REVERSAL,10,0,10,Staff Travelling Expenses,Taxicabs & limousines,
Buckinghamshire Council ,31.07.2023,24.07.2023,Children's Services,Education & Childrens Services - CS Dir,AMZNMktplace,13.99,0,13.99,Awaiting Coding,Miscellaneous retail,
Buckinghamshire Council ,31.07.2023,24.07.2023,Communities,Transport - Communities Dir,PREMIER INN,231.65,46.33,277.98,"Courses, Conference and Seminar Fees",Premier Inn,
Buckinghamshire Council ,31.07.2023,24.07.2023,Communities,Transport - Communities Dir,PREMIER INN,344.97,69,413.97,"Courses, Conference and Seminar Fees",Premier Inn,
Buckinghamshire Council ,31.07.2023,24.07.2023,Communities,Transport - Communities Dir,PREMIER INN,344.97,69,413.97,"Courses, Conference and Seminar Fees",Premier Inn,
Buckinghamshire Council ,31.07.2023,24.07.2023,Children's Services,Education & Childrens Services - CS Dir,CANVA* I03856-16124124,99.99,0,99.99,Computer Software Licences & Purchase,Photographic studios,
Buckinghamshire Council ,31.07.2023,24.07.2023,Children's Services,Education & Childrens Services - CS Dir,TESCO STORES 2038,187.29,0,187.29,Awaiting Coding,Grocery stores,
Buckinghamshire Council ,31.07.2023,24.07.2023,Deputy Chief Executive,Communities - DCE,AO RETAIL LIMITED,274.16,54.84,329,Other Personal Needs,Household appliance stores,
Buckinghamshire Council ,31.07.2023,24.07.2023,Deputy Chief Executive,Communities - DCE,AO RETAIL LIMITED,664.2,132.84,797.04,Other Personal Needs,Household appliance stores,
Buckinghamshire Council ,31.07.2023,24.07.2023,Deputy Chief Executive,Communities - DCE,AO RETAIL LIMITED,79.96,0,79.96,Other Personal Needs,Household appliance stores,
Buckinghamshire Council ,31.07.2023,24.07.2023,Deputy Chief Executive,Communities - DCE,AO RETAIL LIMITED,232.5,46.5,279,Other Personal Needs,Household appliance stores,
Buckinghamshire Council ,31.07.2023,24.07.2023,Children's Services,Education & Childrens Services - CS Dir,A1 TAXI SERVICE,192,38.4,230.4,Sec 20/31: Transport,Taxicabs & limousines,
Buckinghamshire Council ,31.07.2023,24.07.2023,"Planning, Growth & Sustainability",AH&R - PGS Dir,ASDA SUPERSTORE,14.5,0,14.5,General Provisions (Food),Grocery stores,
Buckinghamshire Council ,31.07.2023,24.07.2023,Adults and Health,Health & Wellbeing - Adults & Health Dir,WAITROSE 177,4.35,0,4.35,General Provisions (Food),Grocery stores,
Buckinghamshire Council ,31.07.2023,24.07.2023,Communities,Transport - Communities Dir,PARKING-KINGSMD,1.1,0,1.1,Repair and Maintenance of Equipment,Car parking & garages,
Buckinghamshire Council ,31.07.2023,24.07.2023,Adults and Health,Health & Wellbeing - Adults & Health Dir,TESCO STORES 5135,188.23,0,188.23,General Provisions (Food),Grocery stores,
Buckinghamshire Council ,31.07.2023,24.07.2023,Communities,Housing & Homelessness & Regulatory Comm,SHELL HAZLEMERE,35.59,0,35.59,Maintenance of Grounds,Service stations,
Buckinghamshire Council ,31.07.2023,24.07.2023,Children's Services,Education & Childrens Services - CS Dir,BT BUSINESS BILL,61.46,0,61.46,Telephones,Phone services,
Buckinghamshire Council ,31.07.2023,24.07.2023,"Planning, Growth & Sustainability",AH&R - PGS Dir,TESCO STORES 2020,11.6,0,11.6,Purchase.of Refreshments and Food,Grocery stores,
Buckinghamshire Council ,31.07.2023,24.07.2023,Children's Services,Education & Childrens Services - CS Dir,AMZNMKTPLACE,98,0,98,Consumable Supplies,Miscellaneous retail,
Buckinghamshire Council ,31.07.2023,24.07.2023,Deputy Chief Executive,Communities - DCE,WWW.BUCKINGHAMSHIRE.GOV,21,0,21,Administrative Equipment & Tools,Government services,
Buckinghamshire Council ,31.07.2023,24.07.2023,Children's Services,Education & Childrens Services - CS Dir,AMZ,-17.66,0,-17.66,IT Equipment Purchase,Direct sales companies,
Buckinghamshire Council ,31.07.2023,24.07.2023,Children's Services,Education & Childrens Services - CS Dir,AMZ,-39.24,0,-39.24,IT Equipment Purchase,Direct sales companies,
Buckinghamshire Council ,31.07.2023,24.07.2023,Communities,Transport - Communities Dir,EURO CAR PARTS P,45.99,0,45.99,Vehicle Hire,Automotive parts & accessories,
Buckinghamshire Council ,31.07.2023,24.07.2023,Children's Services,Education & Childrens Services - CS Dir,AO RETAIL LIMITED,589,0,589,Other Equipment and Materials,Household appliance stores,
Buckinghamshire Council ,31.07.2023,24.07.2023,Children's Services,Education & Childrens Services - CS Dir,AMZNMKTPLACE,14.99,0,14.99,Other Equipment and Materials,Miscellaneous retail,
Buckinghamshire Council ,31.07.2023,24.07.2023,Children's Services,Education & Childrens Services - CS Dir,ASDA GROCERIES ONLINE,49.32,0,49.32,General Provisions (Food),Grocery stores,
Buckinghamshire Council ,31.07.2023,24.07.2023,Children's Services,Education & Childrens Services - CS Dir,ACCESS HEMEL HEMPSTEAD,14,0,14,Sec 20/31: Financial Assistance,Warehousing,
Buckinghamshire Council ,31.07.2023,24.07.2023,Children's Services,Education & Childrens Services - CS Dir,ACCESS HEMEL HEMPSTEAD,76,0,76,Sec 20/31: Financial Assistance,Warehousing,
Buckinghamshire Council ,31.07.2023,24.07.2023,Children's Services,Education & Childrens Services - CS Dir,IKEA LTD SHOP ONLINE,185,0,185,Support for Foster Carers,Furniture & home furnishing,
Buckinghamshire Council ,31.07.2023,24.07.2023,Children's Services,Education & Childrens Services - CS Dir,TESCO STORES 6747,9.5,0,9.5,General Provisions (Food),Grocery stores,
Buckinghamshire Council ,31.07.2023,24.07.2023,Communities,artnerships - Communities,AMZNMktplace,26.95,0,26.95,Awaiting Coding,Miscellaneous retail,
Buckinghamshire Council ,31.07.2023,24.07.2023,Children's Services,Education & Childrens Services - CS Dir,TESCO STORES 2038,67.5,0,67.5,Consumable Supplies,Grocery stores,
Buckinghamshire Council ,31.07.2023,24.07.2023,Children's Services,Education & Childrens Services - CS Dir,GENERATION FLOORING,412.6,0,412.6,Leaving Care - Grants for Care Leavers,Floor covering stores,
Buckinghamshire Council ,31.07.2023,24.07.2023,Children's Services,Education & Childrens Services - CS Dir,AMZNMKTPLACE,115.53,0,115.53,Leaving Care - Grants for Care Leavers,Miscellaneous retail,
Buckinghamshire Council ,31.07.2023,24.07.2023,Communities,ommunities - Trust Accounts,SUMUP  *FC PO LTD,10,0,10,Awaiting Coding,Miscellaneous retail,
Buckinghamshire Council ,31.07.2023,24.07.2023,Communities,ommunities - Trust Accounts,POUNDLAND LTD - 2081,29.8,0,29.8,Awaiting Coding,Discount stores,
Buckinghamshire Council ,31.07.2023,24.07.2023,Communities,ommunities - Trust Accounts,POST OFFICE COUNTER,6.9,0,6.9,General Postage,Postal services,
Buckinghamshire Council ,31.07.2023,24.07.2023,Deputy Chief Executive,AH&R- DCE Dir,SUMUP  *KINGS CHURCH,162,0,162,Miscellaneous (Other)  Expenses,Religious organisations,
Buckinghamshire Council ,31.07.2023,24.07.2023,Deputy Chief Executive,AH&R- DCE Dir,CURRYS ONLINE,573.33,114.67,688,Miscellaneous (Other)  Expenses,Electronics shops,
Buckinghamshire Council ,31.07.2023,24.07.2023,Children's Services,Education & Childrens Services - CS Dir,WWW.EVERYONEACTIVE.COM,5,0,5,Activities & General Recreation,Sport & recreational camps,
Buckinghamshire Council ,31.07.2023,24.07.2023,Children's Services,Education & Childrens Services - CS Dir,ESQUIRES COFFEE BUCKIN,5.5,0,5.5,Subsistence,Fast food restaurants,
Buckinghamshire Council ,31.07.2023,24.07.2023,Adults and Health,Health & Wellbeing - Adults & Health Dir,TESCO STORES 5135,99.85,0,99.85,Awaiting Coding,Grocery stores,
Buckinghamshire Council ,31.07.2023,24.07.2023,Children's Services,Education & Childrens Services - CS Dir,TESCO GIFT CARD,20,0,20,Sec 20/31: Financial Assistance,Grocery stores,
Buckinghamshire Council ,31.07.2023,24.07.2023,Communities,Transport - Communities Dir,ROBERT DYAS AMERSHAM,4.98,0,4.98,Awaiting Coding,Hardware stores,
Buckinghamshire Council ,31.07.2023,24.07.2023,Communities,Transport - Communities Dir,CJ'S LOCKSMITHS,13.9,0,13.9,Awaiting Coding,Misc. repair services,
Buckinghamshire Council ,31.07.2023,24.07.2023,Communities,Culture & Leisure - Communities Dir,TVLICENSING.CO.UK,159,0,159,Administrative Equipment & Tools,Consultants & public relation services,
Buckinghamshire Council ,31.07.2023,24.07.2023,Deputy Chief Executive,AH&R- DCE Dir,PAYPAL,"1,083.95",0,"1,083.95",Miscellaneous (Other)  Expenses,Variety stores,
Buckinghamshire Council ,31.07.2023,24.07.2023,Deputy Chief Executive,AH&R- DCE Dir,PAYPAL,223.33,44.67,268,Miscellaneous (Other)  Expenses,Variety stores,
Buckinghamshire Council ,31.07.2023,24.07.2023,Deputy Chief Executive,AH&R- DCE Dir,PAYPAL,764.17,152.83,917,Miscellaneous (Other)  Expenses,Electronics shops,
Buckinghamshire Council ,31.07.2023,24.07.2023,Deputy Chief Executive,AH&R- DCE Dir,PAYPAL,580.58,116.12,696.7,Miscellaneous (Other)  Expenses,Variety stores,
Buckinghamshire Council ,31.07.2023,24.07.2023,Deputy Chief Executive,AH&R- DCE Dir,PAYPAL,785,157,942,Miscellaneous (Other)  Expenses,Electronics shops,
Buckinghamshire Council ,31.07.2023,24.07.2023,Deputy Chief Executive,AH&R- DCE Dir,PAYPAL,692.95,0,692.95,Miscellaneous (Other)  Expenses,Variety stores,
Buckinghamshire Council ,31.07.2023,24.07.2023,Deputy Chief Executive,AH&R- DCE Dir,PAYPAL,439.96,87.99,527.95,Miscellaneous (Other)  Expenses,Variety stores,
Buckinghamshire Council ,31.07.2023,24.07.2023,Deputy Chief Executive,AH&R- DCE Dir,PAYPAL,378.12,75.63,453.75,Miscellaneous (Other)  Expenses,Variety stores,
Buckinghamshire Council ,31.07.2023,24.07.2023,Deputy Chief Executive,AH&R- DCE Dir,PAYPAL,833.22,166.64,999.86,Miscellaneous (Other)  Expenses,Variety stores,
Buckinghamshire Council ,31.07.2023,24.07.2023,Deputy Chief Executive,Communities - DCE,PAYPAL,230.75,46.15,276.9,Other Personal Needs,Variety stores,
Buckinghamshire Council ,31.07.2023,24.07.2023,Deputy Chief Executive,Communities - DCE,PAYPAL,0.05,0,0.05,Other Personal Needs,Variety stores,
Buckinghamshire Council ,31.07.2023,24.07.2023,Deputy Chief Executive,Communities - DCE,PAYPAL,203.95,0,203.95,Other Personal Needs,Variety stores,
Buckinghamshire Council ,31.07.2023,24.07.2023,Deputy Chief Executive,Communities - DCE,PAYPAL,40,8,48,Other Personal Needs,Variety stores,
Buckinghamshire Council ,31.07.2023,24.07.2023,Deputy Chief Executive,Communities - DCE,PAYPAL,239.16,47.84,287,Other Personal Needs,Variety stores,
Buckinghamshire Council ,31.07.2023,24.07.2023,Deputy Chief Executive,Leader - DCE,COUNTYCOUNCILSNETWORK,"1,680.00",0,"1,680.00","Courses, Conference and Seminar Fees",Membership organisations,
Buckinghamshire Council ,31.07.2023,23.07.2023,Communities,Culture & Leisure - Communities Dir,AMZNMktplace,40,0,40,Awaiting Coding,Miscellaneous retail,
Buckinghamshire Council ,31.07.2023,23.07.2023,Adults and Health,Communities - Adults & Health,AMZNMKTPLACE,12.48,2.5,14.98,Miscellaneous (Other)  Expenses,Miscellaneous retail,
Buckinghamshire Council ,31.07.2023,23.07.2023,Communities,Climate Change & Environment - Community,AMZNMKTPLACE,187.83,0,187.83,Equipment,Miscellaneous retail,
Buckinghamshire Council ,31.07.2023,23.07.2023,Communities,artnerships - Communities,AMZNMktplace,4.89,0,4.89,Awaiting Coding,Miscellaneous retail,
Buckinghamshire Council ,31.07.2023,23.07.2023,Deputy Chief Executive,Leader - DCE,TIMES NEWSPAPERS LTD,26,0,26,"Books, Records, Films & Oth Publications","Books, periodicals & newspapers",
Buckinghamshire Council ,31.07.2023,23.07.2023,Deputy Chief Executive,Leader - DCE,TELEGRAPH SUBSCRIPTION,0.5,0,0.5,Stationery & Office Supplies,Continuous subscriptions,
Buckinghamshire Council ,31.07.2023,23.07.2023,Resources,AH&R - Res Dir,TEAMGANTT,47.4,0,47.4,Computer Consumables,"Computers, peripherals & software",
Buckinghamshire Council ,31.07.2023,23.07.2023,Deputy Chief Executive,Communities - DCE,AMZNMKTPLACE,13.99,0,13.99,Administrative Equipment & Tools,Miscellaneous retail,
Buckinghamshire Council ,31.07.2023,23.07.2023,Deputy Chief Executive,Communities - DCE,AMZNMKTPLACE,30.24,0,30.24,Administrative Equipment & Tools,Miscellaneous retail,
Buckinghamshire Council ,31.07.2023,23.07.2023,Adults and Health,Health & Wellbeing - Adults & Health Dir,AMZNMKTPLACE,39.04,0,39.04,Other Equipment and Materials,Miscellaneous retail,
Buckinghamshire Council ,31.07.2023,22.07.2023,Communities,Transport - Communities Dir,CHESHAM STAR YARD,0.8,0,0.8,Repair and Maintenance of Equipment,Car parking & garages,
Buckinghamshire Council ,31.07.2023,22.07.2023,Communities,Transport - Communities Dir,CHESHAM WATER MEADOW,1.5,0,1.5,Repair and Maintenance of Equipment,Car parking & garages,
Buckinghamshire Council ,31.07.2023,22.07.2023,Communities,Transport - Communities Dir,CHESHAM CATLINGS,0.5,0,0.5,Repair and Maintenance of Equipment,Car parking & garages,
Buckinghamshire Council ,31.07.2023,22.07.2023,Communities,Climate Change & Environment - Community,ANC,69.99,0,69.99,Stationery & Office Supplies,Continuous subscriptions,
Buckinghamshire Council ,31.07.2023,22.07.2023,Resources,AH&R - Res Dir,LINKEDIN ADS,107.6,0,107.6,Permanent Recruitment Costs,Advertising services,
Buckinghamshire Council ,31.07.2023,22.07.2023,Deputy Chief Executive,Communities - DCE,ASDA SUPERSTORE,14.75,0,14.75,General Provisions (Food),Grocery stores,
Buckinghamshire Council ,31.07.2023,21.07.2023,Communities,Transport - Communities Dir,APPLE.COM/UK,40.83,8.17,49,IT Equipment Purchase,Electronics shops,
Buckinghamshire Council ,31.07.2023,21.07.2023,"Planning, Growth & Sustainability",Housing & Homelessness & Regulatory PGS,AMZNMKTPLACE,41.44,0,41.44,Printing & Stationery,Miscellaneous retail,
Buckinghamshire Council ,31.07.2023,21.07.2023,Communities,Culture & Leisure - Communities Dir,AMZNMKTPLACE,39.8,7.96,47.76,Events Expenditure,Miscellaneous retail,
Buckinghamshire Council ,31.07.2023,21.07.2023,Communities,Culture & Leisure - Communities Dir,AMZNMKTPLACE,0.02,0,0.02,Events Expenditure,Miscellaneous retail,
Buckinghamshire Council ,31.07.2023,21.07.2023,Children's Services,Education & Childrens Services - CS Dir,WWW.PLANNING.CO,526,0,526,Professional Services (non curriculum) - External,Misc business services,
Buckinghamshire Council ,31.07.2023,21.07.2023,Children's Services,Education & Childrens Services - CS Dir,HM PASSPORT OFFICE,53.5,0,53.5,Sec 20/31: Specialist Services,Government services,
Buckinghamshire Council ,31.07.2023,21.07.2023,Children's Services,Education & Childrens Services - CS Dir,BKG*HOTEL AT BOOKING.C,116.76,0,116.76,Other Employees Expenses,Travel agencies,
Buckinghamshire Council ,31.07.2023,21.07.2023,Children's Services,Education & Childrens Services - CS Dir,BKG*HOTEL AT BOOKING.C,100,0,100,Other Employees Expenses,Travel agencies,
Buckinghamshire Council ,31.07.2023,21.07.2023,Children's Services,Education & Childrens Services - CS Dir,TRAINLINE.COM,-3.3,0,-3.3,Staff Travelling Expenses,Passenger railways,
Buckinghamshire Council ,31.07.2023,21.07.2023,Deputy Chief Executive,Communities - DCE,AO RETAIL LIMITED,220,44,264,Other Personal Needs,Household appliance stores,
Buckinghamshire Council ,31.07.2023,21.07.2023,Deputy Chief Executive,Communities - DCE,WWW.ARGOS.CO.UK,386.6,77.32,463.92,Other Personal Needs,Department stores,
Buckinghamshire Council ,31.07.2023,21.07.2023,Deputy Chief Executive,Communities - DCE,WWW.ARGOS.CO.UK,0.03,0,0.03,Other Personal Needs,Department stores,
Buckinghamshire Council ,31.07.2023,21.07.2023,Deputy Chief Executive,Communities - DCE,AO RETAIL LIMITED,220,44,264,Other Personal Needs,Household appliance stores,
Buckinghamshire Council ,31.07.2023,21.07.2023,Deputy Chief Executive,Communities - DCE,AO RETAIL LIMITED,220,44,264,Other Personal Needs,Household appliance stores,
Buckinghamshire Council ,31.07.2023,21.07.2023,Deputy Chief Executive,Communities - DCE,AO RETAIL LIMITED,220,44,264,Other Personal Needs,Household appliance stores,
Buckinghamshire Council ,31.07.2023,21.07.2023,Deputy Chief Executive,Communities - DCE,AO RETAIL LIMITED,767.49,153.51,921,Other Personal Needs,Household appliance stores,
Buckinghamshire Council ,31.07.2023,21.07.2023,Deputy Chief Executive,Communities - DCE,AO RETAIL LIMITED,349.16,69.84,419,Other Personal Needs,Household appliance stores,
Buckinghamshire Council ,31.07.2023,21.07.2023,Deputy Chief Executive,Communities - DCE,AO RETAIL LIMITED,658,0,658,Other Personal Needs,Household appliance stores,
Buckinghamshire Council ,31.07.2023,21.07.2023,Deputy Chief Executive,Communities - DCE,WWW.ARGOS.CO.UK,-112,0,-112,Other Personal Needs,Department stores,
Buckinghamshire Council ,31.07.2023,21.07.2023,Children's Services,Education & Childrens Services - CS Dir,TRAVELODGE GB0000,67.1,13.42,80.52,Staff Travelling Expenses,Travelodge,
Buckinghamshire Council ,31.07.2023,21.07.2023,Children's Services,Education & Childrens Services - CS Dir,TRAVELODGE GB0000,0.04,0,0.04,Staff Travelling Expenses,Travelodge,
Buckinghamshire Council ,31.07.2023,21.07.2023,"Planning, Growth & Sustainability",AH&R - PGS Dir,ISAAC LORD LIMITED,12.29,0,12.29,Other Equipment and Materials,Hardware stores,
Buckinghamshire Council ,31.07.2023,21.07.2023,"Planning, Growth & Sustainability",AH&R - PGS Dir,TOOLSTATION LTD,29.58,0,29.58,Other Equipment and Materials,Timber & building supplies,
Buckinghamshire Council ,31.07.2023,21.07.2023,Children's Services,Education & Childrens Services - CS Dir,NHSBSA PPC MOTO PMT,100,0,100,YOS - Direct Work,Government services,
Buckinghamshire Council ,31.07.2023,21.07.2023,Adults and Health,Health & Wellbeing - Adults & Health Dir,AMAZON.CO.UK,9.07,1.82,10.89,Stationery & Office Supplies,Direct sales companies,
Buckinghamshire Council ,31.07.2023,21.07.2023,Adults and Health,Health & Wellbeing - Adults & Health Dir,B&M 426 - HS AYLESBURY,19.07,0,19.07,Other Supplies,Misc. general merchandise,
Buckinghamshire Council ,31.07.2023,21.07.2023,Children's Services,Education & Childrens Services - CS Dir,SIREN FILMS LTD.,99,19.8,118.8,"Books, Records, Films & Oth Publications",,
Buckinghamshire Council ,31.07.2023,21.07.2023,Deputy Chief Executive,AH&R- DCE Dir,AMAZON.CO.UK,59.9,0,59.9,Other Personal Needs,Direct sales companies,
Buckinghamshire Council ,31.07.2023,21.07.2023,Children's Services,Education & Childrens Services - CS Dir,AMZNMKTPLACE,26.91,0,26.91,General Repairs & Maintenance,Miscellaneous retail,
Buckinghamshire Council ,31.07.2023,21.07.2023,Communities,Climate Change & Environment - Community,SAFE FENCE,569.87,0,569.87,Equipment,Home supply warehouse stores,
Buckinghamshire Council ,31.07.2023,21.07.2023,Communities,Culture & Leisure - Communities Dir,AMZNMKTPLACE,10.82,2.17,12.99,Events Expenditure,Miscellaneous retail,
Buckinghamshire Council ,31.07.2023,21.07.2023,Communities,Culture & Leisure - Communities Dir,AMZNMKTPLACE,18.7,3.74,22.44,Events Expenditure,Miscellaneous retail,
Buckinghamshire Council ,31.07.2023,21.07.2023,Communities,Culture & Leisure - Communities Dir,AMZNMKTPLACE,0.14,0,0.14,Events Expenditure,Miscellaneous retail,
Buckinghamshire Council ,31.07.2023,21.07.2023,Communities,Culture & Leisure - Communities Dir,AMZNMKTPLACE,37.12,7.43,44.55,Events Expenditure,Miscellaneous retail,
Buckinghamshire Council ,31.07.2023,21.07.2023,Children's Services,Education & Childrens Services - CS Dir,AMZNMKTPLACE,38.26,0,38.26,Miscellaneous (Other)  Expenses,Miscellaneous retail,
Buckinghamshire Council ,31.07.2023,21.07.2023,Children's Services,Education & Childrens Services - CS Dir,KELSEY SUBSCRIPTION,79.99,0,79.99,"Books, Records, Films & Oth Publications","Books, periodicals & newspapers",
Buckinghamshire Council ,31.07.2023,21.07.2023,Communities,Transport - Communities Dir,NATIONAL WINDSCREENS,700.2,0,700.2,Vehicle Hire,Automotive parts & accessories,
Buckinghamshire Council ,31.07.2023,21.07.2023,Children's Services,Education & Childrens Services - CS Dir,AMZNMKTPLACE,47.07,0,47.07,Other Equipment and Materials,Miscellaneous retail,
Buckinghamshire Council ,31.07.2023,21.07.2023,Children's Services,Education & Childrens Services - CS Dir,WWW.ANYVAN.COM,109,0,109,Sec 20/31: Transport,"Haulage, removals & delivery",
Buckinghamshire Council ,31.07.2023,21.07.2023,Children's Services,Education & Childrens Services - CS Dir,ACCESS HEMEL HEMPSTEAD,10,0,10,Sec 20/31: Transport,Warehousing,
Buckinghamshire Council ,31.07.2023,21.07.2023,Resources,AH&R - Res Dir,PAYPAL,14.39,0,14.39,IT - Computer Network Charges,Computer network information services,
Buckinghamshire Council ,31.07.2023,21.07.2023,Children's Services,Education & Childrens Services - CS Dir,WWW.ARGOS.CO.UK,98.95,0,98.95,Sec 17: Financial Assistance One Off,Department stores,
Buckinghamshire Council ,31.07.2023,21.07.2023,Children's Services,Education & Childrens Services - CS Dir,BUCKINGHAMSHIRE CNCL,11,0,11,Sec 17: Financial Assistance One Off,Government services,
Buckinghamshire Council ,31.07.2023,21.07.2023,"Planning, Growth & Sustainability",AH&R - PGS Dir,SQ *GROUP CARDS,4.79,0,4.79,Printing & Stationery,"Gift, card & novelty shops",
Buckinghamshire Council ,31.07.2023,21.07.2023,Children's Services,Education & Childrens Services - CS Dir,HIGH SPEED TRAINING,48,0,48,Training (Inc. Health & Safety Courses),Schools,
Buckinghamshire Council ,31.07.2023,21.07.2023,Children's Services,Education & Childrens Services - CS Dir,WWW.ARGOS.CO.UK,35.95,0,35.95,Activities & General Recreation,Department stores,
Buckinghamshire Council ,31.07.2023,21.07.2023,Communities,Culture & Leisure - Communities Dir,AGRILINE PRODUCTS LTD,14.8,2.96,17.76,"Workshop - Materials,Tools & Equipment","Misc. automotive, aircraft & farm equipment",
Buckinghamshire Council ,31.07.2023,21.07.2023,Communities,Culture & Leisure - Communities Dir,AGRILINE PRODUCTS LTD,0.04,0,0.04,"Workshop - Materials,Tools & Equipment","Misc. automotive, aircraft & farm equipment",
Buckinghamshire Council ,31.07.2023,21.07.2023,"Planning, Growth & Sustainability",Planning & Regeneration - PGS,AMAZON.CO.UK,24.98,0,24.98,Stationery & Office Supplies,Direct sales companies,
Buckinghamshire Council ,31.07.2023,21.07.2023,Deputy Chief Executive,AH&R- DCE Dir,SUMUP  *CABS4U,145,0,145,Staff Travelling Expenses,Taxicabs & limousines,
Buckinghamshire Council ,31.07.2023,21.07.2023,Children's Services,Education & Childrens Services - CS Dir,THE E-LEARNING NETWORK,312,0,312,Training (Inc. Health & Safety Courses),Men & womens clothing shops,
Buckinghamshire Council ,31.07.2023,21.07.2023,"Planning, Growth & Sustainability",Housing & Homelessness & Regulatory PGS,OXFORD BUS COMPANY,38,0,38,Staff Travelling Expenses,"Buses, charter & tour",
Buckinghamshire Council ,31.07.2023,21.07.2023,Deputy Chief Executive,Communities - DCE,SAINSBURYS SMKTS,231,0,231,General Provisions (Food),Grocery stores,
Buckinghamshire Council ,31.07.2023,21.07.2023,Communities,Transport - Communities Dir,CHARGEMASTER LIMITED,6.79,0,6.79,Awaiting Coding,,
Buckinghamshire Council ,31.07.2023,21.07.2023,Adults and Health,Health & Wellbeing - Adults & Health Dir,NEALES TAXIS LTD,960,0,960,Staff Travelling Expenses,Taxicabs & limousines,
Buckinghamshire Council ,31.07.2023,21.07.2023,Adults and Health,Health & Wellbeing - Adults & Health Dir,TRAVELODGE GB0000,923.86,0,923.86,Other Short Term Support,Travelodge,
Buckinghamshire Council ,31.07.2023,20.07.2023,Communities,Culture & Leisure - Communities Dir,AMZNMktplace,130.14,0,130.14,Awaiting Coding,Miscellaneous retail,
Buckinghamshire Council ,31.07.2023,20.07.2023,Children's Services,Education & Childrens Services - CS Dir,AMZNMKTPLACE,12.59,0,12.59,Sec 20/31: Specialist Services,Miscellaneous retail,
Buckinghamshire Council ,31.07.2023,20.07.2023,Children's Services,Education & Childrens Services - CS Dir,CURRYS ONLINE,299,0,299,Sec 17: Financial Assistance One Off,Electronics shops,
Buckinghamshire Council ,31.07.2023,20.07.2023,Children's Services,Education & Childrens Services - CS Dir,AMZNMKTPLACE,3.09,0,3.09,"Exp of School, Club & College Activities",Miscellaneous retail,
Buckinghamshire Council ,31.07.2023,20.07.2023,Resources,AH&R - Res Dir,C2E860201302Z UKVI,"5,199.00",0,"5,199.00",Professional Services (non curriculum) - External,Government services,
Buckinghamshire Council ,31.07.2023,20.07.2023,Deputy Chief Executive,Communities - DCE,WWW.ARGOS.CO.UK,89,17.8,106.8,Other Personal Needs,Department stores,
Buckinghamshire Council ,31.07.2023,20.07.2023,Deputy Chief Executive,Communities - DCE,WWW.ARGOS.CO.UK,0.03,0,0.03,Other Personal Needs,Department stores,
Buckinghamshire Council ,31.07.2023,20.07.2023,Deputy Chief Executive,Communities - DCE,WWW.ARGOS.CO.UK,99.12,19.83,118.95,Other Personal Needs,Department stores,
Buckinghamshire Council ,31.07.2023,20.07.2023,Deputy Chief Executive,Communities - DCE,WWW.ARGOS.CO.UK,18.29,3.66,21.95,Other Personal Needs,Department stores,
Buckinghamshire Council ,31.07.2023,20.07.2023,Deputy Chief Executive,Communities - DCE,WWW.ARGOS.CO.UK,-18,0,-18,Other Personal Needs,Department stores,
Buckinghamshire Council ,31.07.2023,20.07.2023,Children's Services,Education & Childrens Services - CS Dir,PAYPAL,100,0,100,Computer Consumables,Computer software stores,
Buckinghamshire Council ,31.07.2023,20.07.2023,Children's Services,Education & Childrens Services - CS Dir,AMAZON.CO.UK,100,0,100,Other Employees Expenses,Direct sales companies,
Buckinghamshire Council ,31.07.2023,20.07.2023,Communities,Housing & Homelessness & Regulatory Comm,E.ON NEXT,39.63,0,39.63,Electricity,Utilities,
Buckinghamshire Council ,31.07.2023,20.07.2023,Children's Services,Education & Childrens Services - CS Dir,LIDL GB,33.25,0,33.25,Educational Equipment,Grocery stores,
Buckinghamshire Council ,31.07.2023,20.07.2023,Deputy Chief Executive,Communities - DCE,AMZNMKTPLACE,14.53,0,14.53,Administrative Equipment & Tools,Miscellaneous retail,
Buckinghamshire Council ,31.07.2023,20.07.2023,Adults and Health,Health & Wellbeing - Adults & Health Dir,TRAVELODGE GB0000,762.93,0,762.93,Other Short Term Support,Travelodge,
Buckinghamshire Council ,31.07.2023,20.07.2023,Children's Services,Education & Childrens Services - CS Dir,BUDGENS,20.48,0,20.48,Other Equipment and Materials,Grocery stores,
Buckinghamshire Council ,31.07.2023,20.07.2023,Children's Services,Education & Childrens Services - CS Dir,THE RANGE,70.74,0,70.74,Other Equipment and Materials,Department stores,
Buckinghamshire Council ,31.07.2023,20.07.2023,Children's Services,Education & Childrens Services - CS Dir,HOBBYCRAFT,-30,0,-30,Other Equipment and Materials,Art & craft shops,
Buckinghamshire Council ,31.07.2023,20.07.2023,Communities,Climate Change & Environment - Community,PAYPAL,22.46,0,22.46,Advertising,Advertising services,
Buckinghamshire Council ,31.07.2023,20.07.2023,Deputy Chief Executive,AH&R- DCE Dir,DAC REMOVALS AND S,240,0,240,Equipment (including storage),"Haulage, removals & delivery",
Buckinghamshire Council ,31.07.2023,20.07.2023,Communities,Culture & Leisure - Communities Dir,AMZNMKTPLACE,15.79,3.16,18.95,"Workshop - Materials,Tools & Equipment",Miscellaneous retail,
Buckinghamshire Council ,31.07.2023,20.07.2023,Children's Services,Education & Childrens Services - CS Dir,ASDA  STORES 4396,15.9,0,15.9,General Provisions (Food),Grocery stores,
Buckinghamshire Council ,31.07.2023,20.07.2023,Resources,AH&R - Res Dir,VOUCHER EXPRESS,250,0,250,Long Service Awards,Misc business services,
Buckinghamshire Council ,31.07.2023,20.07.2023,Children's Services,Education & Childrens Services - CS Dir,CARD FACTORY,24.37,0,24.37,Awaiting Coding,"Gift, card & novelty shops",
Buckinghamshire Council ,31.07.2023,20.07.2023,Children's Services,Education & Childrens Services - CS Dir,TESCO STORES 2041,19.24,0,19.24,Awaiting Coding,Grocery stores,
Buckinghamshire Council ,31.07.2023,20.07.2023,Communities,artnerships - Communities,WAITROSE 154,39.55,0,39.55,Awaiting Coding,Grocery stores,
Buckinghamshire Council ,31.07.2023,20.07.2023,Children's Services,Education & Childrens Services - CS Dir,Amazon.co.uk,71.49,0,71.49,Stationery & Office Supplies,Direct sales companies,
Buckinghamshire Council ,31.07.2023,20.07.2023,Adults and Health,Health & Wellbeing - Adults & Health Dir,TESCO GIFT CARD,60,0,60,Other Short Term Support,Grocery stores,
Buckinghamshire Council ,31.07.2023,20.07.2023,Children's Services,Education & Childrens Services - CS Dir,DUNELM SOFTFURNISHINGS,95,0,95,Leaving Care - Grants for Care Leavers,Furniture & home furnishing,
Buckinghamshire Council ,31.07.2023,20.07.2023,Children's Services,Education & Childrens Services - CS Dir,WWW.ARGOS.CO.UK,269.75,0,269.75,Leaving Care - Grants for Care Leavers,Department stores,
Buckinghamshire Council ,31.07.2023,20.07.2023,Communities,ommunities - Trust Accounts,COSTCO WHOLESALE #102,128.67,0,128.67,Stationery & Office Supplies,Buying & shopping services/clubs,
Buckinghamshire Council ,31.07.2023,20.07.2023,"Planning, Growth & Sustainability",Planning & Regeneration - PGS,ARRIVA THE SHIRES LIMITED,1.7,0,1.7,Staff Travelling Expenses,"Buses, charter & tour",
Buckinghamshire Council ,31.07.2023,20.07.2023,"Planning, Growth & Sustainability",Planning & Regeneration - PGS,WATERSTONES,28.48,0,28.48,"Books, Records, Films & Oth Publications",Book stores,
Buckinghamshire Council ,31.07.2023,20.07.2023,Communities,Climate Change & Environment - Community,UNI OF WESTMINSTER,"1,195.00",0,"1,195.00","Courses, Conference and Seminar Fees",Colleges & universities,
Buckinghamshire Council ,31.07.2023,20.07.2023,Children's Services,Education & Childrens Services - CS Dir,SUMUP  *CABS4U,115,0,115,Sec 20/31: Transport,Taxicabs & limousines,
Buckinghamshire Council ,31.07.2023,20.07.2023,Children's Services,Education & Childrens Services - CS Dir,SUMUP  *CABS4U,115,0,115,Sec 20/31: Transport,Taxicabs & limousines,
Buckinghamshire Council ,31.07.2023,20.07.2023,Communities,Climate Change & Environment - Community,CH MORGAN,13.09,0,13.09,Repair & Maint of Vehicles & Plant,"Architectural, engineering & surveying",
Buckinghamshire Council ,31.07.2023,20.07.2023,Communities,Transport - Communities Dir,SHELL 40-42 WOODSIDE ROAD,3.97,0,3.97,Petrol,Service stations,
Buckinghamshire Council ,31.07.2023,20.07.2023,Adults and Health,Health & Wellbeing - Adults & Health Dir,HIGH STREET VOUCHERS,100,0,100,Other Employees Expenses,Department stores,
Buckinghamshire Council ,31.07.2023,20.07.2023,Deputy Chief Executive,AH&R- DCE Dir,PAYPAL,696.85,139.35,836.2,Miscellaneous (Other)  Expenses,Variety stores,
Buckinghamshire Council ,31.07.2023,20.07.2023,Deputy Chief Executive,AH&R- DCE Dir,PAYPAL,743.33,148.67,892,Miscellaneous (Other)  Expenses,Electronics shops,
Buckinghamshire Council ,31.07.2023,20.07.2023,Deputy Chief Executive,AH&R- DCE Dir,PAYPAL,819.13,163.82,982.95,Miscellaneous (Other)  Expenses,Variety stores,
Buckinghamshire Council ,31.07.2023,20.07.2023,Deputy Chief Executive,AH&R- DCE Dir,PAYPAL,743.33,148.67,892,Miscellaneous (Other)  Expenses,Electronics shops,
Buckinghamshire Council ,31.07.2023,20.07.2023,Deputy Chief Executive,AH&R- DCE Dir,PAYPAL,452.36,90.46,542.82,Miscellaneous (Other)  Expenses,Variety stores,
Buckinghamshire Council ,31.07.2023,20.07.2023,Deputy Chief Executive,AH&R- DCE Dir,PAYPAL,282.95,0,282.95,Miscellaneous (Other)  Expenses,Variety stores,
Buckinghamshire Council ,31.07.2023,20.07.2023,Communities,Culture & Leisure - Communities Dir,TVLICENSING.CO.UK,159,0,159,Administrative Equipment & Tools,Consultants & public relation services,
Buckinghamshire Council ,31.07.2023,20.07.2023,Resources,AH&R - Res Dir,PAYPAL,13.19,0,13.19,IT - Computer Network Charges,Computer network information services,
Buckinghamshire Council ,31.07.2023,19.07.2023,Communities,ommunities - Trust Accounts,BOOKER LIMITED ECOM,-82.46,0,-82.46,Awaiting Coding,Grocery stores,
Buckinghamshire Council ,31.07.2023,19.07.2023,Children's Services,Education & Childrens Services - CS Dir,AMZNMKTPLACE,44.95,0,44.95,"Books, Records, Films & Oth Publications",Miscellaneous retail,
Buckinghamshire Council ,31.07.2023,19.07.2023,"Planning, Growth & Sustainability",Planning & Regeneration - PGS,AMZNMKTPLACE,36.07,0,36.07,IT Equipment Purchase,Miscellaneous retail,
Buckinghamshire Council ,31.07.2023,19.07.2023,Children's Services,Education & Childrens Services - CS Dir,AMZNMKTPLACE,14.18,0,14.18,Consumable Supplies,Miscellaneous retail,
Buckinghamshire Council ,31.07.2023,19.07.2023,Adults and Health,Health & Wellbeing - Adults & Health Dir,SAINSBURY'S S/MKT,74.38,0,74.38,Awaiting Coding,Grocery stores,
Buckinghamshire Council ,31.07.2023,19.07.2023,Adults and Health,Health & Wellbeing - Adults & Health Dir,SAINSBURY'S S/MKT,72.88,0,72.88,Awaiting Coding,Grocery stores,
Buckinghamshire Council ,31.07.2023,19.07.2023,Adults and Health,Health & Wellbeing - Adults & Health Dir,SAINSBURY'S S/MKT,-72.88,0,-72.88,Awaiting Coding,Grocery stores,
Buckinghamshire Council ,31.07.2023,19.07.2023,Children's Services,Education & Childrens Services - CS Dir,BUCKINGHAMSHIRE CNCL,35,0,35,Sec 20/31: Specialist Services,Government services,
Buckinghamshire Council ,31.07.2023,19.07.2023,"Planning, Growth & Sustainability",Housing & Homelessness & Regulatory PGS,CHARTERED INSTITUTE OF EN,246,0,246,Professional Subscriptions re Employees,Charitable organisations,
Buckinghamshire Council ,31.07.2023,19.07.2023,Children's Services,Education & Childrens Services - CS Dir,TRAINLINE.COM,8.75,0,8.75,Sec 17: Financial Assistance,Passenger railways,
Buckinghamshire Council ,31.07.2023,19.07.2023,Children's Services,Education & Childrens Services - CS Dir,ARRIVA UK BUS,8.8,0,8.8,Sec 17: Financial Assistance,"Buses, charter & tour",
Buckinghamshire Council ,31.07.2023,19.07.2023,Deputy Chief Executive,Communities - DCE,TESCO STORES 3045,6.2,0,6.2,General Provisions (Food),Grocery stores,
Buckinghamshire Council ,31.07.2023,19.07.2023,Deputy Chief Executive,Communities - DCE,WWW.ARGOS.CO.UK,199.95,40,239.95,Other Personal Needs,Department stores,
Buckinghamshire Council ,31.07.2023,19.07.2023,Deputy Chief Executive,Communities - DCE,WWW.ARGOS.CO.UK,324.1,64.82,388.92,Other Personal Needs,Department stores,
Buckinghamshire Council ,31.07.2023,19.07.2023,Deputy Chief Executive,Communities - DCE,WWW.ARGOS.CO.UK,0.03,0,0.03,Other Personal Needs,Department stores,
Buckinghamshire Council ,31.07.2023,19.07.2023,Deputy Chief Executive,Communities - DCE,AO RETAIL LIMITED,220,44,264,Other Personal Needs,Household appliance stores,
Buckinghamshire Council ,31.07.2023,19.07.2023,Deputy Chief Executive,Communities - DCE,AO RETAIL LIMITED,594.16,118.84,713,Other Personal Needs,Household appliance stores,
Buckinghamshire Council ,31.07.2023,19.07.2023,Deputy Chief Executive,Communities - DCE,AO RETAIL LIMITED,-10,0,-10,Other Personal Needs,Household appliance stores,
Buckinghamshire Council ,31.07.2023,19.07.2023,"Planning, Growth & Sustainability",AH&R - PGS Dir,ISAAC LORD LIMITED,5.51,0,5.51,Other Equipment and Materials,Hardware stores,
Buckinghamshire Council ,31.07.2023,19.07.2023,"Planning, Growth & Sustainability",AH&R - PGS Dir,GRANT AND STONE,26.16,0,26.16,Other Equipment and Materials,Hardware stores,
Buckinghamshire Council ,31.07.2023,19.07.2023,Children's Services,Education & Childrens Services - CS Dir,FREEDOM PROGRAMME LIMITED,12,0,12,Sec 17: Financial Assistance One Off,Schools,
Buckinghamshire Council ,31.07.2023,19.07.2023,Children's Services,Education & Childrens Services - CS Dir,AMZNMKTPLACE,37.49,0,37.49,YOS - Direct Work,Miscellaneous retail,
Buckinghamshire Council ,31.07.2023,19.07.2023,Communities,artnerships - Communities,CLIMB QUEST MK,500,0,500,Miscellaneous (Other)  Expenses,Misc. recreational services,
Buckinghamshire Council ,31.07.2023,19.07.2023,Communities,artnerships - Communities,CLIMB QUEST MK,129.15,25.83,154.98,Miscellaneous (Other)  Expenses,Misc. recreational services,
Buckinghamshire Council ,31.07.2023,19.07.2023,Communities,artnerships - Communities,CLIMB QUEST MK,0.02,0,0.02,Miscellaneous (Other)  Expenses,Misc. recreational services,
Buckinghamshire Council ,31.07.2023,19.07.2023,Children's Services,Education & Childrens Services - CS Dir,AMZNMKTPLACE,4.25,0,4.25,Consumable Supplies,Miscellaneous retail,
Buckinghamshire Council ,31.07.2023,19.07.2023,Communities,Culture & Leisure - Communities Dir,AMZNMKTPLACE,14.75,2.95,17.7,Events Expenditure,Miscellaneous retail,
Buckinghamshire Council ,31.07.2023,19.07.2023,Communities,Culture & Leisure - Communities Dir,AMZNMKTPLACE,10.76,2.16,12.92,Events Expenditure,Miscellaneous retail,
Buckinghamshire Council ,31.07.2023,19.07.2023,Children's Services,Education & Childrens Services - CS Dir,PASS FUNCTIONAL SKILLS,789.98,0,789.98,Miscellaneous (Other)  Expenses,Schools,
Buckinghamshire Council ,31.07.2023,19.07.2023,Children's Services,Education & Childrens Services - CS Dir,EB *SPARK RESILIENCE P,160,0,160,"Courses, Conference and Seminar Fees",Misc business services,
Buckinghamshire Council ,31.07.2023,19.07.2023,Children's Services,Education & Childrens Services - CS Dir,VOUCHER EXPRESS,15,0,15,Sec 17: Accommodation,Misc business services,
Buckinghamshire Council ,31.07.2023,19.07.2023,Children's Services,Education & Childrens Services - CS Dir,BKG*HOTEL AT BOOKING.C,66,0,66,Sec 17: Accommodation,Travel agencies,
Buckinghamshire Council ,31.07.2023,19.07.2023,Children's Services,Education & Childrens Services - CS Dir,AMAZON.CO.UK,150,0,150,Stationery & Office Supplies,Direct sales companies,
Buckinghamshire Council ,31.07.2023,19.07.2023,Children's Services,Education & Childrens Services - CS Dir,AMAZON.CO.UK,220,0,220,Stationery & Office Supplies,Direct sales companies,
Buckinghamshire Council ,31.07.2023,19.07.2023,Children's Services,Education & Childrens Services - CS Dir,AMAZON.CO.UK,275,0,275,Stationery & Office Supplies,Direct sales companies,
Buckinghamshire Council ,31.07.2023,19.07.2023,Children's Services,Education & Childrens Services - CS Dir,AMAZON.CO.UK,150,0,150,Stationery & Office Supplies,Direct sales companies,
Buckinghamshire Council ,31.07.2023,19.07.2023,Communities,artnerships - Communities,AMZNMktplace,7.99,0,7.99,Awaiting Coding,Miscellaneous retail,
Buckinghamshire Council ,31.07.2023,19.07.2023,"Planning, Growth & Sustainability",Climate Change & Environment - PGS,SPOTIFY,250,0,250,Advertising,,
Buckinghamshire Council ,31.07.2023,19.07.2023,Adults and Health,Health & Wellbeing - Adults & Health Dir,TRAVELODGE GB0000,731.93,0,731.93,Other Short Term Support,Travelodge,
Buckinghamshire Council ,31.07.2023,19.07.2023,Communities,Culture & Leisure - Communities Dir,AMZNMKTPLACE,43.48,0,43.48,Administrative Equipment & Tools,Miscellaneous retail,
Buckinghamshire Council ,31.07.2023,19.07.2023,Children's Services,Education & Childrens Services - CS Dir,THE NATIONAL CENTRE FOR S,93.5,0,93.5,"Courses, Conference and Seminar Fees",Schools,
Buckinghamshire Council ,31.07.2023,19.07.2023,Children's Services,Education & Childrens Services - CS Dir,AMAZON.CO.UK,20.98,0,20.98,Leaving Care - Grants for Care Leavers,Direct sales companies,
Buckinghamshire Council ,31.07.2023,19.07.2023,Children's Services,Education & Childrens Services - CS Dir,AMZNMKTPLACE,33.99,0,33.99,Leaving Care - Grants for Care Leavers,Miscellaneous retail,
Buckinghamshire Council ,31.07.2023,19.07.2023,Children's Services,Education & Childrens Services - CS Dir,WWW.JOHNLEWIS.COM,22.5,0,22.5,Leaving Care - Grants for Care Leavers,Department stores,
Buckinghamshire Council ,31.07.2023,19.07.2023,Children's Services,Education & Childrens Services - CS Dir,DUNELM SOFTFURNISHINGS,51.95,0,51.95,Leaving Care - Grants for Care Leavers,Furniture & home furnishing,
Buckinghamshire Council ,31.07.2023,19.07.2023,Children's Services,Education & Childrens Services - CS Dir,MANOMANO,227.5,0,227.5,Leaving Care - Grants for Care Leavers,Household appliance stores,
Buckinghamshire Council ,31.07.2023,19.07.2023,Children's Services,Education & Childrens Services - CS Dir,VALUELIGHTS,81.42,0,81.42,Leaving Care - Grants for Care Leavers,Hardware Equipment & Suppliers,
Buckinghamshire Council ,31.07.2023,19.07.2023,Children's Services,Education & Childrens Services - CS Dir,WF *UK3946211994,84.98,0,84.98,Leaving Care - Grants for Care Leavers,Furniture & home furnishing,
Buckinghamshire Council ,31.07.2023,19.07.2023,Communities,ommunities - Trust Accounts,BOOKER LIMITED ECOM,82.46,0,82.46,Awaiting Coding,Grocery stores,
Buckinghamshire Council ,31.07.2023,19.07.2023,"Planning, Growth & Sustainability",Housing & Homelessness & Regulatory PGS,AMAZON.CO.UK,100,0,100,Long Service Awards,Direct sales companies,
Buckinghamshire Council ,31.07.2023,19.07.2023,"Planning, Growth & Sustainability",Housing & Homelessness & Regulatory PGS,CHARTERED INSTITUTE OF EN,140,0,140,"Courses, Conference and Seminar Fees",Charitable organisations,
Buckinghamshire Council ,31.07.2023,19.07.2023,Children's Services,Education & Childrens Services - CS Dir,CARPETRIGHT,428.33,0,428.33,Furniture,Floor covering stores,
Buckinghamshire Council ,31.07.2023,19.07.2023,Children's Services,Education & Childrens Services - CS Dir,WWW.EVERYONEACTIVE.COM,5,0,5,Activities & General Recreation,Sport & recreational camps,
Buckinghamshire Council ,31.07.2023,19.07.2023,Communities,Climate Change & Environment - Community,AMZNMKTPLACE,55.23,0,55.23,Fly Tipping Costs,Miscellaneous retail,
Buckinghamshire Council ,31.07.2023,19.07.2023,Children's Services,Education & Childrens Services - CS Dir,LIRI PIZZERIA,5.8,0,5.8,Activities Programme,Restaurants,
Buckinghamshire Council ,31.07.2023,19.07.2023,Children's Services,Education & Childrens Services - CS Dir,ZETTLE_*TONE COFFEE SH,12.05,0,12.05,Activities Programme,Restaurants,
Buckinghamshire Council ,31.07.2023,19.07.2023,"Planning, Growth & Sustainability",Planning & Regeneration - PGS,SAS EVENT AND ASSOCIATION,246,0,246,"Courses, Conference and Seminar Fees",Misc business services,
Buckinghamshire Council ,31.07.2023,19.07.2023,Communities,Climate Change & Environment - Community,JAYAR CAR PARTS,54.24,0,54.24,Repair & Maint of Vehicles & Plant,Automotive parts & accessories,
Buckinghamshire Council ,31.07.2023,19.07.2023,Children's Services,Education & Childrens Services - CS Dir,BUCKINGHAMSHIRE CNCL,33,0,33,Sec 20/31: Financial Assistance,Government services,
Buckinghamshire Council ,31.07.2023,19.07.2023,Children's Services,Education & Childrens Services - CS Dir,PRGOLFCLUB.COM LTD,222.5,0,222.5,Consumable Supplies,Public golf courses,
Buckinghamshire Council ,31.07.2023,19.07.2023,"Planning, Growth & Sustainability",Housing & Homelessness & Regulatory PGS,CHARTERED INSTITUTE OF EN,183,0,183,Professional Subscriptions re Employees,Charitable organisations,
Buckinghamshire Council ,31.07.2023,18.07.2023,Communities,Culture & Leisure - Communities Dir,HOBBYCRAFT TRADING LIMITE,15.25,0,15.25,Administrative Equipment & Tools,Art & craft shops,
Buckinghamshire Council ,31.07.2023,18.07.2023,Children's Services,Education & Childrens Services - CS Dir,AMZNMKTPLACE,8.99,0,8.99,General Repairs & Maintenance,Miscellaneous retail,
Buckinghamshire Council ,31.07.2023,18.07.2023,Children's Services,Education & Childrens Services - CS Dir,AMZNMKTPLACE,136,0,136,Activities & General Recreation,Miscellaneous retail,
Buckinghamshire Council ,31.07.2023,18.07.2023,Children's Services,Education & Childrens Services - CS Dir,AMZ*COMHARBOR,-79.98,0,-79.98,Leaving Care - Grants for Care Leavers,Miscellaneous retail,
Buckinghamshire Council ,31.07.2023,18.07.2023,Adults and Health,Health & Wellbeing - Adults & Health Dir,AMZNMKTPLACE,51.96,0,51.96,Activities & General Recreation,Miscellaneous retail,
Buckinghamshire Council ,31.07.2023,18.07.2023,Adults and Health,Health & Wellbeing - Adults & Health Dir,CURRYS ONLINE,449,0,449,Awaiting Coding,Electronics shops,
Buckinghamshire Council ,31.07.2023,18.07.2023,Adults and Health,Health & Wellbeing - Adults & Health Dir,ASDA SUPERSTORE,5.3,0,5.3,General Provisions (Food),Grocery stores,
Buckinghamshire Council ,31.07.2023,18.07.2023,"Planning, Growth & Sustainability",Housing & Homelessness & Regulatory PGS,WWW.SCREWFIX.COM,119.88,0,119.88,Administrative Equipment & Tools,Timber & building supplies,
Buckinghamshire Council ,31.07.2023,18.07.2023,Children's Services,Education & Childrens Services - CS Dir,TRAINLINE.COM,4.78,0,4.78,Sec 17: Financial Assistance,Passenger railways,
Buckinghamshire Council ,31.07.2023,18.07.2023,Deputy Chief Executive,Communities - DCE,AO RETAIL LIMITED,232.5,46.5,279,Other Personal Needs,Household appliance stores,
Buckinghamshire Council ,31.07.2023,18.07.2023,Deputy Chief Executive,Communities - DCE,AO RETAIL LIMITED,232.5,46.5,279,Other Personal Needs,Household appliance stores,
Buckinghamshire Council ,31.07.2023,18.07.2023,Deputy Chief Executive,Communities - DCE,WWW.ARGOS.CO.UK,44.95,8.99,53.94,Other Personal Needs,Department stores,
Buckinghamshire Council ,31.07.2023,18.07.2023,Deputy Chief Executive,Communities - DCE,WWW.ARGOS.CO.UK,0.01,0,0.01,Other Personal Needs,Department stores,
Buckinghamshire Council ,31.07.2023,18.07.2023,Deputy Chief Executive,Communities - DCE,AO RETAIL LIMITED,220,44,264,Other Personal Needs,Household appliance stores,
Buckinghamshire Council ,31.07.2023,18.07.2023,"Planning, Growth & Sustainability",Planning & Regeneration - PGS,LAND REGISTRY ECOM CCC,3,0,3,Miscellaneous (Other)  Expenses,Government services,
Buckinghamshire Council ,31.07.2023,18.07.2023,Communities,Culture & Leisure - Communities Dir,WHSMITH.CO.UK,472.89,0,472.89,"Books, Records, Films & Oth Publications",Stationery & office supplies stores,
Buckinghamshire Council ,31.07.2023,18.07.2023,Communities,Culture & Leisure - Communities Dir,WHSMITH.CO.UK,471.11,0,471.11,"Books, Records, Films & Oth Publications",Stationery & office supplies stores,
Buckinghamshire Council ,31.07.2023,18.07.2023,"Planning, Growth & Sustainability",AH&R - PGS Dir,CJ'S LOCKSMITHS,13.9,0,13.9,Other Equipment and Materials,Misc. repair services,
Buckinghamshire Council ,31.07.2023,18.07.2023,"Planning, Growth & Sustainability",AH&R - PGS Dir,ASDA SUPERSTORE,11.6,0,11.6,General Provisions (Food),Grocery stores,
Buckinghamshire Council ,31.07.2023,18.07.2023,"Planning, Growth & Sustainability",AH&R - PGS Dir,AMZNMKTPLACE,29.95,0,29.95,General Repairs & Maintenance,Miscellaneous retail,
Buckinghamshire Council ,31.07.2023,18.07.2023,"Planning, Growth & Sustainability",AH&R - PGS Dir,DULUX DECORATOR CENTRE,185.12,0,185.12,General Repairs & Maintenance,"Paint, varnishes & supplies",
Buckinghamshire Council ,31.07.2023,18.07.2023,"Planning, Growth & Sustainability",AH&R - PGS Dir,NET WORLD SPORTS,84.75,16.95,101.7,General Repairs & Maintenance,Miscellaneous retail,
Buckinghamshire Council ,31.07.2023,18.07.2023,"Planning, Growth & Sustainability",AH&R - PGS Dir,NET WORLD SPORTS,66.89,0,66.89,General Repairs & Maintenance,Miscellaneous retail,
Buckinghamshire Council ,31.07.2023,18.07.2023,"Planning, Growth & Sustainability",AH&R - PGS Dir,ASDA SUPERSTORE,5,1,6,Cleaning Materials,Grocery stores,
Buckinghamshire Council ,31.07.2023,18.07.2023,Communities,artnerships - Communities,SP RINKIT.COM,45.49,0,45.49,Awaiting Coding,Furniture & home furnishing,
Buckinghamshire Council ,31.07.2023,18.07.2023,Communities,artnerships - Communities,SAINSBURY S S/MKTS,61.78,0,61.78,Awaiting Coding,Grocery stores,
Buckinghamshire Council ,31.07.2023,18.07.2023,Children's Services,Education & Childrens Services - CS Dir,A1 TAXILINE,18,0,18,Staff Travelling Expenses,Taxicabs & limousines,
Buckinghamshire Council ,31.07.2023,18.07.2023,Children's Services,Education & Childrens Services - CS Dir,TESCO STORES 2668,45.2,0,45.2,Educational Equipment,Grocery stores,
Buckinghamshire Council ,31.07.2023,18.07.2023,Children's Services,Education & Childrens Services - CS Dir,AMAZON.CO.UK,9.98,0,9.98,Miscellaneous (Other)  Expenses,Direct sales companies,
Buckinghamshire Council ,31.07.2023,18.07.2023,Children's Services,Education & Childrens Services - CS Dir,AMAZON.CO.UK,20,0,20,"Books, Records, Films & Oth Publications",Direct sales companies,
Buckinghamshire Council ,31.07.2023,18.07.2023,Children's Services,Education & Childrens Services - CS Dir,AMZNMKTPLACE,33.12,0,33.12,Other Equipment and Materials,Miscellaneous retail,
Buckinghamshire Council ,31.07.2023,18.07.2023,Resources,AH&R - Res Dir,VOUCHER EXPRESS,100,0,100,Long Service Awards,Misc business services,
Buckinghamshire Council ,31.07.2023,18.07.2023,Children's Services,Education & Childrens Services - CS Dir,VOUCHER EXPRESS,15,0,15,Sec 17: Accommodation,Misc business services,
Buckinghamshire Council ,31.07.2023,18.07.2023,Children's Services,Education & Childrens Services - CS Dir,ECB AYLESBURY LIMITED,50.99,0,50.99,"Exp of School, Club & College Activities",Restaurants,
Buckinghamshire Council ,31.07.2023,18.07.2023,Children's Services,Education & Childrens Services - CS Dir,AMZNMKTPLACE,50.98,0,50.98,Support for Foster Carers,Miscellaneous retail,
Buckinghamshire Council ,31.07.2023,18.07.2023,Children's Services,Education & Childrens Services - CS Dir,WWW.ARGOS.CO.UK,74.95,0,74.95,Support for Foster Carers,Department stores,
Buckinghamshire Council ,31.07.2023,18.07.2023,Children's Services,Education & Childrens Services - CS Dir,TRAVELODGE GB0000,106.06,0,106.06,Sec 17: Accommodation,Travelodge,
Buckinghamshire Council ,31.07.2023,18.07.2023,Communities,artnerships - Communities,Amazon.co.uk,59.99,0,59.99,Stationery & Office Supplies,Direct sales companies,
Buckinghamshire Council ,31.07.2023,18.07.2023,"Planning, Growth & Sustainability",AH&R - PGS Dir,WWW.SCREWFIX.COM,99.13,19.83,118.96,General Repairs & Maintenance,Timber & building supplies,
Buckinghamshire Council ,31.07.2023,18.07.2023,Children's Services,Education & Childrens Services - CS Dir,AMZNMKTPLACE,485.21,0,485.21,Activities & General Recreation,Miscellaneous retail,
Buckinghamshire Council ,31.07.2023,18.07.2023,Adults and Health,Health & Wellbeing - Adults & Health Dir,ASDA GROCERIES ONLINE,95.47,0,95.47,General Provisions (Food),Grocery stores,
Buckinghamshire Council ,31.07.2023,18.07.2023,Adults and Health,Health & Wellbeing - Adults & Health Dir,ASDA GROCERIES ONLINE,-0.3,0,-0.3,General Provisions (Food),Grocery stores,
Buckinghamshire Council ,31.07.2023,18.07.2023,Communities,Culture & Leisure - Communities Dir,WWW.BUCKINGHAMSHIRE.GOV,38.2,0,38.2,Administrative Equipment & Tools,Government services,
Buckinghamshire Council ,31.07.2023,18.07.2023,Deputy Chief Executive,AH&R- DCE Dir,APCOA PARKING UK,14.3,2.86,17.16,Staff Travelling Expenses,Car parking & garages,
Buckinghamshire Council ,31.07.2023,18.07.2023,Deputy Chief Executive,AH&R- DCE Dir,APCOA PARKING UK,0.04,0,0.04,Staff Travelling Expenses,Car parking & garages,
Buckinghamshire Council ,31.07.2023,18.07.2023,Communities,ommunities - Trust Accounts,COSTCO WHOLESALE #102,66.86,0,66.86,Stationery & Office Supplies,Buying & shopping services/clubs,
Buckinghamshire Council ,31.07.2023,18.07.2023,Children's Services,Education & Childrens Services - CS Dir,HOLLYWOOD BOWL,19.84,0,19.84,Activities & General Recreation,"Member clubs, sport, recreation & golf",
Buckinghamshire Council ,31.07.2023,18.07.2023,Children's Services,Education & Childrens Services - CS Dir,TESCO STORES 6747,4.1,0,4.1,Consumable Supplies,Grocery stores,
Buckinghamshire Council ,31.07.2023,18.07.2023,Communities,Transport - Communities Dir,eBay O*25-10296-93046,19.86,0,19.86,Awaiting Coding,Department stores,
Buckinghamshire Council ,31.07.2023,18.07.2023,Communities,Transport - Communities Dir,SHELL 40-42 WOODSIDE ROAD,4.59,0,4.59,Petrol,Service stations,
Buckinghamshire Council ,31.07.2023,18.07.2023,Adults and Health,Health & Wellbeing - Adults & Health Dir,TRAVELODGE GB0000,"1,329.93",0,"1,329.93",Other Short Term Support,Travelodge,
Buckinghamshire Council ,31.07.2023,18.07.2023,Resources,AH&R - Res Dir,AMAZON.CO.UK,250,0,250,Other Employees Expenses,Direct sales companies,
Buckinghamshire Council ,31.07.2023,18.07.2023,Adults and Health,Health & Wellbeing - Adults & Health Dir,WM MORRISONS STORE,25.7,0,25.7,General Provisions (Food),Grocery stores,
Buckinghamshire Council ,31.07.2023,17.07.2023,Children's Services,Education & Childrens Services - CS Dir,TRAINLINE,-6,0,-6,Sec 20/31: Supp for Contact,Passenger railways,
Buckinghamshire Council ,31.07.2023,17.07.2023,Children's Services,Education & Childrens Services - CS Dir,SP RING UK,99.99,0,99.99,Sec 17: Financial Assistance One Off,Electronics shops,
Buckinghamshire Council ,31.07.2023,17.07.2023,Children's Services,Education & Childrens Services - CS Dir,AMAZON.CO.UK,141.24,0,141.24,Sec 20/31: Specialist Services,Direct sales companies,
Buckinghamshire Council ,31.07.2023,17.07.2023,Children's Services,Education & Childrens Services - CS Dir,ARRIVA UK BUS,17.6,0,17.6,Sec 17: Financial Assistance,"Buses, charter & tour",
Buckinghamshire Council ,31.07.2023,17.07.2023,Children's Services,Education & Childrens Services - CS Dir,ARRIVA UK BUS,17.6,0,17.6,Sec 17: Financial Assistance,"Buses, charter & tour",
Buckinghamshire Council ,31.07.2023,17.07.2023,"Planning, Growth & Sustainability",Housing & Homelessness & Regulatory PGS,LAND REGISTRY ECOM CCC,3,0,3,Homelessness,Government services,
Buckinghamshire Council ,31.07.2023,17.07.2023,Children's Services,Education & Childrens Services - CS Dir,AMZNMKTPLACE,42.98,0,42.98,Leaving Care - Grants for Care Leavers,Miscellaneous retail,
Buckinghamshire Council ,31.07.2023,17.07.2023,Children's Services,Education & Childrens Services - CS Dir,TESCO STORES 2041,164.33,0,164.33,Awaiting Coding,Grocery stores,
Buckinghamshire Council ,31.07.2023,17.07.2023,Children's Services,Education & Childrens Services - CS Dir,Amazon.co.uk,10,0,10,Stationery & Office Supplies,Direct sales companies,
Buckinghamshire Council ,31.07.2023,17.07.2023,Deputy Chief Executive,Communities - DCE,AO RETAIL LIMITED,552.5,110.5,663,Other Personal Needs,Household appliance stores,
Buckinghamshire Council ,31.07.2023,17.07.2023,Communities,Housing & Homelessness & Regulatory Comm,WWW.PLANNING.CO,180,0,180,General Repairs & Maintenance,Misc business services,
Buckinghamshire Council ,31.07.2023,17.07.2023,Adults and Health,Health & Wellbeing - Adults & Health Dir,TESCO STORES 2162,18.65,0,18.65,General Provisions (Food),Grocery stores,
Buckinghamshire Council ,31.07.2023,17.07.2023,Adults and Health,Health & Wellbeing - Adults & Health Dir,AMZNMKTPLACE,104.98,0,104.98,Stationery & Office Supplies,Miscellaneous retail,
Buckinghamshire Council ,31.07.2023,17.07.2023,Adults and Health,Health & Wellbeing - Adults & Health Dir,TESCO STORES 5135,100.38,0,100.38,General Provisions (Food),Grocery stores,
Buckinghamshire Council ,31.07.2023,17.07.2023,Adults and Health,Health & Wellbeing - Adults & Health Dir,CHIPPERFIELD GARDEN CE,40.7,8.14,48.84,Seeds & Plants,Lawn & garden supply/nursery,
Buckinghamshire Council ,31.07.2023,17.07.2023,Adults and Health,Health & Wellbeing - Adults & Health Dir,CHIPPERFIELD GARDEN CE,0.12,0,0.12,Seeds & Plants,Lawn & garden supply/nursery,
Buckinghamshire Council ,31.07.2023,17.07.2023,Communities,Housing & Homelessness & Regulatory Comm,BRITISH GAS OTP,10.29,0,10.29,Gas,Utilities,
Buckinghamshire Council ,31.07.2023,17.07.2023,"Planning, Growth & Sustainability",AH&R - PGS Dir,TESCO STORES 2020,11.6,0,11.6,Purchase.of Refreshments and Food,Grocery stores,
Buckinghamshire Council ,31.07.2023,17.07.2023,Children's Services,Education & Childrens Services - CS Dir,PAYPAL,380,76,456,Contract Catering,Caterers,
Buckinghamshire Council ,31.07.2023,17.07.2023,Children's Services,Education & Childrens Services - CS Dir,SAINSBURYS S/MKTS,26.15,0,26.15,Educational Equipment,Grocery stores,
Buckinghamshire Council ,31.07.2023,17.07.2023,Children's Services,Education & Childrens Services - CS Dir,SAINSBURYS SMKTS,42,0,42,Educational Equipment,Grocery stores,
Buckinghamshire Council ,31.07.2023,17.07.2023,Children's Services,Education & Childrens Services - CS Dir,SAINSBURYS SMKTS,42,0,42,Educational Equipment,Grocery stores,
Buckinghamshire Council ,31.07.2023,17.07.2023,"Planning, Growth & Sustainability",Planning & Regeneration - PGS,WWW.LABC.UK.COM,270,0,270,Course Fees & Post Entry Training,Misc business services,
Buckinghamshire Council ,31.07.2023,17.07.2023,Communities,Culture & Leisure - Communities Dir,AMZNBUSINESS,13.25,2.65,15.9,"Workshop - Materials,Tools & Equipment",Miscellaneous retail,
Buckinghamshire Council ,31.07.2023,17.07.2023,Communities,Culture & Leisure - Communities Dir,AMZNBUSINESS,0.03,0,0.03,"Workshop - Materials,Tools & Equipment",Miscellaneous retail,
Buckinghamshire Council ,31.07.2023,17.07.2023,Communities,Culture & Leisure - Communities Dir,TOOLSTATION UK,74.83,14.97,89.8,"Workshop - Materials,Tools & Equipment",Hardware stores,
Buckinghamshire Council ,31.07.2023,17.07.2023,"Planning, Growth & Sustainability",Planning & Regeneration - PGS,DRONE COVER CLUB,32.9,0,32.9,Computer Consumables,Computer software stores,
Buckinghamshire Council ,31.07.2023,17.07.2023,Children's Services,Education & Childrens Services - CS Dir,ASDA SUPERSTORE,144.6,0,144.6,Awaiting Coding,Grocery stores,
Buckinghamshire Council ,31.07.2023,17.07.2023,Children's Services,Education & Childrens Services - CS Dir,PREMIER INN,106.25,0,106.25,Sec 20/31: Specialist Services,Premier Inn,
Buckinghamshire Council ,31.07.2023,17.07.2023,Children's Services,artnerships - Children's Services,SAINSBURYS S/MKTS,1.2,0,1.2,"Courses, Conference and Seminar Fees",Grocery stores,
Buckinghamshire Council ,31.07.2023,17.07.2023,Children's Services,Education & Childrens Services - CS Dir,TESCO STORES 2041,22.09,0,22.09,Activities & General Recreation,Grocery stores,
Buckinghamshire Council ,31.07.2023,17.07.2023,Adults and Health,Health & Wellbeing - Adults & Health Dir,ASDA SUPERSTORE,6.4,0,6.4,General Provisions (Food),Grocery stores,
Buckinghamshire Council ,31.07.2023,17.07.2023,Children's Services,Education & Childrens Services - CS Dir,MARRIOTT,149,0,149,"Courses, Conference and Seminar Fees",Marriott Hotels,
Buckinghamshire Council ,31.07.2023,17.07.2023,Children's Services,Education & Childrens Services - CS Dir,QS SUPPLIES,-306.73,0,-306.73,Leaving Care - Grants for Care Leavers,Miscellaneous retail,
Buckinghamshire Council ,31.07.2023,17.07.2023,Communities,ommunities - Trust Accounts,COSTCO WHOLESALE #102,27.83,0,27.83,Stationery & Office Supplies,Buying & shopping services/clubs,
Buckinghamshire Council ,31.07.2023,17.07.2023,Communities,ommunities - Trust Accounts,CO-OP GROUP FOOD,5.25,0,5.25,Awaiting Coding,Grocery stores,
Buckinghamshire Council ,31.07.2023,17.07.2023,Children's Services,Education & Childrens Services - CS Dir,TRAVELODGE GB0000,79.03,0,79.03,Sec 17: Accommodation,Travelodge,
Buckinghamshire Council ,31.07.2023,17.07.2023,Resources,AH&R - Res Dir,FACEBK *L6HRCRB4X2,113.47,0,113.47,Permanent Recruitment Costs,Advertising services,
Buckinghamshire Council ,31.07.2023,17.07.2023,Resources,AH&R - Res Dir,LINKEDIN ADS,13.1,0,13.1,Permanent Recruitment Costs,Advertising services,
Buckinghamshire Council ,31.07.2023,17.07.2023,Children's Services,Education & Childrens Services - CS Dir,B&M 426 - HS AYLESBURY,21.97,0,21.97,Activities Programme,Misc. general merchandise,
Buckinghamshire Council ,31.07.2023,17.07.2023,Children's Services,Education & Childrens Services - CS Dir,HOBBYCRAFT,20.62,4.13,24.75,Activities Programme,Art & craft shops,
Buckinghamshire Council ,31.07.2023,17.07.2023,Children's Services,Education & Childrens Services - CS Dir,TESCO GIFT CARD,50,0,50,Activities & General Recreation,Grocery stores,
Buckinghamshire Council ,31.07.2023,17.07.2023,Deputy Chief Executive,Communities - DCE,MARKS&SPENCER PLC,45,0,45,General Provisions (Food),Grocery stores,
Buckinghamshire Council ,31.07.2023,17.07.2023,Children's Services,Education & Childrens Services - CS Dir,TRAINLINE,17.2,0,17.2,Sec 20/31: Transport,Passenger railways,
Buckinghamshire Council ,31.07.2023,17.07.2023,Adults and Health,Health & Wellbeing - Adults & Health Dir,TESCO STORES 5135,86.86,0,86.86,General Provisions (Food),Grocery stores,
Buckinghamshire Council ,31.07.2023,17.07.2023,Communities,Transport - Communities Dir,Amazon.co.uk,16.44,0,16.44,Stationery & Office Supplies,Direct sales companies,
Buckinghamshire Council ,31.07.2023,17.07.2023,Communities,Transport - Communities Dir,SHELL 40-42 WOODSIDE ROAD,3.32,0,3.32,Petrol,Service stations,
Buckinghamshire Council ,31.07.2023,17.07.2023,Children's Services,Education & Childrens Services - CS Dir,WAITROSE,9.9,0,9.9,General Provisions (Food),Grocery stores,
Buckinghamshire Council ,31.07.2023,17.07.2023,Children's Services,Education & Childrens Services - CS Dir,CANVA* 03849-19508954,34.99,0,34.99,Marketing,"Commercial photo, art & graphic",
Buckinghamshire Council ,31.07.2023,17.07.2023,Deputy Chief Executive,Communities - DCE,PAYPAL,59.15,11.83,70.98,Other Personal Needs,Variety stores,
Buckinghamshire Council ,31.07.2023,17.07.2023,Deputy Chief Executive,Communities - DCE,PAYPAL,0.02,0,0.02,Other Personal Needs,Variety stores,
Buckinghamshire Council ,31.07.2023,17.07.2023,Deputy Chief Executive,Communities - DCE,PAYPAL,440.79,88.16,528.95,Other Personal Needs,Variety stores,
Buckinghamshire Council ,31.07.2023,16.07.2023,Resources,AH&R - Res Dir,PAYPAL,8.99,0,8.99,IT - Computer Network Charges,Computer network information services,
Buckinghamshire Council ,31.07.2023,16.07.2023,Children's Services,Education & Childrens Services - CS Dir,AMZNMKTPLACE,29.98,0,29.98,Leaving Care - Grants for Care Leavers,Miscellaneous retail,
Buckinghamshire Council ,31.07.2023,16.07.2023,Adults and Health,Health & Wellbeing - Adults & Health Dir,SUMUP  *ASH TAXI 07800,40,0,40,Staff Travelling Expenses,Taxicabs & limousines,
Buckinghamshire Council ,31.07.2023,16.07.2023,Communities,Culture & Leisure - Communities Dir,AMAZON.CO.UK,9.58,1.92,11.5,Stationery & Office Supplies,Direct sales companies,
Buckinghamshire Council ,31.07.2023,16.07.2023,Communities,Housing & Homelessness & Regulatory Comm,AMZNMKTPLACE,3.32,0.67,3.99,General Repairs & Maintenance,Miscellaneous retail,
Buckinghamshire Council ,31.07.2023,16.07.2023,Resources,AH&R - Res Dir,AMAZON.CO.UK,30.88,0,30.88,Computer Consumables,Direct sales companies,
Buckinghamshire Council ,31.07.2023,16.07.2023,Deputy Chief Executive,Leader - DCE,FACEBK SFLSFTTPN2,840,0,840,Advertising,Advertising services,
Buckinghamshire Council ,31.07.2023,16.07.2023,Communities,Culture & Leisure - Communities Dir,AMZNMktplace,14.43,0,14.43,Awaiting Coding,Miscellaneous retail,
Buckinghamshire Council ,31.07.2023,16.07.2023,Communities,Climate Change & Environment - Community,ROADWARRIOR,11.8,0,11.8,Computer Support Services,"Programming, data processing & system design",
Buckinghamshire Council ,31.07.2023,16.07.2023,Communities,Climate Change & Environment - Community,ROADWARRIOR,11.8,0,11.8,Computer Support Services,"Programming, data processing & system design",
Buckinghamshire Council ,31.07.2023,16.07.2023,Adults and Health,Health & Wellbeing - Adults & Health Dir,AMZNMKTPLACE,100.43,0,100.43,Activities & General Recreation,Miscellaneous retail,
Buckinghamshire Council ,31.07.2023,16.07.2023,Communities,Transport - Communities Dir,CHARGEMASTER LIMITED,4.81,0,4.81,Awaiting Coding,,
Buckinghamshire Council ,31.07.2023,16.07.2023,Communities,Transport - Communities Dir,eBay O*17-10294-82629,12.58,0,12.58,Awaiting Coding,Department stores,
Buckinghamshire Council ,31.07.2023,15.07.2023,Children's Services,Education & Childrens Services - CS Dir,AMZNMKTPLACE,96,0,96,Leaving Care - Grants for Care Leavers,Miscellaneous retail,
Buckinghamshire Council ,31.07.2023,15.07.2023,"Planning, Growth & Sustainability",Planning & Regeneration - PGS,TEXTANYWHERE,54,0,54,Computer Consumables,Computer software stores,
Buckinghamshire Council ,31.07.2023,15.07.2023,Adults and Health,Health & Wellbeing - Adults & Health Dir,SUMUP  *ASH TAXI 07800,40,0,40,Staff Travelling Expenses,Taxicabs & limousines,
Buckinghamshire Council ,31.07.2023,15.07.2023,Communities,Transport - Communities Dir,HALFORDS E.COMM,71.98,0,71.98,Vehicle Hire,Automotive parts & accessories,
Buckinghamshire Council ,31.07.2023,15.07.2023,Communities,Transport - Communities Dir,HALFORDS 0894,10,0,10,Vehicle Hire,"Bicycle shops, sales & service",
Buckinghamshire Council ,31.07.2023,15.07.2023,"Planning, Growth & Sustainability",AH&R - PGS Dir,AMAZON.CO.UK,11.04,0,11.04,Other Equipment and Materials,Direct sales companies,
Buckinghamshire Council ,31.07.2023,15.07.2023,Children's Services,Education & Childrens Services - CS Dir,AMZNMKTPLACE,4.99,0,4.99,Consumable Supplies,Miscellaneous retail,
Buckinghamshire Council ,31.07.2023,15.07.2023,Children's Services,Education & Childrens Services - CS Dir,Lebara Mobile Limited,25,0,25,Telephones,Phone services,
Buckinghamshire Council ,31.07.2023,15.07.2023,Communities,Culture & Leisure - Communities Dir,WICKES MILTON KEYNES,16.23,3.25,19.48,General Repairs & Maintenance,Timber & building supplies,
Buckinghamshire Council ,31.07.2023,15.07.2023,Resources,AH&R - Res Dir,PAYPAL,8.4,0,8.4,IT - Computer Network Charges,Computer network information services,
Buckinghamshire Council ,31.07.2023,15.07.2023,Children's Services,Education & Childrens Services - CS Dir,PRGOLFCLUB.COM LTD,209.35,0,209.35,Consumable Supplies,Public golf courses,
Buckinghamshire Council ,31.07.2023,15.07.2023,Communities,Transport - Communities Dir,eBay O*16-10290-08992,40.29,0,40.29,Awaiting Coding,Department stores,
Buckinghamshire Council ,31.07.2023,15.07.2023,Communities,Transport - Communities Dir,eBay O*16-10290-08991,41.9,0,41.9,Awaiting Coding,Department stores,
Buckinghamshire Council ,31.07.2023,15.07.2023,Communities,Transport - Communities Dir,SportsDirect,129.99,0,129.99,Awaiting Coding,Sports & riding apparel shops,
Buckinghamshire Council ,31.07.2023,14.07.2023,"Planning, Growth & Sustainability",Planning & Regeneration - PGS,AMZNMKTPLACE,13.99,0,13.99,IT Equipment Purchase,Miscellaneous retail,
Buckinghamshire Council ,31.07.2023,14.07.2023,Deputy Chief Executive,AH&R- DCE Dir,PAYPAL,452.95,0,452.95,Miscellaneous (Other)  Expenses,Variety stores,
Buckinghamshire Council ,31.07.2023,14.07.2023,Deputy Chief Executive,AH&R- DCE Dir,PAYPAL,150,30,180,Miscellaneous (Other)  Expenses,Variety stores,
Buckinghamshire Council ,31.07.2023,14.07.2023,Deputy Chief Executive,AH&R- DCE Dir,PAYPAL,20,4,24,Miscellaneous (Other)  Expenses,Variety stores,
Buckinghamshire Council ,31.07.2023,14.07.2023,Deputy Chief Executive,AH&R- DCE Dir,PAYPAL,20,4,24,Miscellaneous (Other)  Expenses,Variety stores,
Buckinghamshire Council ,31.07.2023,14.07.2023,Deputy Chief Executive,AH&R- DCE Dir,PAYPAL,304.16,60.83,364.99,Miscellaneous (Other)  Expenses,Variety stores,
Buckinghamshire Council ,31.07.2023,14.07.2023,Deputy Chief Executive,AH&R- DCE Dir,PAYPAL,507.6,101.52,609.12,Miscellaneous (Other)  Expenses,Variety stores,
Buckinghamshire Council ,31.07.2023,14.07.2023,Deputy Chief Executive,AH&R- DCE Dir,PAYPAL,889.96,177.99,"1,067.95",Miscellaneous (Other)  Expenses,Variety stores,
Buckinghamshire Council ,31.07.2023,14.07.2023,"Planning, Growth & Sustainability",Housing & Homelessness & Regulatory PGS,AMZNMKTPLACE,19.98,0,19.98,Homelessness,Miscellaneous retail,
Buckinghamshire Council ,31.07.2023,14.07.2023,Children's Services,Education & Childrens Services - CS Dir,TRAINLINE.COM,13.33,0,13.33,Leaving Care - Transport,Passenger railways,
Buckinghamshire Council ,31.07.2023,14.07.2023,Children's Services,Education & Childrens Services - CS Dir,AMAZON PRIME,8.99,0,8.99,Stationery & Office Supplies,Continuous subscriptions,
Buckinghamshire Council ,31.07.2023,14.07.2023,Communities,Climate Change & Environment - Community,DVLA DRIVERS TACHOGRAPH W,32,0,32,Awaiting Coding,Government services,
Buckinghamshire Council ,31.07.2023,14.07.2023,Children's Services,Education & Childrens Services - CS Dir,BUCKINGHAM HOTELS,"1,890.00",0,"1,890.00",Sec 17: Accommodation,"Hotels, motels & resorts",
Buckinghamshire Council ,31.07.2023,14.07.2023,Children's Services,Education & Childrens Services - CS Dir,BUCKINGHAM HOTELS,"1,890.00",0,"1,890.00",Sec 17: Accommodation,"Hotels, motels & resorts",
Buckinghamshire Council ,31.07.2023,14.07.2023,"Planning, Growth & Sustainability",AH&R - PGS Dir,MATERIALS MARKET,263,52.6,315.6,General Repairs & Maintenance,Grocery stores,
Buckinghamshire Council ,31.07.2023,14.07.2023,"Planning, Growth & Sustainability",AH&R - PGS Dir,WOLSELEY HIGH WYCOMBE,27.18,0,27.18,General Repairs & Maintenance,"Heating, plumbing & air conditioning",
Buckinghamshire Council ,31.07.2023,14.07.2023,"Planning, Growth & Sustainability",Special Expenses,PPL PRS LTD,169.24,0,169.24,Events Expenditure,Membership organisations,
Buckinghamshire Council ,31.07.2023,14.07.2023,"Planning, Growth & Sustainability",Leader - PGS,AMAZON.CO.UK,100,0,100,Long Service Awards,Direct sales companies,
Buckinghamshire Council ,31.07.2023,14.07.2023,"Planning, Growth & Sustainability",Leader - PGS,TESCO GIFT CARD,250,0,250,Long Service Awards,Grocery stores,
Buckinghamshire Council ,31.07.2023,14.07.2023,Resources,AH&R - Res Dir,SP RING UK,169.99,0,169.99,Awaiting Coding,Electronics shops,
Buckinghamshire Council ,31.07.2023,14.07.2023,Children's Services,Education & Childrens Services - CS Dir,PRESTIG*EFLOWERS,56.48,0,56.48,Seeds & Plants,Florists,
Buckinghamshire Council ,31.07.2023,14.07.2023,Communities,Culture & Leisure - Communities Dir,AMZNMKTPLACE,67.78,16.95,84.73,"Workshop - Materials,Tools & Equipment",Miscellaneous retail,
Buckinghamshire Council ,31.07.2023,14.07.2023,Communities,Culture & Leisure - Communities Dir,TOOLSTATION UK,74.83,14.97,89.8,"Workshop - Materials,Tools & Equipment",Hardware stores,
Buckinghamshire Council ,31.07.2023,14.07.2023,Children's Services,Education & Childrens Services - CS Dir,UBER* EATS,29.49,0,29.49,General Postage,Courier services / freight forwarders,
Buckinghamshire Council ,31.07.2023,14.07.2023,Resources,AH&R - Res Dir,GMO GLOBALSIGN LIM,226.8,0,226.8,Annual Licence (IT),Computer network information services,
Buckinghamshire Council ,31.07.2023,14.07.2023,Resources,AH&R - Res Dir,GMO GLOBALSIGN LIM,226.8,0,226.8,Annual Licence (IT),Computer network information services,
Buckinghamshire Council ,31.07.2023,14.07.2023,Children's Services,Education & Childrens Services - CS Dir,TRAVELODGE GB0000,250.88,0,250.88,Sec 17: Accommodation,Travelodge,
Buckinghamshire Council ,31.07.2023,14.07.2023,Communities,Transport - Communities Dir,AMZNMKTPLACE,14.98,0,14.98,Materials,Miscellaneous retail,
Buckinghamshire Council ,31.07.2023,14.07.2023,Adults and Health,Health & Wellbeing - Adults & Health Dir,PREMIER INN,113.05,0,113.05,Other Short Term Support,Premier Inn,
Buckinghamshire Council ,31.07.2023,14.07.2023,Children's Services,Education & Childrens Services - CS Dir,AMZNMKTPLACE,39.99,0,39.99,Leaving Care - Grants for Care Leavers,Miscellaneous retail,
Buckinghamshire Council ,31.07.2023,14.07.2023,Children's Services,Education & Childrens Services - CS Dir,AMZNMKTPLACE,28,0,28,Leaving Care - Grants for Care Leavers,Miscellaneous retail,
Buckinghamshire Council ,31.07.2023,14.07.2023,Children's Services,Education & Childrens Services - CS Dir,AMZNMKTPLACE,87,0,87,Leaving Care - Grants for Care Leavers,Miscellaneous retail,
Buckinghamshire Council ,31.07.2023,14.07.2023,Communities,Leader - PGS,MAILCHIMP,48.57,0,48.57,Software Support,,
Buckinghamshire Council ,31.07.2023,14.07.2023,Communities,Culture & Leisure - Communities Dir,AMZNMktplace,9.99,0,9.99,Awaiting Coding,Miscellaneous retail,
Buckinghamshire Council ,31.07.2023,14.07.2023,Children's Services,Education & Childrens Services - CS Dir,EUROFLORIST UK LTD,40.98,0,40.98,Seeds & Plants,Florists,
Buckinghamshire Council ,31.07.2023,14.07.2023,Adults and Health,Health & Wellbeing - Adults & Health Dir,NEALES TAXIS LTD,960,0,960,Staff Travelling Expenses,Taxicabs & limousines,
Buckinghamshire Council ,31.07.2023,14.07.2023,Children's Services,Education & Childrens Services - CS Dir,UK CARS (HIGH WYCOMBE) LT,"1,000.00",200,"1,200.00",Sec 20/31: Transport,Taxicabs & limousines,
Buckinghamshire Council ,31.07.2023,13.07.2023,Deputy Chief Executive,AH&R- DCE Dir,OPTIMAL WORKSHOP,198.69,0,198.69,Computer Consumables,Computer software stores,
Buckinghamshire Council ,31.07.2023,13.07.2023,Adults and Health,Health & Wellbeing - Adults & Health Dir,ASDA SUPERSTORE,6.5,0,6.5,Awaiting Coding,Grocery stores,
Buckinghamshire Council ,31.07.2023,13.07.2023,Children's Services,Education & Childrens Services - CS Dir,TESCO GIFT CARD,75,0,75,Sec 17: Financial Assistance One Off,Grocery stores,
Buckinghamshire Council ,31.07.2023,13.07.2023,Children's Services,Education & Childrens Services - CS Dir,ONBUY.COM,127.99,0,127.99,Leaving Care - Grants for Care Leavers,,
Buckinghamshire Council ,31.07.2023,13.07.2023,Children's Services,Education & Childrens Services - CS Dir,COSTCO WHOLESALE #117,174.98,0,174.98,Stationery & Office Supplies,Buying & shopping services/clubs,
Buckinghamshire Council ,31.07.2023,13.07.2023,Deputy Chief Executive,Communities - DCE,AO RETAIL LIMITED,80,0,80,Other Personal Needs,Household appliance stores,
Buckinghamshire Council ,31.07.2023,13.07.2023,Deputy Chief Executive,Communities - DCE,WWW.ARGOS.CO.UK,75.79,15.16,90.95,Other Personal Needs,Department stores,
Buckinghamshire Council ,31.07.2023,13.07.2023,Communities,Housing & Homelessness & Regulatory Comm,PADDLE.NET*VECTRSTOCK,14.28,0,14.28,Miscellaneous (Other)  Expenses,,
Buckinghamshire Council ,31.07.2023,13.07.2023,Communities,Culture & Leisure - Communities Dir,AMAZON.CO.UK,19.75,0,19.75,"Books, Records, Films & Oth Publications",Direct sales companies,
Buckinghamshire Council ,31.07.2023,13.07.2023,Communities,Transport - Communities Dir,AMERSHAM OLD TOWN,0.8,0,0.8,Repair and Maintenance of Equipment,Car parking & garages,
Buckinghamshire Council ,31.07.2023,13.07.2023,Resources,AH&R - Res Dir,SUMUP  *UK TAXI,40,0,40,Staff Travelling Expenses,Taxicabs & limousines,
Buckinghamshire Council ,31.07.2023,13.07.2023,Resources,AH&R - Res Dir,ZETTLE_*SHAH & SHAH,65,0,65,Staff Travelling Expenses,Misc. repair services,
Buckinghamshire Council ,31.07.2023,13.07.2023,Children's Services,Education & Childrens Services - CS Dir,AMZNMKTPLACE,27.98,0,27.98,Consumable Supplies,Miscellaneous retail,
Buckinghamshire Council ,31.07.2023,13.07.2023,Children's Services,Education & Childrens Services - CS Dir,AMZNMKTPLACE,58.42,0,58.42,Consumable Supplies,Miscellaneous retail,
Buckinghamshire Council ,31.07.2023,13.07.2023,Children's Services,Education & Childrens Services - CS Dir,WM MORRISONS STORE,17.65,0,17.65,General Provisions (Food),Grocery stores,
Buckinghamshire Council ,31.07.2023,13.07.2023,"Planning, Growth & Sustainability",Partnership Climate Change & Envir - PGS,ASHDOWN PHILLIPS PARTNE,50.4,0,50.4,Purchase.of Refreshments and Food,Estate Agents & Property Management,
Buckinghamshire Council ,31.07.2023,13.07.2023,Adults and Health,Health & Wellbeing - Adults & Health Dir,PREMIER INN,233.75,0,233.75,Other Short Term Support,Premier Inn,
Buckinghamshire Council ,31.07.2023,13.07.2023,Adults and Health,Health & Wellbeing - Adults & Health Dir,PREMIER INN,71.4,0,71.4,Other Short Term Support,Premier Inn,
Buckinghamshire Council ,31.07.2023,13.07.2023,Communities,Culture & Leisure - Communities Dir,HALFORDS 0894,11.2,2.24,13.44,Administrative Equipment & Tools,"Bicycle shops, sales & service",
Buckinghamshire Council ,31.07.2023,13.07.2023,Communities,Culture & Leisure - Communities Dir,HALFORDS 0894,0.03,0,0.03,Administrative Equipment & Tools,"Bicycle shops, sales & service",
Buckinghamshire Council ,31.07.2023,13.07.2023,Children's Services,Education & Childrens Services - CS Dir,PREZZEE/GB8C096180,30,0,30,Furniture,Misc. general merchandise,
Buckinghamshire Council ,31.07.2023,13.07.2023,Resources,AH&R - Res Dir,AMZNMKTPLACE,987.05,0,987.05,Computer Consumables,Miscellaneous retail,
Buckinghamshire Council ,31.07.2023,13.07.2023,Deputy Chief Executive,AH&R- DCE Dir,CLOUDFLARE,203.88,0,203.88,Computer Consumables,Computer software stores,
Buckinghamshire Council ,31.07.2023,13.07.2023,Children's Services,Education & Childrens Services - CS Dir,TRAVELODGE GB0000,70.36,0,70.36,Sec 17: Accommodation,Travelodge,
Buckinghamshire Council ,31.07.2023,13.07.2023,Deputy Chief Executive,AH&R- DCE Dir,DUNELM LTD,100,0,100,General Allowances,Drapery & upholstery shops,
Buckinghamshire Council ,31.07.2023,13.07.2023,Children's Services,Education & Childrens Services - CS Dir,DOMINOS PIZZA 28091,30.54,0,30.54,Subsistence,Fast food restaurants,
Buckinghamshire Council ,31.07.2023,13.07.2023,Resources,AH&R - Res Dir,C2E859500101F UKVI,"1,199.00",0,"1,199.00",Professional Services (non curriculum) - External,Government services,
Buckinghamshire Council ,31.07.2023,13.07.2023,Resources,AH&R - Res Dir,PREMIER INN,97,0,97,Other Short Term Support,Premier Inn,
Buckinghamshire Council ,31.07.2023,13.07.2023,Children's Services,Education & Childrens Services - CS Dir,QS SUPPLIES,306.73,0,306.73,Leaving Care - Grants for Care Leavers,Miscellaneous retail,
Buckinghamshire Council ,31.07.2023,13.07.2023,Children's Services,Education & Childrens Services - CS Dir,AMZNMKTPLACE,15.99,0,15.99,Leaving Care - Grants for Care Leavers,Miscellaneous retail,
Buckinghamshire Council ,31.07.2023,13.07.2023,Children's Services,Education & Childrens Services - CS Dir,WWW.MDX.AC.UK,"4,625.00",0,"4,625.00",Leaving Care - Higher Education Supp,Colleges & universities,
Buckinghamshire Council ,31.07.2023,13.07.2023,Children's Services,Education & Childrens Services - CS Dir,AMZNMKTPLACE,18.98,0,18.98,Leaving Care - Grants for Care Leavers,Miscellaneous retail,
Buckinghamshire Council ,31.07.2023,13.07.2023,Children's Services,Education & Childrens Services - CS Dir,AMZNMKTPLACE,18.99,0,18.99,Leaving Care - Grants for Care Leavers,Miscellaneous retail,
Buckinghamshire Council ,31.07.2023,13.07.2023,Children's Services,Education & Childrens Services - CS Dir,AMZNMKTPLACE,39.94,0,39.94,Leaving Care - Grants for Care Leavers,Miscellaneous retail,
Buckinghamshire Council ,31.07.2023,13.07.2023,Children's Services,Education & Childrens Services - CS Dir,AMZNMKTPLACE,77.92,0,77.92,Leaving Care - Grants for Care Leavers,Miscellaneous retail,
Buckinghamshire Council ,31.07.2023,13.07.2023,"Planning, Growth & Sustainability",Planning & Regeneration - PGS,ZETTLE_*M-BITZ LTD T A,14.99,0,14.99,IT Equipment Purchase,Miscellaneous retail,
Buckinghamshire Council ,31.07.2023,13.07.2023,Resources,AH&R - Res Dir,LINKEDIN ADS 9231800334,42.7,0,42.7,Permanent Recruitment Costs,Advertising services,
Buckinghamshire Council ,31.07.2023,13.07.2023,"Planning, Growth & Sustainability",Climate Change & Environment - PGS,EB *LOCAL WILDLIFE SIT,20,0,20,"Courses, Conference and Seminar Fees",Misc business services,
Buckinghamshire Council ,31.07.2023,13.07.2023,Children's Services,Education & Childrens Services - CS Dir,THE WORKS,11.65,2.33,13.98,Activities Programme,Discount stores,
Buckinghamshire Council ,31.07.2023,13.07.2023,Children's Services,Education & Childrens Services - CS Dir,THE WORKS,0.02,0,0.02,Activities Programme,Discount stores,
Buckinghamshire Council ,31.07.2023,13.07.2023,Children's Services,Education & Childrens Services - CS Dir,ONE BELOW,7.25,0,7.25,Activities Programme,Grocery stores,
Buckinghamshire Council ,31.07.2023,13.07.2023,Children's Services,Education & Childrens Services - CS Dir,TESCO STORES 2020,154.91,0,154.91,Consumable Supplies,Grocery stores,
Buckinghamshire Council ,31.07.2023,13.07.2023,Deputy Chief Executive,AH&R- DCE Dir,PAYPAL,164.17,32.83,197,Miscellaneous (Other)  Expenses,Variety stores,
Buckinghamshire Council ,31.07.2023,13.07.2023,Children's Services,Education & Childrens Services - CS Dir,TRAINLINE,37.5,0,37.5,Staff Travelling Expenses,Passenger railways,
Buckinghamshire Council ,31.07.2023,13.07.2023,Children's Services,Education & Childrens Services - CS Dir,NTU INTERNET,"4,625.00",0,"4,625.00",Leaving Care - Higher Education Supp,Colleges & universities,
Buckinghamshire Council ,31.07.2023,13.07.2023,Communities,Culture & Leisure - Communities Dir,B & Q 1305,4.25,0.85,5.1,Administrative Equipment & Tools,Home supply warehouse stores,
Buckinghamshire Council ,31.07.2023,12.07.2023,Adults and Health,Health & Wellbeing - Adults & Health Dir,TESCO SUBSCRIPTION,7.99,0,7.99,General Provisions (Food),Continuous subscriptions,
Buckinghamshire Council ,31.07.2023,12.07.2023,Deputy Chief Executive,AH&R- DCE Dir,PAYPAL,751.65,150.33,901.98,Miscellaneous (Other)  Expenses,Electronics shops,
Buckinghamshire Council ,31.07.2023,12.07.2023,Deputy Chief Executive,AH&R- DCE Dir,PAYPAL,0.02,0,0.02,Miscellaneous (Other)  Expenses,Electronics shops,
Buckinghamshire Council ,31.07.2023,12.07.2023,Children's Services,Education & Childrens Services - CS Dir,WWW.ARGOS.CO.UK,40.45,0,40.45,Leaving Care - Grants for Care Leavers,Department stores,
Buckinghamshire Council ,31.07.2023,12.07.2023,Deputy Chief Executive,Communities - DCE,WWW.ARGOS.CO.UK,52.55,10.51,63.06,Other Personal Needs,Department stores,
Buckinghamshire Council ,31.07.2023,12.07.2023,Deputy Chief Executive,Communities - DCE,WWW.ARGOS.CO.UK,0.01,0,0.01,Other Personal Needs,Department stores,
Buckinghamshire Council ,31.07.2023,12.07.2023,Deputy Chief Executive,Communities - DCE,WWW.ARGOS.CO.UK,224.1,44.82,268.92,Other Personal Needs,Department stores,
Buckinghamshire Council ,31.07.2023,12.07.2023,Deputy Chief Executive,Communities - DCE,WWW.ARGOS.CO.UK,0.03,0,0.03,Other Personal Needs,Department stores,
Buckinghamshire Council ,31.07.2023,12.07.2023,Deputy Chief Executive,Communities - DCE,AO RETAIL LIMITED,285.83,57.17,343,Other Personal Needs,Household appliance stores,
Buckinghamshire Council ,31.07.2023,12.07.2023,Deputy Chief Executive,Communities - DCE,AO RETAIL LIMITED,320,64,384,Other Personal Needs,Household appliance stores,
Buckinghamshire Council ,31.07.2023,12.07.2023,Deputy Chief Executive,Communities - DCE,AO RETAIL LIMITED,232.5,46.5,279,Other Personal Needs,Household appliance stores,
Buckinghamshire Council ,31.07.2023,12.07.2023,Deputy Chief Executive,Communities - DCE,AO RETAIL LIMITED,-25,0,-25,Other Personal Needs,Household appliance stores,
Buckinghamshire Council ,31.07.2023,12.07.2023,"Planning, Growth & Sustainability",Planning & Regeneration - PGS,SAINSBURY S S/MKTS,5.2,0,5.2,Miscellaneous (Other)  Expenses,Grocery stores,
Buckinghamshire Council ,31.07.2023,12.07.2023,"Planning, Growth & Sustainability",Planning & Regeneration - PGS,SAINSBURYS S/MKTS,10.7,0,10.7,Miscellaneous (Other)  Expenses,Grocery stores,
Buckinghamshire Council ,31.07.2023,12.07.2023,Communities,Housing & Homelessness & Regulatory Comm,MICRON SPRAYERS LTD,20.4,0,20.4,General Repairs & Maintenance,Hardware Equipment & Suppliers,
Buckinghamshire Council ,31.07.2023,12.07.2023,Communities,Transport - Communities Dir,PARKING-SWAN,0.6,0,0.6,Repair and Maintenance of Equipment,Car parking & garages,
Buckinghamshire Council ,31.07.2023,12.07.2023,Communities,Transport - Communities Dir,PARKING-SWAN,0.6,0,0.6,Repair and Maintenance of Equipment,Car parking & garages,
Buckinghamshire Council ,31.07.2023,12.07.2023,Communities,Housing & Homelessness & Regulatory Comm,SHELL HAZLEMERE,13.74,0,13.74,Maintenance of Grounds,Service stations,
Buckinghamshire Council ,31.07.2023,12.07.2023,Resources,AH&R - Res Dir,THE FLOWER BAR,61,0,61,Miscellaneous (Other)  Expenses,Florists,
Buckinghamshire Council ,31.07.2023,12.07.2023,Resources,AH&R - Res Dir,TRAINLINE,9.36,0,9.36,Staff Travelling Expenses,Passenger railways,
Buckinghamshire Council ,31.07.2023,12.07.2023,"Planning, Growth & Sustainability",AH&R - PGS Dir,AMZ*LG E-COMMERCE LTD,-484,0,-484,General Repairs & Maintenance,Miscellaneous retail,
Buckinghamshire Council ,31.07.2023,12.07.2023,Children's Services,Education & Childrens Services - CS Dir,MAILCHIMP,211.17,0,211.17,Service Development,,
Buckinghamshire Council ,31.07.2023,12.07.2023,"Planning, Growth & Sustainability",AH&R - PGS Dir,EDMUNDSON ELECTRICAL,20.93,0,20.93,General Repairs & Maintenance,Electrical parts & equipment,
Buckinghamshire Council ,31.07.2023,12.07.2023,Deputy Chief Executive,Leader - DCE,HTTP://WWW.RSBOOKBINDE,185,0,185,Special Events,"Books, periodicals & newspapers",
Buckinghamshire Council ,31.07.2023,12.07.2023,Communities,Transport - Communities Dir,SAVERS HEALTH & BEAUTY,5.05,0,5.05,Materials,Chemists & pharmacies,
Buckinghamshire Council ,31.07.2023,12.07.2023,Children's Services,Education & Childrens Services - CS Dir,DUNELM LTD,30,0,30,Other Equipment and Materials,Drapery & upholstery shops,
Buckinghamshire Council ,31.07.2023,12.07.2023,Children's Services,Education & Childrens Services - CS Dir,ALDI 110 775,15.04,0,15.04,General Provisions (Food),Grocery stores,
Buckinghamshire Council ,31.07.2023,12.07.2023,Children's Services,Education & Childrens Services - CS Dir,T K MAXX,4.99,0,4.99,Other Equipment and Materials,Variety stores,
Buckinghamshire Council ,31.07.2023,12.07.2023,Deputy Chief Executive,Communities - DCE,NEW YORK DELI GATEHOUSE,6.15,0,6.15,Subsistence,Restaurants,
Buckinghamshire Council ,31.07.2023,12.07.2023,Adults and Health,Health & Wellbeing - Adults & Health Dir,TRAVELODGE GB0000,906.93,0,906.93,Other Short Term Support,Travelodge,
Buckinghamshire Council ,31.07.2023,12.07.2023,Adults and Health,Health & Wellbeing - Adults & Health Dir,TRAVELODGE GB0000,"1,997.72",0,"1,997.72",Other Short Term Support,Travelodge,
Buckinghamshire Council ,31.07.2023,12.07.2023,Adults and Health,Health & Wellbeing - Adults & Health Dir,TRAVELODGE GB0000,"1,845.72",0,"1,845.72",Other Short Term Support,Travelodge,
Buckinghamshire Council ,31.07.2023,12.07.2023,Adults and Health,Health & Wellbeing - Adults & Health Dir,TRAVELODGE GB0000,"1,070.86",0,"1,070.86",Other Short Term Support,Travelodge,
Buckinghamshire Council ,31.07.2023,12.07.2023,Resources,AH&R - Res Dir,TRAVELODGE GB0000,105.04,0,105.04,"Courses, Conference and Seminar Fees",Travelodge,
Buckinghamshire Council ,31.07.2023,12.07.2023,"Planning, Growth & Sustainability",Planning & Regeneration - PGS,CHARTERED ASSOCIATION,330,0,330,Mobile Telephones & Cellphone Charges,Colleges & universities,
Buckinghamshire Council ,31.07.2023,12.07.2023,Children's Services,Education & Childrens Services - CS Dir,B&M 426 - HS AYLESBURY,87.05,0,87.05,Leaving Care - Grants for Care Leavers,Misc. general merchandise,
Buckinghamshire Council ,31.07.2023,12.07.2023,"Planning, Growth & Sustainability",Climate Change & Environment - PGS,THE AKEMAN INN,292.4,58.48,350.88,Events Expenditure,Restaurants,
Buckinghamshire Council ,31.07.2023,12.07.2023,"Planning, Growth & Sustainability",Climate Change & Environment - PGS,THE AKEMAN INN,35.11,0,35.11,Events Expenditure,Restaurants,
Buckinghamshire Council ,31.07.2023,12.07.2023,Resources,AH&R - Res Dir,PAYPAL,73.2,0,73.2,IT - Computer Network Charges,Computer network information services,
Buckinghamshire Council ,31.07.2023,12.07.2023,Children's Services,Education & Childrens Services - CS Dir,BKG*HOTEL AT BOOKING.C,152.96,0,152.96,"Courses, Conference and Seminar Fees",Travel agencies,
Buckinghamshire Council ,31.07.2023,12.07.2023,Children's Services,Education & Childrens Services - CS Dir,SPORTSDIRECT 210,17.99,0,17.99,Support for Foster Carers,Sporting goods shops,
Buckinghamshire Council ,31.07.2023,12.07.2023,Children's Services,Education & Childrens Services - CS Dir,DOMINO S PIZZA,89.75,0,89.75,"Courses, Conference and Seminar Fees",Restaurants,
Buckinghamshire Council ,31.07.2023,12.07.2023,Children's Services,Education & Childrens Services - CS Dir,ASDA SUPERSTORE,13.39,0,13.39,General Provisions (Food),Grocery stores,
Buckinghamshire Council ,31.07.2023,12.07.2023,Children's Services,Education & Childrens Services - CS Dir,NATIONAL TRUST,308.9,0,308.9,Activities & General Recreation,Charitable organisations,
Buckinghamshire Council ,31.07.2023,12.07.2023,Adults and Health,Health & Wellbeing - Adults & Health Dir,TESCO GIFT CARD,30,0,30,Other Short Term Support,Grocery stores,
Buckinghamshire Council ,31.07.2023,12.07.2023,Adults and Health,Health & Wellbeing - Adults & Health Dir,WWW.ARGOS.CO.UK,50,0,50,Other Short Term Support,Department stores,
Buckinghamshire Council ,31.07.2023,12.07.2023,Children's Services,Education & Childrens Services - CS Dir,AMZNMKTPLACE,30.94,0,30.94,Leaving Care - Grants for Care Leavers,Miscellaneous retail,
Buckinghamshire Council ,31.07.2023,12.07.2023,Children's Services,Education & Childrens Services - CS Dir,DUNELM SOFTFURNISHINGS,594,0,594,Leaving Care - Grants for Care Leavers,Furniture & home furnishing,
Buckinghamshire Council ,31.07.2023,12.07.2023,Children's Services,Education & Childrens Services - CS Dir,SP DAALS.CO.UK,369.98,0,369.98,Leaving Care - Grants for Care Leavers,Furniture & home furnishing,
Buckinghamshire Council ,31.07.2023,12.07.2023,Children's Services,Education & Childrens Services - CS Dir,SP MOGODIRECT,85.74,0,85.74,Leaving Care - Grants for Care Leavers,Office & commercial furniture,
Buckinghamshire Council ,31.07.2023,12.07.2023,Children's Services,Education & Childrens Services - CS Dir,UNITE STUDENTS,"2,949.43",0,"2,949.43",Leaving Care - Higher Education Supp,Professional services,
Buckinghamshire Council ,31.07.2023,12.07.2023,Children's Services,Education & Childrens Services - CS Dir,STUDENT ROOST,"1,400.00",0,"1,400.00",Leaving Care - Higher Education Supp,Estate Agents & Property Management,
Buckinghamshire Council ,31.07.2023,12.07.2023,Children's Services,Education & Childrens Services - CS Dir,AMZNMKTPLACE,54.99,0,54.99,Leaving Care - Grants for Care Leavers,Miscellaneous retail,
Buckinghamshire Council ,31.07.2023,12.07.2023,Children's Services,Education & Childrens Services - CS Dir,AMZNMKTPLACE,71.99,0,71.99,Leaving Care - Grants for Care Leavers,Miscellaneous retail,
Buckinghamshire Council ,31.07.2023,12.07.2023,Children's Services,Education & Childrens Services - CS Dir,WWW.MDX.AC.UK,300,0,300,Leaving Care - Higher Education Supp,Colleges & universities,
Buckinghamshire Council ,31.07.2023,12.07.2023,Communities,ommunities - Trust Accounts,BOOKER LIMITED ECOM,595.19,0,595.19,Awaiting Coding,Grocery stores,
Buckinghamshire Council ,31.07.2023,12.07.2023,Communities,ommunities - Trust Accounts,BOOKER LIMITED ECOM,68.48,0,68.48,Awaiting Coding,Grocery stores,
Buckinghamshire Council ,31.07.2023,12.07.2023,"Planning, Growth & Sustainability",Housing & Homelessness & Regulatory PGS,AMZNMKTPLACE,19.97,0,19.97,Furniture,Miscellaneous retail,
Buckinghamshire Council ,31.07.2023,12.07.2023,"Planning, Growth & Sustainability",Planning & Regeneration - PGS,AMAZON.CO.UK,250,0,250,Long Service Awards,Direct sales companies,
Buckinghamshire Council ,31.07.2023,12.07.2023,"Planning, Growth & Sustainability",Planning & Regeneration - PGS,WWW.PURELYPAPER.CO.UK,319.07,0,319.07,Stationery & Office Supplies,Electrical parts & equipment,
Buckinghamshire Council ,31.07.2023,12.07.2023,Children's Services,Education & Childrens Services - CS Dir,TRAVELODGE GB0000,133.6,0,133.6,"Courses, Conference and Seminar Fees",Travelodge,
Buckinghamshire Council ,31.07.2023,12.07.2023,Children's Services,Education & Childrens Services - CS Dir,TRAVELODGE GB0000,110.14,0,110.14,"Courses, Conference and Seminar Fees",Travelodge,
Buckinghamshire Council ,31.07.2023,12.07.2023,"Planning, Growth & Sustainability",Climate Change & Environment - PGS,ROPESDIRECT.CO.UK,40.56,0,40.56,Administrative Equipment & Tools,"Hobby, toy & game shops",
Buckinghamshire Council ,31.07.2023,12.07.2023,Children's Services,Education & Childrens Services - CS Dir,TESCO GIFT CARD,20,0,20,Sec 20/31: Specialist Services,Grocery stores,
Buckinghamshire Council ,31.07.2023,12.07.2023,Children's Services,Education & Childrens Services - CS Dir,TRAINLINE,17.2,0,17.2,Sec 20/31: Transport,Passenger railways,
Buckinghamshire Council ,31.07.2023,12.07.2023,Children's Services,Education & Childrens Services - CS Dir,SAINSBURY S S/MKTS,38.05,0,38.05,Consumable Supplies,Grocery stores,
Buckinghamshire Council ,31.07.2023,12.07.2023,Children's Services,Education & Childrens Services - CS Dir,ABL RETAIL LTD,65,0,65,Sec 20/31: Financial Assistance,Medical & health services,
Buckinghamshire Council ,31.07.2023,12.07.2023,"Planning, Growth & Sustainability",Special Expenses,LOCK & KEY CENTRE,8,0,8,Equipment,Shoe repairs,
Buckinghamshire Council ,31.07.2023,12.07.2023,Communities,Housing & Homelessness & Regulatory Comm,EBAY O*27-10272-70354,11.4,0,11.4,Telephones,Department stores,
Buckinghamshire Council ,31.07.2023,12.07.2023,Deputy Chief Executive,AH&R- DCE Dir,PAYPAL,139.13,27.82,166.95,Miscellaneous (Other)  Expenses,Variety stores,
Buckinghamshire Council ,31.07.2023,12.07.2023,Deputy Chief Executive,AH&R- DCE Dir,PAYPAL,"1,356.63",271.32,"1,627.95",Miscellaneous (Other)  Expenses,Variety stores,
Buckinghamshire Council ,31.07.2023,12.07.2023,Children's Services,Education & Childrens Services - CS Dir,PAYPAL,"2,505.95",0,"2,505.95",Leaving Care - Grants for Care Leavers,Variety stores,
Buckinghamshire Council ,31.07.2023,12.07.2023,Children's Services,Education & Childrens Services - CS Dir,PAYPAL,154.99,0,154.99,Leaving Care - Grants for Care Leavers,Variety stores,
Buckinghamshire Council ,31.07.2023,12.07.2023,Children's Services,Education & Childrens Services - CS Dir,TRAINLINE,-6,0,-6,Sec 20/31: Supp for Contact,Passenger railways,
Buckinghamshire Council ,31.07.2023,11.07.2023,Children's Services,Education & Childrens Services - CS Dir,AMZNMKTPLACE,18.99,0,18.99,Other Equipment and Materials,Miscellaneous retail,
Buckinghamshire Council ,31.07.2023,11.07.2023,Children's Services,Education & Childrens Services - CS Dir,AMZNMKTPLACE,10.4,0,10.4,Activities & General Recreation,Miscellaneous retail,
Buckinghamshire Council ,31.07.2023,11.07.2023,Adults and Health,Health & Wellbeing - Adults & Health Dir,EB *PUTTING A SPOTLIGH,230,46,276,"Courses, Conference and Seminar Fees",Misc business services,
Buckinghamshire Council ,31.07.2023,11.07.2023,Children's Services,Education & Childrens Services - CS Dir,WWW.THRIVEHOMES.ORG.UK,172.6,0,172.6,Leaving Care - Rent,Government services,
Buckinghamshire Council ,31.07.2023,11.07.2023,Children's Services,Education & Childrens Services - CS Dir,ARGOS  AYLESBURY GATEHOU,29.99,0,29.99,Other Personal Needs,Discount stores,
Buckinghamshire Council ,31.07.2023,11.07.2023,Children's Services,Education & Childrens Services - CS Dir,THE FRAGRANCE SHOP 270,68.85,0,68.85,Activities & General Recreation,Cosmetic shops,
Buckinghamshire Council ,31.07.2023,11.07.2023,Children's Services,Education & Childrens Services - CS Dir,SUMUP  *BARTLEY SERVICES,80,0,80,Activities & General Recreation,Hairdresser and beauty shops,
Buckinghamshire Council ,31.07.2023,11.07.2023,Children's Services,Education & Childrens Services - CS Dir,COSTA COFFEE,8.7,0,8.7,General Provisions (Food),Fast food restaurants,
Buckinghamshire Council ,31.07.2023,11.07.2023,Deputy Chief Executive,Communities - DCE,AO RETAIL LIMITED,444.16,88.84,533,Other Personal Needs,Household appliance stores,
Buckinghamshire Council ,31.07.2023,11.07.2023,Deputy Chief Executive,Communities - DCE,AO RETAIL LIMITED,892,0,892,Other Personal Needs,Household appliance stores,
Buckinghamshire Council ,31.07.2023,11.07.2023,Deputy Chief Executive,Communities - DCE,WWW.ARGOS.CO.UK,657.45,131.49,788.94,Other Personal Needs,Department stores,
Buckinghamshire Council ,31.07.2023,11.07.2023,Deputy Chief Executive,Communities - DCE,WWW.ARGOS.CO.UK,0.01,0,0.01,Other Personal Needs,Department stores,
Buckinghamshire Council ,31.07.2023,11.07.2023,Deputy Chief Executive,Communities - DCE,AO RETAIL LIMITED,228.33,45.67,274,Other Personal Needs,Household appliance stores,
Buckinghamshire Council ,31.07.2023,11.07.2023,Deputy Chief Executive,Communities - DCE,AO RETAIL LIMITED,199.16,39.84,239,Other Personal Needs,Household appliance stores,
Buckinghamshire Council ,31.07.2023,11.07.2023,Deputy Chief Executive,Communities - DCE,AO RETAIL LIMITED,544.16,108.84,653,Other Personal Needs,Household appliance stores,
Buckinghamshire Council ,31.07.2023,11.07.2023,Resources,AH&R - Res Dir,POST OFFICE COUNTER,250,0,250,General Postage,Postal services,
Buckinghamshire Council ,31.07.2023,11.07.2023,Children's Services,Education & Childrens Services - CS Dir,BROCKET ARMS,54.4,0,54.4,Staff Travelling Expenses,Restaurants,
Buckinghamshire Council ,31.07.2023,11.07.2023,"Planning, Growth & Sustainability",Housing & Homelessness & Regulatory PGS,LAND REGISTRY ECOM CCC,3,0,3,Homelessness,Government services,
Buckinghamshire Council ,31.07.2023,11.07.2023,"Planning, Growth & Sustainability",Housing & Homelessness & Regulatory PGS,LAND REGISTRY ECOM CCC,3,0,3,Homelessness,Government services,
Buckinghamshire Council ,31.07.2023,11.07.2023,Resources,AH&R - Res Dir,BUCKINGHAMSHIRE CNCL,11,0,11,Miscellaneous (Other)  Expenses,Government services,
Buckinghamshire Council ,31.07.2023,11.07.2023,Children's Services,Education & Childrens Services - CS Dir,PAYPAL,512,0,512,Training Materials,Charitable organisations,
Buckinghamshire Council ,31.07.2023,11.07.2023,Communities,artnerships - Communities,DOMINOS PIZZA,83.22,0,83.22,Equipment,Fast food restaurants,
Buckinghamshire Council ,31.07.2023,11.07.2023,"Planning, Growth & Sustainability",AH&R - PGS Dir,GRANT AND STONE,56.53,0,56.53,General Repairs & Maintenance,Hardware stores,
Buckinghamshire Council ,31.07.2023,11.07.2023,"Planning, Growth & Sustainability",AH&R - PGS Dir,GRANT AND STONE,56.47,0,56.47,General Repairs & Maintenance,Hardware stores,
Buckinghamshire Council ,31.07.2023,11.07.2023,"Planning, Growth & Sustainability",AH&R - PGS Dir,EDMUNDSON ELECTRICAL,113.28,0,113.28,General Repairs & Maintenance,Electrical parts & equipment,
Buckinghamshire Council ,31.07.2023,11.07.2023,Communities,Culture & Leisure - Communities Dir,WWW.GREEN-TECH.CO.UK,99,19.8,118.8,"Workshop - Materials,Tools & Equipment",Misc business services,
Buckinghamshire Council ,31.07.2023,11.07.2023,Adults and Health,Health & Wellbeing - Adults & Health Dir,WWW.WIDGIT.COM,796.8,0,796.8,Computer Software Licences & Purchase,Computer software stores,
Buckinghamshire Council ,31.07.2023,11.07.2023,Deputy Chief Executive,AH&R- DCE Dir,JD SPORTS FASHION PLC,100,0,100,Long Service Awards,Sporting goods shops,
Buckinghamshire Council ,31.07.2023,11.07.2023,Children's Services,Education & Childrens Services - CS Dir,WWW.SAFETYCENTRE.CO.UK,17.44,0,17.44,Awaiting Coding,Schools,
Buckinghamshire Council ,31.07.2023,11.07.2023,Children's Services,artnerships - Children's Services,LUCAS COFFEE HOUSE,22.32,0,22.32,Subsistence,Fast food restaurants,
Buckinghamshire Council ,31.07.2023,11.07.2023,Children's Services,Education & Childrens Services - CS Dir,ASDA GROCERIES ONLINE,63.52,0,63.52,General Provisions (Food),Grocery stores,
Buckinghamshire Council ,31.07.2023,11.07.2023,Children's Services,Education & Childrens Services - CS Dir,TRAVELODGE GB0000,"2,172.95",0,"2,172.95",Sec 17: Accommodation,Travelodge,
Buckinghamshire Council ,31.07.2023,11.07.2023,Children's Services,Education & Childrens Services - CS Dir,BAKER ROSS,30.7,0,30.7,Activities & General Recreation,Art & craft shops,
Buckinghamshire Council ,31.07.2023,11.07.2023,Communities,Culture & Leisure - Communities Dir,AMZNMKTPLACE,99.99,20,119.99,Stationery & Office Supplies,Miscellaneous retail,
Buckinghamshire Council ,31.07.2023,11.07.2023,Children's Services,Education & Childrens Services - CS Dir,WWW.ARGOS.CO.UK,65,0,65,Awaiting Coding,Department stores,
Buckinghamshire Council ,31.07.2023,11.07.2023,Children's Services,Education & Childrens Services - CS Dir,Hobbycraft,61.1,0,61.1,Awaiting Coding,Art & craft shops,
Buckinghamshire Council ,31.07.2023,11.07.2023,Resources,AH&R - Res Dir,C2E859300666G UKVI,"2,199.00",0,"2,199.00",Professional Services (non curriculum) - External,Government services,
Buckinghamshire Council ,31.07.2023,11.07.2023,Children's Services,Education & Childrens Services - CS Dir,WWW.JOHNLEWIS.COM,591.4,0,591.4,Leaving Care - Grants for Care Leavers,Department stores,
Buckinghamshire Council ,31.07.2023,11.07.2023,Children's Services,Education & Childrens Services - CS Dir,OAK FURNITURELAND GROUP L,809.97,0,809.97,Leaving Care - Grants for Care Leavers,Furniture & home furnishing,
Buckinghamshire Council ,31.07.2023,11.07.2023,Children's Services,Education & Childrens Services - CS Dir,ONWARD TRAVEL SOLUTIONS,249,0,249,Staff Travelling Expenses,Taxicabs & limousines,
Buckinghamshire Council ,31.07.2023,11.07.2023,Children's Services,Education & Childrens Services - CS Dir,AMZNMKTPLACE,3.99,0,3.99,Leaving Care - Grants for Care Leavers,Miscellaneous retail,
Buckinghamshire Council ,31.07.2023,11.07.2023,Deputy Chief Executive,AH&R- DCE Dir,WWW.ARGOS.CO.UK,116.65,23.33,139.98,Miscellaneous (Other)  Expenses,Department stores,
Buckinghamshire Council ,31.07.2023,11.07.2023,Deputy Chief Executive,AH&R- DCE Dir,WWW.ARGOS.CO.UK,0.01,0,0.01,Miscellaneous (Other)  Expenses,Department stores,
Buckinghamshire Council ,31.07.2023,11.07.2023,Children's Services,Education & Childrens Services - CS Dir,MERLIN ATTRACTIONS OPERAT,70,0,70,Activities & General Recreation,Theatres and ticket agencies,
Buckinghamshire Council ,31.07.2023,11.07.2023,Children's Services,Education & Childrens Services - CS Dir,HOLLYWOOD BOWL,25,0,25,Activities & General Recreation,"Member clubs, sport, recreation & golf",
Buckinghamshire Council ,31.07.2023,11.07.2023,Children's Services,Education & Childrens Services - CS Dir,AMZNMKTPLACE,99.98,0,99.98,Furniture,Miscellaneous retail,
Buckinghamshire Council ,31.07.2023,11.07.2023,Adults and Health,Health & Wellbeing - Adults & Health Dir,AMZNMKTPLACE,95.99,0,95.99,Other Supplies,Miscellaneous retail,
Buckinghamshire Council ,31.07.2023,11.07.2023,Children's Services,Education & Childrens Services - CS Dir,THE RANGE,14.23,0,14.23,Activities & General Recreation,Department stores,
Buckinghamshire Council ,31.07.2023,11.07.2023,Adults and Health,Health & Wellbeing - Adults & Health Dir,AMZNMKTPLACE,42.1,0,42.1,Activities & General Recreation,Miscellaneous retail,
Buckinghamshire Council ,31.07.2023,11.07.2023,Deputy Chief Executive,AH&R- DCE Dir,SLACK T181RTHAL,22.68,0,22.68,Computer Consumables,Computer software stores,
Buckinghamshire Council ,31.07.2023,11.07.2023,Children's Services,Education & Childrens Services - CS Dir,TIGER TAXIS,60,0,60,Staff Travelling Expenses,Taxicabs & limousines,
Buckinghamshire Council ,31.07.2023,11.07.2023,Deputy Chief Executive,AH&R- DCE Dir,ASAP STAMPS LTD,48.18,0,48.18,Printing & Stationery,Misc business services,
Buckinghamshire Council ,31.07.2023,11.07.2023,Deputy Chief Executive,AH&R- DCE Dir,PLAZA CARS,30,0,30,Staff Travelling Expenses,Taxicabs & limousines,
Buckinghamshire Council ,31.07.2023,11.07.2023,Deputy Chief Executive,Communities - DCE,PAYPAL,158.33,31.67,190,Other Personal Needs,Variety stores,
Buckinghamshire Council ,31.07.2023,11.07.2023,Deputy Chief Executive,Communities - DCE,PAYPAL,224.13,44.82,268.95,Other Personal Needs,Variety stores,
Buckinghamshire Council ,31.07.2023,11.07.2023,Adults and Health,Health & Wellbeing - Adults & Health Dir,ICELAND FOODS,105.89,0,105.89,General Provisions (Food),Grocery stores,
Buckinghamshire Council ,31.07.2023,10.07.2023,Adults and Health,Health & Wellbeing - Adults & Health Dir,AMZNMKTPLACE,14.98,3,17.98,Stationery & Office Supplies,Miscellaneous retail,
Buckinghamshire Council ,31.07.2023,10.07.2023,Communities,Culture & Leisure - Communities Dir,FACEBK DBMNCPTJB2,16,0,16,Advertising,Advertising services,
Buckinghamshire Council ,31.07.2023,10.07.2023,"Planning, Growth & Sustainability",AH&R - PGS Dir,VOUCHER EXPRESS,50,0,50,Long Service Awards,Misc business services,
Buckinghamshire Council ,31.07.2023,10.07.2023,"Planning, Growth & Sustainability",AH&R - PGS Dir,VOUCHER EXPRESS,200,0,200,Long Service Awards,Misc business services,
Buckinghamshire Council ,31.07.2023,10.07.2023,Children's Services,Education & Childrens Services - CS Dir,COSTA COFFEE CHESHAM,8.6,0,8.6,"Exp of School, Club & College Activities",Fast food restaurants,
Buckinghamshire Council ,31.07.2023,10.07.2023,Children's Services,Education & Childrens Services - CS Dir,JUNGLE RUMBLE (BRIGHTON),99,0,99,"Exp of School, Club & College Activities",Public golf courses,
Buckinghamshire Council ,31.07.2023,10.07.2023,Children's Services,Education & Childrens Services - CS Dir,WWW.BRITISHAIRWAYSI360,219.35,0,219.35,"Exp of School, Club & College Activities",Tourist attractions and exhibitions,
Buckinghamshire Council ,31.07.2023,10.07.2023,Children's Services,Education & Childrens Services - CS Dir,TESCO STORES 2038,238.15,0,238.15,General Provisions (Food),Grocery stores,
Buckinghamshire Council ,31.07.2023,10.07.2023,Resources,AH&R - Res Dir,C2E859201597U UKVI,"2,199.00",0,"2,199.00",Professional Services (non curriculum) - External,Government services,
Buckinghamshire Council ,31.07.2023,10.07.2023,"Planning, Growth & Sustainability",Planning & Regeneration - PGS,WWW.LABC.UK.COM,90,0,90,Course Fees & Post Entry Training,Misc business services,
Buckinghamshire Council ,31.07.2023,10.07.2023,"Planning, Growth & Sustainability",Planning & Regeneration - PGS,WWW.LABC.UK.COM,90,0,90,Course Fees & Post Entry Training,Misc business services,
Buckinghamshire Council ,31.07.2023,10.07.2023,"Planning, Growth & Sustainability",Planning & Regeneration - PGS,CHARTERED ASSOCIATION,205,0,205,Subscriptions to National Bodies,Colleges & universities,
Buckinghamshire Council ,31.07.2023,10.07.2023,"Planning, Growth & Sustainability",Planning & Regeneration - PGS,CHARTERED ASSOCIATION,205,0,205,Subscriptions to National Bodies,Colleges & universities,
Buckinghamshire Council ,31.07.2023,10.07.2023,Children's Services,Education & Childrens Services - CS Dir,STATION CARS,16.25,0,16.25,Sec 17: Transport,Taxicabs & limousines,
Buckinghamshire Council ,31.07.2023,10.07.2023,Resources,AH&R - Res Dir,ROYAL MAIL GROUP LTD,11.65,0,11.65,General Postage,Postal services,
Buckinghamshire Council ,31.07.2023,10.07.2023,Adults and Health,Health & Wellbeing - Adults & Health Dir,TESCO STORES 5135,171.17,0,171.17,General Provisions (Food),Grocery stores,
Buckinghamshire Council ,31.07.2023,10.07.2023,Communities,artnerships - Communities,TESCO STORES 2038,30.72,0,30.72,Equipment,Grocery stores,
Buckinghamshire Council ,31.07.2023,10.07.2023,Adults and Health,Health & Wellbeing - Adults & Health Dir,ICELAND FOODS LTD 1748,20.3,0,20.3,Activities & General Recreation,Grocery stores,
Buckinghamshire Council ,31.07.2023,10.07.2023,Adults and Health,Health & Wellbeing - Adults & Health Dir,B&M 426 - HS AYLESBURY,19.29,0,19.29,Activities & General Recreation,Misc. general merchandise,
Buckinghamshire Council ,31.07.2023,10.07.2023,Children's Services,Education & Childrens Services - CS Dir,NEW YORK DELI (AYLESBURY),53.1,0,53.1,Purchase.of Refreshments and Food,Restaurants,
Buckinghamshire Council ,31.07.2023,10.07.2023,"Planning, Growth & Sustainability",AH&R - PGS Dir,SPECIALISED CANVAS,66.64,0,66.64,Administrative Equipment & Tools,Misc. general merchandise,
Buckinghamshire Council ,31.07.2023,10.07.2023,"Planning, Growth & Sustainability",AH&R - PGS Dir,TESCO STORES 2020,13.05,0,13.05,Purchase.of Refreshments and Food,Grocery stores,
Buckinghamshire Council ,31.07.2023,10.07.2023,Deputy Chief Executive,AH&R- DCE Dir,AMZNMKTPLACE,20.96,0,20.96,Other Personal Needs,Miscellaneous retail,
Buckinghamshire Council ,31.07.2023,10.07.2023,Communities,Culture & Leisure - Communities Dir,AMZNMKTPLACE,9.97,2,11.97,"Workshop - Materials,Tools & Equipment",Miscellaneous retail,
Buckinghamshire Council ,31.07.2023,10.07.2023,Communities,Culture & Leisure - Communities Dir,B&M 579 - SOUTH RUISLIP,6.49,0,6.49,Events Expenditure,Misc. general merchandise,
Buckinghamshire Council ,31.07.2023,10.07.2023,Children's Services,Education & Childrens Services - CS Dir,AMAZON PRIME,8.99,0,8.99,Miscellaneous (Other)  Expenses,Continuous subscriptions,
Buckinghamshire Council ,31.07.2023,10.07.2023,Children's Services,Education & Childrens Services - CS Dir,Amazon.co.uk,19.5,0,19.5,Stationery & Office Supplies,Direct sales companies,
Buckinghamshire Council ,31.07.2023,10.07.2023,Children's Services,artnerships - Children's Services,SAINSBURYS S/MKTS,3.2,0,3.2,"Courses, Conference and Seminar Fees",Grocery stores,
Buckinghamshire Council ,31.07.2023,10.07.2023,Children's Services,Education & Childrens Services - CS Dir,TESCO STORES 2041,18.57,0,18.57,Activities & General Recreation,Grocery stores,
Buckinghamshire Council ,31.07.2023,10.07.2023,Children's Services,Education & Childrens Services - CS Dir,FREEDOM PROGRAMME LIMITED,12,0,12,Sec 17: Specialist Services,Schools,
Buckinghamshire Council ,31.07.2023,10.07.2023,Communities,artnerships - Communities,AMZNMktplace,11.99,0,11.99,Awaiting Coding,Miscellaneous retail,
Buckinghamshire Council ,31.07.2023,10.07.2023,Communities,artnerships - Communities,KALL KWIK BEDFORD,46,0,46,Photocopiers,Photocopy & reproduction services,
Buckinghamshire Council ,31.07.2023,10.07.2023,Children's Services,Education & Childrens Services - CS Dir,BT BUSINESS BILL,52.46,0,52.46,Telephones,Phone services,
Buckinghamshire Council ,31.07.2023,10.07.2023,Children's Services,Education & Childrens Services - CS Dir,WWW.WEAREHOMESFORSTUDE,864,0,864,Leaving Care - Higher Education Supp,Estate Agents & Property Management,
Buckinghamshire Council ,31.07.2023,10.07.2023,Children's Services,Education & Childrens Services - CS Dir,BKG*HOTEL AT BOOKING.C,85,0,85,Staff Travelling Expenses,Travel agencies,
Buckinghamshire Council ,31.07.2023,10.07.2023,Deputy Chief Executive,AH&R- DCE Dir,TAXIPAY,20,0,20,Staff Travelling Expenses,Taxicabs & limousines,
Buckinghamshire Council ,31.07.2023,10.07.2023,Adults and Health,Health & Wellbeing - Adults & Health Dir,TESCO STORES 5135,121.96,0,121.96,Awaiting Coding,Grocery stores,
Buckinghamshire Council ,31.07.2023,10.07.2023,Communities,ommunities - Trading Accounts,DVLA VEHICLE TAX,165,0,165,Vehicle Taxation Costs,Tax payments,
Buckinghamshire Council ,31.07.2023,10.07.2023,Communities,ommunities - Trading Accounts,DVLA VEHICLE TAX,165,0,165,Vehicle Taxation Costs,Tax payments,
Buckinghamshire Council ,31.07.2023,10.07.2023,Communities,ommunities - Trading Accounts,DVLA VEHICLE TAX,165,0,165,Vehicle Taxation Costs,Tax payments,
Buckinghamshire Council ,31.07.2023,10.07.2023,Adults and Health,Health & Wellbeing - Adults & Health Dir,TRAVELODGE GB0000,714.94,0,714.94,Other Short Term Support,Travelodge,
Buckinghamshire Council ,31.07.2023,10.07.2023,Children's Services,Education & Childrens Services - CS Dir,TRAINLINE,-19.4,0,-19.4,Court Orders Sec 31: Transport to School,Passenger railways,
Buckinghamshire Council ,31.07.2023,10.07.2023,Deputy Chief Executive,AH&R- DCE Dir,PAYPAL,467.45,93.49,560.94,Miscellaneous (Other)  Expenses,Variety stores,
Buckinghamshire Council ,31.07.2023,10.07.2023,Deputy Chief Executive,AH&R- DCE Dir,PAYPAL,0.05,0,0.05,Miscellaneous (Other)  Expenses,Variety stores,
Buckinghamshire Council ,31.07.2023,10.07.2023,Deputy Chief Executive,AH&R- DCE Dir,PAYPAL,744.1,148.82,892.92,Miscellaneous (Other)  Expenses,Variety stores,
Buckinghamshire Council ,31.07.2023,10.07.2023,Deputy Chief Executive,AH&R- DCE Dir,PAYPAL,0.03,0,0.03,Miscellaneous (Other)  Expenses,Variety stores,
Buckinghamshire Council ,31.07.2023,09.07.2023,"Planning, Growth & Sustainability",Climate Change & Environment - PGS,HTTPS://SCRIBE.HOW/B,23.47,0,23.47,Computer Consumables,Computer software stores,
Buckinghamshire Council ,31.07.2023,09.07.2023,Communities,Culture & Leisure - Communities Dir,AMZNMKTPLACE,16.3,0,16.3,Printing & Stationery,Miscellaneous retail,
Buckinghamshire Council ,31.07.2023,09.07.2023,Communities,artnerships - Communities,MAILCHIMP,21.75,0,21.75,Advertising,,
Buckinghamshire Council ,31.07.2023,09.07.2023,Communities,artnerships - Communities,ADOBE CREATIVE CLOUD,43.32,0,43.32,Advertising,Computer software stores,
Buckinghamshire Council ,31.07.2023,09.07.2023,Children's Services,Education & Childrens Services - CS Dir,MAILCHIMP,47.4,0,47.4,Computer Consumables,,
Buckinghamshire Council ,31.07.2023,09.07.2023,Children's Services,Education & Childrens Services - CS Dir,ASDA  STORES 4396,21.1,0,21.1,General Provisions (Food),Grocery stores,
Buckinghamshire Council ,31.07.2023,09.07.2023,"Planning, Growth & Sustainability",Housing & Homelessness & Regulatory PGS,AMZNMKTPLACE,30.59,0,30.59,Furniture,Miscellaneous retail,
Buckinghamshire Council ,31.07.2023,09.07.2023,Adults and Health,Health & Wellbeing - Adults & Health Dir,B & Q 1124,44.58,8.91,44.58,Activities & General Recreation,Home supply warehouse stores,
Buckinghamshire Council ,31.07.2023,09.07.2023,Communities,Climate Change & Environment - Community,ROADWARRIOR,12.13,0,12.13,Computer Support Services,"Programming, data processing & system design",
Buckinghamshire Council ,31.07.2023,09.07.2023,Children's Services,Education & Childrens Services - CS Dir,TESCO STORES 2020,19.59,0,19.59,Activities Programme,Grocery stores,
Buckinghamshire Council ,31.07.2023,08.07.2023,Communities,Climate Change & Environment - Community,FACEBK 5V5XGSTBM2,11.15,0,11.15,Advertising,Advertising services,
Buckinghamshire Council ,31.07.2023,08.07.2023,Children's Services,Education & Childrens Services - CS Dir,GIFFGAFF,35,0,35,Telephones,Phone services,
Buckinghamshire Council ,31.07.2023,08.07.2023,Adults and Health,Health & Wellbeing - Adults & Health Dir,SAINSBURY'S S/MKT,18.68,0,18.68,General Provisions (Food),Grocery stores,
Buckinghamshire Council ,31.07.2023,08.07.2023,Communities,ommunities - Trust Accounts,SAINSBURY'S S/MKT,44,0,44,Purchase of Food for Re-sale,Grocery stores,
Buckinghamshire Council ,31.07.2023,08.07.2023,Resources,AH&R - Res Dir,FACEBK VA6GYQTUH2,4.14,0,4.14,Permanent Recruitment Costs,Advertising services,
Buckinghamshire Council ,31.07.2023,07.07.2023,Adults and Health,Health & Wellbeing - Adults & Health Dir,AMZNMKTPLACE,30.97,0,30.97,Catering & Domestic Equipment,Miscellaneous retail,
Buckinghamshire Council ,31.07.2023,07.07.2023,Deputy Chief Executive,AH&R- DCE Dir,PAYPAL,241.2,48.25,289.45,Miscellaneous (Other)  Expenses,Variety stores,
Buckinghamshire Council ,31.07.2023,07.07.2023,Deputy Chief Executive,AH&R- DCE Dir,PAYPAL,334.95,66.99,401.94,Miscellaneous (Other)  Expenses,Variety stores,
Buckinghamshire Council ,31.07.2023,07.07.2023,Deputy Chief Executive,AH&R- DCE Dir,PAYPAL,0.01,0,0.01,Miscellaneous (Other)  Expenses,Variety stores,
Buckinghamshire Council ,31.07.2023,07.07.2023,Deputy Chief Executive,AH&R- DCE Dir,PAYPAL,860.79,172.16,"1,032.95",Miscellaneous (Other)  Expenses,Variety stores,
Buckinghamshire Council ,31.07.2023,07.07.2023,Deputy Chief Executive,AH&R- DCE Dir,PAYPAL,76.62,15.33,91.95,Miscellaneous (Other)  Expenses,Variety stores,
Buckinghamshire Council ,31.07.2023,07.07.2023,Deputy Chief Executive,AH&R- DCE Dir,PAYPAL,403.45,80.69,484.14,Miscellaneous (Other)  Expenses,Variety stores,
Buckinghamshire Council ,31.07.2023,07.07.2023,Deputy Chief Executive,AH&R- DCE Dir,PAYPAL,0.02,0,0.02,Miscellaneous (Other)  Expenses,Variety stores,
Buckinghamshire Council ,31.07.2023,07.07.2023,Children's Services,Education & Childrens Services - CS Dir,MERLIN ATTRACTIONS OPERAT,350,0,350,"Exp of School, Club & College Activities",Theatres and ticket agencies,
Buckinghamshire Council ,31.07.2023,07.07.2023,Children's Services,Education & Childrens Services - CS Dir,MERLIN ATTRACTIONS OPERAT,325,0,325,"Exp of School, Club & College Activities",Theatres and ticket agencies,
Buckinghamshire Council ,31.07.2023,07.07.2023,Children's Services,Education & Childrens Services - CS Dir,BKG*HOTEL AT BOOKING.C,162,0,162,Other Employees Expenses,Travel agencies,
Buckinghamshire Council ,31.07.2023,07.07.2023,Deputy Chief Executive,Communities - DCE,AO RETAIL LIMITED,427.49,85.51,513,Other Personal Needs,Household appliance stores,
Buckinghamshire Council ,31.07.2023,07.07.2023,Deputy Chief Executive,Communities - DCE,AO RETAIL LIMITED,165.83,33.17,199,Other Personal Needs,Household appliance stores,
Buckinghamshire Council ,31.07.2023,07.07.2023,Deputy Chief Executive,Communities - DCE,AO RETAIL LIMITED,199.16,39.84,239,Other Personal Needs,Household appliance stores,
Buckinghamshire Council ,31.07.2023,07.07.2023,Deputy Chief Executive,Communities - DCE,AO RETAIL LIMITED,236.65,47.33,283.98,Other Personal Needs,Household appliance stores,
Buckinghamshire Council ,31.07.2023,07.07.2023,Deputy Chief Executive,Communities - DCE,AO RETAIL LIMITED,0.02,0,0.02,Other Personal Needs,Household appliance stores,
Buckinghamshire Council ,31.07.2023,07.07.2023,Children's Services,Education & Childrens Services - CS Dir,TRAINLINE.COM,42.56,0,42.56,Sec 20/31: Transport,Passenger railways,
Buckinghamshire Council ,31.07.2023,07.07.2023,Children's Services,Education & Childrens Services - CS Dir,TAXIPAY,150,0,150,Sec 20/31: Transport,Taxicabs & limousines,
Buckinghamshire Council ,31.07.2023,07.07.2023,Communities,Climate Change & Environment - Community,AMZNMktplace,80.98,0,80.98,Awaiting Coding,Miscellaneous retail,
Buckinghamshire Council ,31.07.2023,07.07.2023,"Planning, Growth & Sustainability",AH&R - PGS Dir,SETON,18.16,0,18.16,Other Equipment and Materials,Misc Durable goods,
Buckinghamshire Council ,31.07.2023,07.07.2023,Children's Services,Education & Childrens Services - CS Dir,BUCKINGHAM HOTELS,"1,890.00",0,"1,890.00",Sec 17: Accommodation,"Hotels, motels & resorts",
Buckinghamshire Council ,31.07.2023,07.07.2023,Communities,Culture & Leisure - Communities Dir,ARGOS HIGH WYCOMBE INSIDE,13.49,0,13.49,Administrative Equipment & Tools,Discount stores,
Buckinghamshire Council ,31.07.2023,07.07.2023,Communities,Housing & Homelessness & Regulatory Comm,TESCO STORES 2020,3.6,0,3.6,Protective Clothing & Uniforms,Grocery stores,
Buckinghamshire Council ,31.07.2023,07.07.2023,Communities,Housing & Homelessness & Regulatory Comm,COOLERAID LTD,156,0,156,Stationery & Office Supplies,Buying & shopping services/clubs,
Buckinghamshire Council ,31.07.2023,07.07.2023,Children's Services,Education & Childrens Services - CS Dir,UBER   *TRIP,127.79,0,127.79,Staff Travelling Expenses,Taxicabs & limousines,
Buckinghamshire Council ,31.07.2023,07.07.2023,Communities,Transport - Communities Dir,OAK GARDEN MACHINERY,348,0,348,Area Teams and Materials,Misc. general merchandise,
Buckinghamshire Council ,31.07.2023,07.07.2023,Children's Services,Education & Childrens Services - CS Dir,AMZNMKTPLACE,250.63,0,250.63,Miscellaneous (Other)  Expenses,Miscellaneous retail,
Buckinghamshire Council ,31.07.2023,07.07.2023,Adults and Health,Health & Wellbeing - Adults & Health Dir,TRAVELODGE GB0000,"1,088.86",0,"1,088.86",Other Short Term Support,Travelodge,
Buckinghamshire Council ,31.07.2023,07.07.2023,Adults and Health,Health & Wellbeing - Adults & Health Dir,PREMIER INN,205.7,0,205.7,Other Short Term Support,Premier Inn,
Buckinghamshire Council ,31.07.2023,07.07.2023,Adults and Health,Health & Wellbeing - Adults & Health Dir,TRAVELODGE GB0000,"1,024.86",0,"1,024.86",Other Short Term Support,Travelodge,
Buckinghamshire Council ,31.07.2023,07.07.2023,Children's Services,Education & Childrens Services - CS Dir,AMZNMKTPLACE,403.27,0,403.27,Furniture,Miscellaneous retail,
Buckinghamshire Council ,31.07.2023,07.07.2023,Resources,AH&R - Res Dir,C2E858901333V UKVI,"1,199.00",0,"1,199.00",Professional Services (non curriculum) - External,Government services,
Buckinghamshire Council ,31.07.2023,07.07.2023,Communities,Culture & Leisure - Communities Dir,WWW.HOMEANDGARDENCENTR,154.95,0,154.95,Seeds & Plants,Lawn & garden supply/nursery,
Buckinghamshire Council ,31.07.2023,07.07.2023,"Planning, Growth & Sustainability",AH&R - PGS Dir,FIRSTAID4LESS,37.4,7.48,44.88,Health & Safety Supplies & Services,Misc commercial machines equipment,
Buckinghamshire Council ,31.07.2023,07.07.2023,Communities,ommunities - Trust Accounts,COSTCO WHOLESALE #102,65.7,0,65.7,Purchase of Food for Re-sale,Buying & shopping services/clubs,
Buckinghamshire Council ,31.07.2023,07.07.2023,Resources,AH&R - Res Dir,LINKEDIN ADS,101.24,0,101.24,Permanent Recruitment Costs,Advertising services,
Buckinghamshire Council ,31.07.2023,07.07.2023,Resources,AH&R - Res Dir,PAYPAL,0.62,0,0.62,Computer Software Licences & Purchase,,
Buckinghamshire Council ,31.07.2023,07.07.2023,Communities,Climate Change & Environment - Community,MOL*STICHTING REPAIR CAFE,43.2,0,43.2,Waste Prevention costs,Charitable organisations,
Buckinghamshire Council ,31.07.2023,07.07.2023,Communities,Climate Change & Environment - Community,SP ZEROWASTEBAG UK,181.9,0,181.9,Waste Prevention costs,Misc business services,
Buckinghamshire Council ,31.07.2023,07.07.2023,Communities,Climate Change & Environment - Community,HIGH SPEED TRAINING,74.4,0,74.4,Waste Prevention costs,Schools,
Buckinghamshire Council ,31.07.2023,07.07.2023,Children's Services,Education & Childrens Services - CS Dir,TRAINLINE,77,0,77,Sec 20/31: Supp for Contact,Passenger railways,
Buckinghamshire Council ,31.07.2023,07.07.2023,Communities,Climate Change & Environment - Community,HALFORDS 0529,17.99,0,17.99,Equipment,"Bicycle shops, sales & service",
Buckinghamshire Council ,31.07.2023,07.07.2023,Children's Services,Education & Childrens Services - CS Dir,TESCO STORES 2640,100,0,100,Consumable Supplies,Grocery stores,
Buckinghamshire Council ,31.07.2023,07.07.2023,Adults and Health,Health & Wellbeing - Adults & Health Dir,NEALES TAXIS LTD,960,0,960,Staff Travelling Expenses,Taxicabs & limousines,
Buckinghamshire Council ,31.07.2023,07.07.2023,Adults and Health,Health & Wellbeing - Adults & Health Dir,WM MORRISONS STORE,4.5,0,4.5,Awaiting Coding,Grocery stores,
Buckinghamshire Council ,31.07.2023,07.07.2023,Children's Services,Education & Childrens Services - CS Dir,UK CARS (HIGH WYCOMBE) LT,"1,000.00",200,"1,200.00",Sec 20/31: Transport,Taxicabs & limousines,
Buckinghamshire Council ,31.07.2023,06.07.2023,Children's Services,Education & Childrens Services - CS Dir,APPLE.COM/UK,450,0,450,Computer Consumables,Electronics shops,
Buckinghamshire Council ,31.07.2023,06.07.2023,Children's Services,Education & Childrens Services - CS Dir,AMZNMKTPLACE,106.42,0,106.42,Miscellaneous (Other)  Expenses,Miscellaneous retail,
Buckinghamshire Council ,31.07.2023,06.07.2023,Children's Services,Education & Childrens Services - CS Dir,AMZNMKTPLACE,25.72,0,25.72,Other Equipment and Materials,Miscellaneous retail,
Buckinghamshire Council ,31.07.2023,06.07.2023,Deputy Chief Executive,AH&R- DCE Dir,PAYPAL,-633,0,-633,Miscellaneous (Other)  Expenses,Electronics shops,
Buckinghamshire Council ,31.07.2023,06.07.2023,Adults and Health,Health & Wellbeing - Adults & Health Dir,ASDA GROCERIES ONLINE,93.3,0,93.3,Awaiting Coding,Grocery stores,
Buckinghamshire Council ,31.07.2023,06.07.2023,Adults and Health,Health & Wellbeing - Adults & Health Dir,SAINSBURYS S/MKTS,18.73,0,18.73,General Provisions (Food),Grocery stores,
Buckinghamshire Council ,31.07.2023,06.07.2023,Children's Services,Education & Childrens Services - CS Dir,WWW.INNKEEPERSLODG,125,0,125,Sec 20/31: Specialist Services,Restaurants,
Buckinghamshire Council ,31.07.2023,06.07.2023,Children's Services,Education & Childrens Services - CS Dir,GEN REGISTER OFFICE,25,0,25,Sec 20/31: Specialist Services,Government services,
Buckinghamshire Council ,31.07.2023,06.07.2023,Communities,Culture & Leisure - Communities Dir,SQUARESPACE INC.,16,0,16,Computer Support Services,"Programming, data processing & system design",
Buckinghamshire Council ,31.07.2023,06.07.2023,Children's Services,Education & Childrens Services - CS Dir,THE OXFORDSHIRE TAXI COMP,145,0,145,Sec 17: Transport,Taxicabs & limousines,
Buckinghamshire Council ,31.07.2023,06.07.2023,Children's Services,Education & Childrens Services - CS Dir,IKEA LTD SHOP ONLINE,205,0,205,Leaving Care - Grants for Care Leavers,Furniture & home furnishing,
Buckinghamshire Council ,31.07.2023,06.07.2023,Children's Services,Education & Childrens Services - CS Dir,WWW.THERANGE.CO.UK,33.94,0,33.94,Leaving Care - Grants for Care Leavers,Misc. home furnishing,
Buckinghamshire Council ,31.07.2023,06.07.2023,Children's Services,Education & Childrens Services - CS Dir,T K MAXX,55.18,0,55.18,Other Personal Needs,Variety stores,
Buckinghamshire Council ,31.07.2023,06.07.2023,Children's Services,Education & Childrens Services - CS Dir,AMZNMKTPLACE,6.79,0,6.79,Other Equipment and Materials,Miscellaneous retail,
Buckinghamshire Council ,31.07.2023,06.07.2023,Children's Services,Education & Childrens Services - CS Dir,SPORTSDIRECT 210,117.99,0,117.99,Other Personal Needs,Sporting goods shops,
Buckinghamshire Council ,31.07.2023,06.07.2023,Deputy Chief Executive,Communities - DCE,ONE YMCA,15,0,15,Other Personal Needs,Misc business services,
Buckinghamshire Council ,31.07.2023,06.07.2023,Deputy Chief Executive,Communities - DCE,AO RETAIL LIMITED,355,71,426,Other Personal Needs,Household appliance stores,
Buckinghamshire Council ,31.07.2023,06.07.2023,Deputy Chief Executive,Communities - DCE,AO RETAIL LIMITED,624.99,125.01,750,Other Personal Needs,Household appliance stores,
Buckinghamshire Council ,31.07.2023,06.07.2023,Communities,Culture & Leisure - Communities Dir,STUART MORRIS TEXT,818.4,0,818.4,Events Expenditure,Photocopy & reproduction services,
Buckinghamshire Council ,31.07.2023,06.07.2023,Communities,Culture & Leisure - Communities Dir,BRIANTS OF RISBOROUGH,123.25,24.65,147.9,"Workshop - Materials,Tools & Equipment",Timber & building supplies,
Buckinghamshire Council ,31.07.2023,06.07.2023,Communities,Culture & Leisure - Communities Dir,BRIANTS OF RISBOROUGH,0.02,0,0.02,"Workshop - Materials,Tools & Equipment",Timber & building supplies,
Buckinghamshire Council ,31.07.2023,06.07.2023,Children's Services,Education & Childrens Services - CS Dir,ALLIED VEHICLES,822.5,0,822.5,Sec 20/31: Financial Assistance One Off,Automobile dealers - new & used,
Buckinghamshire Council ,31.07.2023,06.07.2023,Children's Services,Education & Childrens Services - CS Dir,ALLIED VEHICLES,822.5,0,822.5,Support for Foster Carers,Automobile dealers - new & used,
Buckinghamshire Council ,31.07.2023,06.07.2023,"Planning, Growth & Sustainability",AH&R - PGS Dir,SCREWFIX DIR LTD,68.4,0,68.4,Other Equipment and Materials,Timber & building supplies,
Buckinghamshire Council ,31.07.2023,06.07.2023,"Planning, Growth & Sustainability",Housing & Homelessness & Regulatory PGS,LAND REGISTRY ECOM CCC,3,0,3,Homelessness,Government services,
Buckinghamshire Council ,31.07.2023,06.07.2023,"Planning, Growth & Sustainability",Housing & Homelessness & Regulatory PGS,LAND REGISTRY ECOM CCC,3,0,3,Homelessness,Government services,
Buckinghamshire Council ,31.07.2023,06.07.2023,Communities,artnerships - Communities,YOUR CAF  IN THE PARK,72.65,14.53,87.18,Subsistence,Fast food restaurants,
Buckinghamshire Council ,31.07.2023,06.07.2023,Communities,artnerships - Communities,YOUR CAF  IN THE PARK,0.02,0,0.02,Subsistence,Fast food restaurants,
Buckinghamshire Council ,31.07.2023,06.07.2023,Communities,artnerships - Communities,CAFE OLYMPIA,6.7,0,6.7,Subsistence,Fast food restaurants,
Buckinghamshire Council ,31.07.2023,06.07.2023,Communities,artnerships - Communities,THE BELL,49.29,9.86,59.15,Subsistence,Restaurants,
Buckinghamshire Council ,31.07.2023,06.07.2023,"Planning, Growth & Sustainability",AH&R - PGS Dir,SCREWFIX DIR LTD,281.07,0,281.07,General Repairs & Maintenance,Timber & building supplies,
Buckinghamshire Council ,31.07.2023,06.07.2023,"Planning, Growth & Sustainability",AH&R - PGS Dir,TOOLSTATION LTD,-28.99,0,-28.99,General Repairs & Maintenance,Timber & building supplies,
Buckinghamshire Council ,31.07.2023,06.07.2023,Adults and Health,Communities - Adults & Health,SUMUP  *THE COFFEE SNOBS,100,0,100,Project Work and Project Management Costs,Miscellaneous retail,
Buckinghamshire Council ,31.07.2023,06.07.2023,Children's Services,Education & Childrens Services - CS Dir,SAVERS HEALTH & BEAUTY,6.25,0,6.25,Medical Supplies & Services inc Vet'nary,Chemists & pharmacies,
Buckinghamshire Council ,31.07.2023,06.07.2023,"Planning, Growth & Sustainability",Planning & Regeneration - PGS,CIVIL AVIATION AUTHORITY,10.33,0,10.33,"Courses, Conference and Seminar Fees",Government services,
Buckinghamshire Council ,31.07.2023,06.07.2023,Deputy Chief Executive,Communities - DCE,RINGGO PARKING,2.75,0,2.75,Staff Travelling Expenses,Car parking & garages,
Buckinghamshire Council ,31.07.2023,06.07.2023,Children's Services,Education & Childrens Services - CS Dir,AMZNMKTPLACE,103.6,0,103.6,Miscellaneous (Other)  Expenses,Miscellaneous retail,
Buckinghamshire Council ,31.07.2023,06.07.2023,Children's Services,Education & Childrens Services - CS Dir,PHOTOGRAPHS,14.5,0,14.5,Awaiting Coding,Photographic studios,
Buckinghamshire Council ,31.07.2023,06.07.2023,Communities,Climate Change & Environment - Community,SP FIRST AID WAREHOU,126.79,0,126.79,Equipment,"Laboratory, medical & hospital equipment",
Buckinghamshire Council ,31.07.2023,06.07.2023,Children's Services,Education & Childrens Services - CS Dir,HM PASSPORT OFFICE,82.5,0,82.5,Sec 20/31: Financial Assistance,Government services,
Buckinghamshire Council ,31.07.2023,06.07.2023,Children's Services,Education & Childrens Services - CS Dir,BUCKINGHAMSHIRE CNCL,11,0,11,Sec 20/31: Financial Assistance,Government services,
Buckinghamshire Council ,31.07.2023,06.07.2023,Children's Services,Education & Childrens Services - CS Dir,BUCKINGHAMSHIRE CNCL,11,0,11,Sec 20/31: Financial Assistance,Government services,
Buckinghamshire Council ,31.07.2023,06.07.2023,Deputy Chief Executive,AH&R- DCE Dir,AIRBNB * HMCS9JASYN,"1,897.37",0,"1,897.37",Staff Travelling Expenses,Travel agencies,
Buckinghamshire Council ,31.07.2023,06.07.2023,Communities,Transport - Communities Dir,DISTRICTENFORCEMENT,130,0,130,Staff Travelling Expenses,Car parking & garages,
Buckinghamshire Council ,31.07.2023,06.07.2023,Children's Services,Education & Childrens Services - CS Dir,ODEON AYLESBURY,3.13,0,3.13,Miscellaneous (Other)  Expenses,Cinemas,
Buckinghamshire Council ,31.07.2023,06.07.2023,Resources,AH&R - Res Dir,C2E858801168S UKVI,"3,199.00",0,"3,199.00",Professional Services (non curriculum) - External,Government services,
Buckinghamshire Council ,31.07.2023,06.07.2023,Resources,AH&R - Res Dir,C2E858801480U UKVI,"3,199.00",0,"3,199.00",Professional Services (non curriculum) - External,Government services,
Buckinghamshire Council ,31.07.2023,06.07.2023,Communities,Culture & Leisure - Communities Dir,WWW.ARGOS.CO.UK,40,0,40,Administrative Equipment & Tools,Department stores,
Buckinghamshire Council ,31.07.2023,06.07.2023,Communities,Culture & Leisure - Communities Dir,BUDGENS SWEENEYS,4.73,0,4.73,Administrative Equipment & Tools,Grocery stores,
Buckinghamshire Council ,31.07.2023,06.07.2023,"Planning, Growth & Sustainability",Planning & Regeneration - PGS,TFL TRAVEL CH,2.7,0,2.7,Staff Travelling Expenses,Local commuter transport,
Buckinghamshire Council ,31.07.2023,06.07.2023,"Planning, Growth & Sustainability",Planning & Regeneration - PGS,ARRIVA THE SHIRES LIMITED,1.3,0,1.3,Staff Travelling Expenses,"Buses, charter & tour",
Buckinghamshire Council ,31.07.2023,06.07.2023,"Planning, Growth & Sustainability",Planning & Regeneration - PGS,TRAINLINE,16.5,0,16.5,Staff Travelling Expenses,Passenger railways,
Buckinghamshire Council ,31.07.2023,06.07.2023,Resources,AH&R - Res Dir,FACEBK ZSD56Q3H82,90,0,90,Permanent Recruitment Costs,Advertising services,
Buckinghamshire Council ,31.07.2023,06.07.2023,Resources,AH&R - Res Dir,FATHOM,438.23,0,438.23,Computer Consumables,Computer software stores,
Buckinghamshire Council ,31.07.2023,06.07.2023,Adults and Health,Health & Wellbeing - Adults & Health Dir,AMZNMKTPLACE,32.88,0,32.88,Activities & General Recreation,Miscellaneous retail,
Buckinghamshire Council ,31.07.2023,06.07.2023,Adults and Health,Health & Wellbeing - Adults & Health Dir,AMZNMKTPLACE,15.57,0,15.57,Printing & Stationery,Miscellaneous retail,
Buckinghamshire Council ,31.07.2023,06.07.2023,Adults and Health,Health & Wellbeing - Adults & Health Dir,WM MORRISONS STORE,63.05,0,63.05,Awaiting Coding,Grocery stores,
Buckinghamshire Council ,31.07.2023,06.07.2023,Adults and Health,Health & Wellbeing - Adults & Health Dir,WM MORRISONS STORE,26,0,26,Awaiting Coding,Grocery stores,
Buckinghamshire Council ,31.07.2023,06.07.2023,Adults and Health,Health & Wellbeing - Adults & Health Dir,WM MORRISONS STORE,20.68,0,20.68,Awaiting Coding,Grocery stores,
Buckinghamshire Council ,31.07.2023,06.07.2023,Communities,Housing & Homelessness & Regulatory Comm,SP PVC SAFETY SIGNS,12.76,0,12.76,Computer Consumables,Computer software stores,
Buckinghamshire Council ,31.07.2023,06.07.2023,Communities,Housing & Homelessness & Regulatory Comm,SAFETY FIRST,24.78,0,24.78,General Repairs & Maintenance,Men & womens clothing shops,
Buckinghamshire Council ,31.07.2023,06.07.2023,Children's Services,Education & Childrens Services - CS Dir,TESCO GIFT CARD,70,0,70,Sec 17: Accommodation,Grocery stores,
Buckinghamshire Council ,31.07.2023,06.07.2023,Adults and Health,Health & Wellbeing - Adults & Health Dir,WM MORRISONS STORE,8.83,0,8.83,General Provisions (Food),Grocery stores,
Buckinghamshire Council ,31.07.2023,06.07.2023,Children's Services,Education & Childrens Services - CS Dir,PRIMARK 625,49,0,49,Other Personal Needs,Family clothing shops,
Buckinghamshire Council ,31.07.2023,06.07.2023,Deputy Chief Executive,AH&R- DCE Dir,STORAGEMART UK #5318,84.98,0,84.98,Other Personal Needs,"Haulage, removals & delivery",
Buckinghamshire Council ,31.07.2023,06.07.2023,Deputy Chief Executive,AH&R- DCE Dir,STORAGEMART UK #5318,68.6,0,68.6,Other Personal Needs,"Haulage, removals & delivery",
Buckinghamshire Council ,31.07.2023,06.07.2023,Resources,AH&R - Res Dir,REDEBIT FATHOM,438.23,0,438.23,Computer Consumables,Computer software stores,
Buckinghamshire Council ,31.07.2023,06.07.2023,Resources,AH&R - Res Dir,PSD TEMP DISPUTE CREDIT,-438.23,0,-438.23,Computer Consumables,Computer software stores,
Buckinghamshire Council ,31.07.2023,05.07.2023,"Planning, Growth & Sustainability",Housing & Homelessness & Regulatory PGS,HPI INSTANT INK UK,4.49,0,4.49,Stationery & Office Supplies,Electronics shops,
Buckinghamshire Council ,31.07.2023,05.07.2023,Deputy Chief Executive,AH&R- DCE Dir,PAYPAL,527.5,105.5,633,Miscellaneous (Other)  Expenses,Electronics shops,
Buckinghamshire Council ,31.07.2023,05.07.2023,Children's Services,Education & Childrens Services - CS Dir,PARK ROYAL HOTEL OPERATOR,"1,000.00",0,"1,000.00",Sec 17: Accommodation,,
